{"text_format":"1","workbook":"xlsx","n_sheets":18,"sheets":["Informatie","ZZZ","Lichte Tour","L1","L2","L1 - L2","M1","M2","M1 - M2","Z1","Z2","ZZL","Z1 - Z2","Kampioenen","Diversen","Instellingen","Afvaardiging","Blad1"],"not_rendered":{"charts":0,"images":1,"macros":1,"external_links":1,"defined_names":50,"comments":0,"pivot_tables":0},"unopened":[],"bounds":{"document_bytes":16777216,"sheet_cells":100000,"rows_first":2000,"rows_last":500,"rows_between":2000,"halvings":0,"cell_chars":16384,"cell_head_chars":4096},"cells_cut":0,"cells_raw":0,"read":"whole","date_system":"1900"}

{"sheet":"Informatie","index":0,"n_rows":17,"n_cols":2,"rows_kept":17,"cut":false,"hidden":false,"merged":[]}
[]
[]
["Eindstand van de Subtopselecties voor het Indoorkampioenschap 2018"]
[]
["Heb je vragen over de selectie, mail dan naar: subtop@knhs.nl "," "]
["Inschrijven"]
["Je moet je nog wel even inschrijven voor het KNHS-Indoorkampioenschap waarvoor je geselecteerd bent. Dit kan via Mijn KNHS (www.mijnknhs.nl). Let hierbij op dat je dit doet voor de sluitingsdatum. Op www.knhsindoorkampioenschappen.nl vind je alle infornatie over de kampioenschappen waaronder het vraagprogramma waarin de sluitingsdatum per kampioenschap vermeld staat. Zodra de sluitingsdatum is verlopen voeren wij controles uit op de startgerechtigdheid van alle deelnemers. Nadat deze zijn voltooid wordt je inschrijving in Mijn KNHS op ‘definitief’ gezet. "]
[]
["Stalling"]
["Je hebt de mogelijkheid om een stal te reserveren op het KNHS-centrum. De kosten hiervoor bedragen € 27,50 per stal per dag. Reserveren kan vanaf 25 januari tot 14 dagen voor het kampioenschap via de kalender van ‘Opleidingen en Evenementen’ in Mijn KNHS."]
[]
["Omdat het aantal stallen beperkt is zal de vraag groter zijn dan het aantal beschikbare stallen. In de omgeving van het KNHS-centrum zijn meerdere locaties waar stallen gereserveerd kunnen worden. Is er geen stal meer beschikbaar dan kun je contact opnemen met de afdeling eventmanagement (eventmanagement@knhs.nl) voor gegevens over alternatieve stallings- en overnachtingsmogelijkheden."]
[]
["Afmelden"]
["Wanneer je niet kunt deelnemen aan het KNHS-Indoorkampioenschap vragen we je dit zo spoedig mogelijk per e-mail door te geven aan het bestuur van jouw regio én aan de afdeling  eventmanagement van de KNHS, via afmelding@knhs.nl. Wij kunnen dan een reservecombinatie blij maken. Reservecombinaties worden opgeroepen tot 48 uur voorafgaand aan het kampioenschap."]
[]
["Houd er rekening mee dat je als geselecteerde combinatie voor het KNHS-Indoorkampioenschap, niet mag uitkomen op andere wedstrijden op de dag van het kampioenschap, ook niet na afmelding."]

{"sheet":"ZZZ","index":1,"n_rows":119,"n_cols":67,"rows_kept":119,"cut":false,"hidden":false,"merged":[[0,0,0,65],[2,0,2,1],[2,2,2,4],[2,5,2,13],[2,14,2,21],[2,22,4,53],[2,54,2,62],[2,64,6,65],[3,0,3,1],[3,2,3,4],[3,5,3,13],[3,14,3,21],[3,54,3,62],[4,0,4,1],[4,2,4,4],[4,5,4,13],[4,14,4,21],[4,54,4,62],[5,0,6,4],[5,6,5,13],[5,14,5,21],[5,22,5,29],[5,30,5,37],[5,46,5,53],[5,54,5,59],[6,6,6,13],[6,14,6,21],[6,22,6,29],[6,30,6,37],[6,38,6,45],[6,46,6,53],[5,38,5,45]]}
["Selectie uitslagen"]
[null,null,1,{"$f":"FLOOR((C2+3)/4,1)","v":1},null,null,null,192,190,{"$f":"H2+I2","v":382},null,null,null,1,null,193,193,{"$f":"P2+Q2","v":386},null,null,null,2,null,198,198,{"$f":"X2+Y2","v":396},null,null,null,3,null,177,177,{"$f":"AF2+AG2","v":354},null,null,null,4,null,178,178,{"$f":"AN2+AO2","v":356},null,null,null,5,null,179,179,{"$f":"AV2+AW2","v":358},null,null,null,6,{"$f":"N2+V2+AD2+AL2+AT2+BB2","v":21},{"$f":"J2+R2+Z2+AH2+AP2+AX2","v":2232},{"$f":"IF($O$4>0,(LARGE(($N2,$V2,$AD2,$AL2,$AT2,$BB2),1)),\"0\")","v":6},{"$f":"IF($O$4>0,(LARGE(($N2,$V2,$AD2,$AL2,$AT2,$BB2),2)),\"0\")","v":5},354,354,{"$f":"BC2-BE2-BF2","v":10},{"$f":"BD2-BG2-BH2","v":1524}]
["Kring:",null,{"$f":"Instellingen!B3","v":"Selectie Subtop"},null,null,"Aantal afvaardiging Regiokampioenschappen:",null,null,null,null,null,null,null,null,16,null,null,null,null,null,null,null,null,null,null,null,null,null,null,null,null,null,null,null,null,null,null,null,null,null,null,null,null,null,null,null,null,null,null,null,null,null,null,null,"Aantal wedstrijden:",null,null,null,null,null,null,null,null,{"$f":"Instellingen!B6","v":3}]
["Klasse:",null,"ZZZ",null,null,"Aantal afval resultaten:",null,null,null,null,null,null,null,null,{"$f":"Instellingen!B7","v":1}]
["Cat.:",null,null,null,null,"Plaatsingspunten niet gestart:",null,null,null,null,null,null,null,null,{"$f":"Instellingen!B5","v":99},null,null,null,null,null,null,null,null,null,null,null,null,null,null,null,null,null,null,null,null,null,null,null,null,null,null,null,null,null,null,null,null,null,null,null,null,null,null,null,"Aantal reserves:",null,null,null,null,null,null,null,null,10]
[null,null,null,null,null,"Lokatie:",{"$f":"Instellingen!B36","v":"Delft/Werkendam/Harich"},null,null,null,null,null,null,null,{"$f":"Instellingen!B37","v":"uden/Emmeloord/Den Hoorn"},null,null,null,null,null,null,null,{"$f":"Instellingen!B38","v":"Nw. en St. Joosland/Boxtel/Bunschoten-Spakenburg"},null,null,null,null,null,null,null,{"$f":"Instellingen!B39","v":" "},null,null,null,null,null,null,null,{"$f":"Instellingen!B40","v":" "},null,null,null,null,null,null,null,{"$f":"Instellingen!B41","v":" "},null,null,null,null,null,null,null,"Dressuur",null,null,null,null,null,"Pnt. 60% regel",null,null,210]
[null,null,null,null,null,"Datum:",{"$f":"Instellingen!C36","v":"18 & 19 -11-2017"},null,null,null,null,null,null,null,{"$f":"Instellingen!C37","v":"16 & 17 -12 -2017"},null,null,null,null,null,null,null,{"$f":"Instellingen!C38","v":"20 en 21-1-2018"},null,null,null,null,null,null,null,{"$f":"Instellingen!C39","v":" "},null,null,null,null,null,null,null,{"$f":"Instellingen!C40","v":" "},null,null,null,null,null,null,null,{"$f":"Instellingen!C41","v":" "},null,null,null,null,null,null,null,"Tot.","Tot.","afval","afval","afval","afval","Beste","Beste"]
["Pl.","Comb.nr.","Ruiter/amazone","Paard/pony","kl.","vereniging","Ring","pnt.C","pnt.H","pnt.tot","ex 1","ex 2","pl.","pl.p.","Ring","pnt.C","pnt.H","pnt.tot.","ex 1","ex 2","pl.","pl.p.","Ring","pnt.C","pnt. H","pnt.tot.","ex 1","ex 2","pl.","pl.p.","Ring","pnt.C","pnt.H","pnt.tot.","ex 1","ex 2","pl.","pl.p.","Ring","pnt.C","pnt.H","pnt.tot.","ex 1","ex 2","pl.","pl.p.","Ring","pnt.C","pnt.H","pnt.tot.","ex 1","ex 2","pl.","pl.p.","pl.pnt","punten","pl.pnt","pl.pnt","punten","punten","pl.pnt","punten","Afv.","Res.","Afv. Regio","opmerking"]
[null,"810857SB","Kirsten Brouwer","Sultan des Paluds","ZZZ","Voornruiters, RV. De",null,null,null,{"$f":"H9+I9","v":0},null,null,0,99,1,260,"266,5",{"$f":"P9+Q9","v":526.5},null,null,{"$f":"VLOOKUP(V9,Blad1!A:C,2,0)","v":20},1,null,261,269,{"$f":"X9+Y9","v":530},null,null,{"$f":"VLOOKUP(AD9,Blad1!A:C,2,0)","v":20},1,null,null,null,null,null,null,null,null,null,null,null,null,null,null,null,null,null,null,null,null,null,null,null,null,{"$f":"M9+U9+AC9+AL9+AT9+BB9","v":40},{"$f":"J9+R9+Z9+AH9+AP9+AX9","v":1056.5},{"$f":"IF($O$4>0,(SMALL(($M9,$U9,$AC9),1)),\"0\")","v":0},null,null,null,{"$f":"BC9-BE9-BF9","v":40},{"$f":"BD9-BG9-BH9","v":1056.5},1,null,null,null,{"$f":"IF(COUNT(M9,U9,AC9)>1,\"ja\",\"nee\")","v":"ja"}]
[null,"800195GN","Jeanine Nieuwenhuis","Genua TC","ZZZ","Oud-beijerland, RV.",null,"254,5",241,{"$f":"H10+I10","v":495.5},null,null,{"$f":"VLOOKUP(N10,Blad1!A:C,2,0)","v":20},1,1,235,"262,5",{"$f":"P10+Q10","v":497.5},null,null,{"$f":"VLOOKUP(V10,Blad1!A:C,2,0)","v":20},1,null,null,null,{"$f":"X10+Y10","v":0},null,null,0,null,null,null,null,null,null,null,null,null,null,null,null,null,null,null,null,null,null,null,null,null,null,null,null,null,{"$f":"M10+U10+AC10+AL10+AT10+BB10","v":40},{"$f":"J10+R10+Z10+AH10+AP10+AX10","v":993},{"$f":"IF($O$4>0,(SMALL(($M10,$U10,$AC10),1)),\"0\")","v":0},null,null,null,{"$f":"BC10-BE10-BF10","v":40},993,2,null,null,null,"ja"]
[null,"779962CB","Vai Bruntink","Cum Laude","ZZZ","Neta, RV.",null,241,258,{"$f":"H11+I11","v":499},null,null,{"$f":"VLOOKUP(N11,Blad1!A:C,2,0)","v":20},1,1,217,243,{"$f":"P11+Q11","v":460},null,null,{"$f":"VLOOKUP(V11,Blad1!A:C,2,0)","v":15},3,null,249,"253,5",{"$f":"X11+Y11","v":502.5},null,null,{"$f":"VLOOKUP(AD11,Blad1!A:C,2,0)","v":17},2,null,null,null,null,null,null,null,null,null,null,null,null,null,null,null,null,null,null,null,null,null,null,null,null,{"$f":"M11+U11+AC11+AL11+AT11+BB11","v":52},{"$f":"J11+R11+Z11+AH11+AP11+AX11","v":1461.5},{"$f":"IF($O$4>0,(SMALL(($M11,$U11,$AC11),1)),\"0\")","v":15},null,null,null,{"$f":"BC11-BE11-BF11","v":37},1461.5,3,null,null,null,"ja"]
[null,"784250GS","Jennifer Sekreve","Gamante d","ZZZ","Oost-Veluwse R.J.V., RV.",null,237.5,246.5,{"$f":"H12+I12","v":484},null,null,{"$f":"VLOOKUP(N12,Blad1!A:C,2,0)","v":17},2,null,244,233,{"$f":"P12+Q12","v":477},null,null,{"$f":"VLOOKUP(V12,Blad1!A:C,2,0)","v":20},1,null,null,null,{"$f":"X12+Y12","v":0},null,null,0,null,null,null,null,null,null,null,null,null,null,null,null,null,null,null,null,null,null,null,null,null,null,null,null,null,{"$f":"M12+U12+AC12+AL12+AT12+BB12","v":37},{"$f":"J12+R12+Z12+AH12+AP12+AX12","v":961},{"$f":"IF($O$4>0,(SMALL(($M12,$U12,$AC12),1)),\"0\")","v":0},null,null,null,{"$f":"BC12-BE12-BF12","v":37},961,4,null,null,null,"ja"]
[null,"753827GS","Jonna Schelstraete - Van den Ham","Grand-charmeur","ZZZ","Jacobus, RV.",null,236.5,251.5,{"$f":"H13+I13","v":488},null,null,{"$f":"VLOOKUP(N13,Blad1!A:C,2,0)","v":15},3,1,"272,5","252,5",{"$f":"P13+Q13","v":525},null,null,{"$f":"VLOOKUP(V13,Blad1!A:C,2,0)","v":17},2,null,255,"244,5",{"$f":"X13+Y13","v":499.5},null,null,{"$f":"VLOOKUP(AD13,Blad1!A:C,2,0)","v":20},1,null,null,null,null,null,null,null,null,null,null,null,null,null,null,null,null,null,null,null,null,null,null,null,null,{"$f":"M13+U13+AC13+AL13+AT13+BB13","v":52},{"$f":"J13+R13+Z13+AH13+AP13+AX13","v":1512.5},{"$f":"IF($O$4>0,(SMALL(($M13,$U13,$AC13),1)),\"0\")","v":15},null,null,null,{"$f":"BC13-BE13-BF13","v":37},1512.5,5,null,null,null,"ja"]
[null,"693466VV","Suzanne Van de Ven","Vdv D'avicci","ZZZ","Vereniging Eindhovense Manege, RV.",null,250,240.5,{"$f":"H14+I14","v":490.5},null,null,{"$f":"VLOOKUP(N14,Blad1!A:C,2,0)","v":20},1,1,247,244,{"$f":"P14+Q14","v":491},null,null,{"$f":"VLOOKUP(V14,Blad1!A:C,2,0)","v":15},3,null,null,null,{"$f":"X14+Y14","v":0},null,null,0,null,null,null,null,null,null,null,null,null,null,null,null,null,null,null,null,null,null,null,null,null,null,null,null,null,{"$f":"M14+U14+AC14+AL14+AT14+BB14","v":35},{"$f":"J14+R14+Z14+AH14+AP14+AX14","v":981.5},{"$f":"IF($O$4>0,(SMALL(($M14,$U14,$AC14),1)),\"0\")","v":0},null,null,null,{"$f":"BC14-BE14-BF14","v":35},981.5,6,null,null,null,"ja"]
[null,"818550TV","Tommie van Puijenbroek - Visser","TOP's Gentle","ZZZ","Goirle, RV.",null,241,244,{"$f":"H15+I15","v":485},null,null,{"$f":"VLOOKUP(N15,Blad1!A:C,2,0)","v":13},4,1,"242,5",248,{"$f":"P15+Q15","v":490.5},null,null,{"$f":"VLOOKUP(V15,Blad1!A:C,2,0)","v":13},4,1,243,"240,5",{"$f":"X15+Y15","v":483.5},null,null,{"$f":"VLOOKUP(AD15,Blad1!A:C,2,0)","v":20},1,null,null,null,null,null,null,null,null,null,null,null,null,null,null,null,null,null,null,null,null,null,null,null,null,{"$f":"M15+U15+AC15+AL15+AT15+BB15","v":46},{"$f":"J15+R15+Z15+AH15+AP15+AX15","v":1459},{"$f":"IF($O$4>0,(SMALL(($M15,$U15,$AC15),1)),\"0\")","v":13},null,null,null,{"$f":"BC15-BE15-BF15","v":33},1459,7,null,null,null,"ja"]
[null,"826261ED","Mark Van de Donk","Duppie","ZZZ","Srjv Groenendaal, RV.",null,248,242,{"$f":"H16+I16","v":490},null,null,{"$f":"VLOOKUP(N16,Blad1!A:C,2,0)","v":17},2,null,227,"238,5",{"$f":"P16+Q16","v":465.5},null,null,{"$f":"VLOOKUP(V16,Blad1!A:C,2,0)","v":12},5,null,"247,5",239,{"$f":"X16+Y16","v":486.5},null,null,{"$f":"VLOOKUP(AD16,Blad1!A:C,2,0)","v":15},3,null,null,null,null,null,null,null,null,null,null,null,null,null,null,null,null,null,null,null,null,null,null,null,null,{"$f":"M16+U16+AC16+AL16+AT16+BB16","v":44},{"$f":"J16+R16+Z16+AH16+AP16+AX16","v":1442},{"$f":"IF($O$4>0,(SMALL(($M16,$U16,$AC16),1)),\"0\")","v":12},null,null,null,{"$f":"BC16-BE16-BF16","v":32},1442,8,null,null,null,"ja"]
[null,"718347FS","Jennifer Sekreve","Ferrero","ZZZ","Oost-Veluwse R.J.V., RV.",null,236,235.5,{"$f":"H17+I17","v":471.5},null,null,{"$f":"VLOOKUP(N17,Blad1!A:C,2,0)","v":15},3,null,"233,5","233,5",{"$f":"P17+Q17","v":467},null,null,{"$f":"VLOOKUP(V17,Blad1!A:C,2,0)","v":17},2,null,null,null,{"$f":"X17+Y17","v":0},null,null,0,null,null,null,null,null,null,null,null,null,null,null,null,null,null,null,null,null,null,null,null,null,null,null,null,null,{"$f":"M17+U17+AC17+AL17+AT17+BB17","v":32},{"$f":"J17+R17+Z17+AH17+AP17+AX17","v":938.5},{"$f":"IF($O$4>0,(SMALL(($M17,$U17,$AC17),1)),\"0\")","v":0},null,null,null,{"$f":"BC17-BE17-BF17","v":32},938.5,null,null,null,"gepromoveerd","ja"]
[null,"742845FE","Petra Van Esch","Fifty Fifty","ZZZ","Lambertus, RV.",null,240,"224,5",{"$f":"H18+I18","v":464.5},null,null,{"$f":"VLOOKUP(N18,Blad1!A:C,2,0)","v":13},4,1,"247,5",237,{"$f":"P18+Q18","v":484.5},null,null,{"$f":"VLOOKUP(V18,Blad1!A:C,2,0)","v":12},5,null,"240,5","240,5",{"$f":"X18+Y18","v":481},null,null,{"$f":"VLOOKUP(AD18,Blad1!A:C,2,0)","v":17},2,null,null,null,null,null,null,null,null,null,null,null,null,null,null,null,null,null,null,null,null,null,null,null,null,{"$f":"M18+U18+AC18+AL18+AT18+BB18","v":42},{"$f":"J18+R18+Z18+AH18+AP18+AX18","v":1430},{"$f":"IF($O$4>0,(SMALL(($M18,$U18,$AC18),1)),\"0\")","v":12},null,null,null,{"$f":"BC18-BE18-BF18","v":30},1430,9,null,null,null,"ja"]
[null,"784738HG","Marijke Van Giesen","Hexagon's Furious","ZZZ","Hexagon B.V., Stal",null,"231,5","232,5",{"$f":"H19+I19","v":464},null,null,{"$f":"VLOOKUP(N19,Blad1!A:C,2,0)","v":12},5,null,"234,5","231,5",{"$f":"P19+Q19","v":466},null,null,{"$f":"VLOOKUP(V19,Blad1!A:C,2,0)","v":15},3,1,"239,5","222,5",{"$f":"X19+Y19","v":462},null,null,{"$f":"VLOOKUP(AD19,Blad1!A:C,2,0)","v":15},3,null,null,null,null,null,null,null,null,null,null,null,null,null,null,null,null,null,null,null,null,null,null,null,null,{"$f":"M19+U19+AC19+AL19+AT19+BB19","v":42},{"$f":"J19+R19+Z19+AH19+AP19+AX19","v":1392},{"$f":"IF($O$4>0,(SMALL(($M19,$U19,$AC19),1)),\"0\")","v":12},null,null,null,{"$f":"BC19-BE19-BF19","v":30},1392,10,null,null,null,"ja"]
[null,"787940HZ","Thamar Zweistra","Hexagon's Filamanda","ZZZ","Hexagon B.V., Stal",null,"228,5","238,5",{"$f":"H20+I20","v":467},null,null,{"$f":"VLOOKUP(N20,Blad1!A:C,2,0)","v":17},2,null,233,233,{"$f":"P20+Q20","v":466},null,null,{"$f":"VLOOKUP(V20,Blad1!A:C,2,0)","v":13},4,1,"231,5","226,5",{"$f":"X20+Y20","v":458},null,null,{"$f":"VLOOKUP(AD20,Blad1!A:C,2,0)","v":13},4,null,null,null,null,null,null,null,null,null,null,null,null,null,null,null,null,null,null,null,null,null,null,null,null,{"$f":"M20+U20+AC20+AL20+AT20+BB20","v":43},{"$f":"J20+R20+Z20+AH20+AP20+AX20","v":1391},{"$f":"IF($O$4>0,(SMALL(($M20,$U20,$AC20),1)),\"0\")","v":13},null,null,null,{"$f":"BC20-BE20-BF20","v":30},1391,11,null,null,null,"ja"]
[null,"832336HH","Danielle Heijkoop","Damirez","ZZZ","Zwethruiters, RV.",null,231,229,{"$f":"H21+I21","v":460},null,null,{"$f":"VLOOKUP(N21,Blad1!A:C,2,0)","v":9},8,1,"229,5","231,5",{"$f":"P21+Q21","v":461},null,null,{"$f":"VLOOKUP(V21,Blad1!A:C,2,0)","v":17},2,null,241,"236,5",{"$f":"X21+Y21","v":477.5},null,null,{"$f":"VLOOKUP(AD21,Blad1!A:C,2,0)","v":13},4,null,null,null,null,null,null,null,null,null,null,null,null,null,null,null,null,null,null,null,null,null,null,null,null,{"$f":"M21+U21+AC21+AL21+AT21+BB21","v":39},{"$f":"J21+R21+Z21+AH21+AP21+AX21","v":1398.5},{"$f":"IF($O$4>0,(SMALL(($M21,$U21,$AC21),1)),\"0\")","v":9},null,null,null,{"$f":"BC21-BE21-BF21","v":30},1398.5,12,null,null,null,"ja"]
[null,"787586ZW","Merel Van Wallenburg","Zip","ZZZ","Sé-ros, RV.",null,215,230.5,{"$f":"H22+I22","v":445.5},null,null,{"$f":"VLOOKUP(N22,Blad1!A:C,2,0)","v":0},17,1,233,"231,5",{"$f":"P22+Q22","v":464.5},null,null,{"$f":"VLOOKUP(V22,Blad1!A:C,2,0)","v":9},8,1,"230,5",232,{"$f":"X22+Y22","v":462.5},null,null,{"$f":"VLOOKUP(AD22,Blad1!A:C,2,0)","v":17},2,null,null,null,null,null,null,null,null,null,null,null,null,null,null,null,null,null,null,null,null,null,null,null,null,{"$f":"M22+U22+AC22+AL22+AT22+BB22","v":26},{"$f":"J22+R22+Z22+AH22+AP22+AX22","v":1372.5},{"$f":"IF($O$4>0,(SMALL(($M22,$U22,$AC22),1)),\"0\")","v":0},null,null,null,{"$f":"BC22-BE22-BF22","v":26},1372.5,13,null,null,null,"ja"]
[null,"665782DS","Romy Van der Schaft","Diva Dvb","ZZZ","WWNA, RV.",null,224,233.5,{"$f":"H23+I23","v":457.5},null,null,{"$f":"VLOOKUP(N23,Blad1!A:C,2,0)","v":13},4,null,232,"215,5",{"$f":"P23+Q23","v":447.5},null,null,{"$f":"VLOOKUP(V23,Blad1!A:C,2,0)","v":10},7,null,"232,5",229,{"$f":"X23+Y23","v":461.5},null,null,{"$f":"VLOOKUP(AD23,Blad1!A:C,2,0)","v":12},5,null,null,null,null,null,null,null,null,null,null,null,null,null,null,null,null,null,null,null,null,null,null,null,null,{"$f":"M23+U23+AC23+AL23+AT23+BB23","v":35},{"$f":"J23+R23+Z23+AH23+AP23+AX23","v":1366.5},{"$f":"IF($O$4>0,(SMALL(($M23,$U23,$AC23),1)),\"0\")","v":10},null,null,null,{"$f":"BC23-BE23-BF23","v":25},1366.5,14,null,null,null,"ja"]
[null,"682458FW","Katie Werring","Francois","ZZZ","Voornruiters, RV. De",null,"220,5","244,5",{"$f":"H24+I24","v":465},null,null,{"$f":"VLOOKUP(N24,Blad1!A:C,2,0)","v":15},3,1,201,"210,5",{"$f":"P24+Q24","v":411.5},null,null,{"$f":"VLOOKUP(V24,Blad1!A:C,2,0)","v":0},18,null,"225,5","229,5",{"$f":"X24+Y24","v":455},null,null,{"$f":"VLOOKUP(AD24,Blad1!A:C,2,0)","v":10},7,null,null,null,null,null,null,null,null,null,null,null,null,null,null,null,null,null,null,null,null,null,null,null,null,{"$f":"M24+U24+AC24+AL24+AT24+BB24","v":25},{"$f":"J24+R24+Z24+AH24+AP24+AX24","v":1331.5},{"$f":"IF($O$4>0,(SMALL(($M24,$U24,$AC24),1)),\"0\")","v":0},null,null,null,{"$f":"BC24-BE24-BF24","v":25},1331.5,15,null,null,null,"ja"]
[null,"642952DV","Natascha Veen","Damoiselle","ZZZ","Drentse Hooglanden, RV.",null,224,231.5,{"$f":"H25+I25","v":455.5},null,null,{"$f":"VLOOKUP(N25,Blad1!A:C,2,0)","v":12},5,null,219,"220,5",{"$f":"P25+Q25","v":439.5},null,null,{"$f":"VLOOKUP(V25,Blad1!A:C,2,0)","v":8},9,null,235,"238,5",{"$f":"X25+Y25","v":473.5},null,null,{"$f":"VLOOKUP(AD25,Blad1!A:C,2,0)","v":12},5,null,null,null,null,null,null,null,null,null,null,null,null,null,null,null,null,null,null,null,null,null,null,null,null,{"$f":"M25+U25+AC25+AL25+AT25+BB25","v":32},{"$f":"J25+R25+Z25+AH25+AP25+AX25","v":1368.5},{"$f":"IF($O$4>0,(SMALL(($M25,$U25,$AC25),1)),\"0\")","v":8},null,null,null,{"$f":"BC25-BE25-BF25","v":24},1368.5,16,null,null,null,"ja"]
[null,"803057BH","Geert Hofland","Blaze","ZZZ","Boreftse Ruiters, RV.",null,210,221,{"$f":"H26+I26","v":431},null,null,{"$f":"VLOOKUP(N26,Blad1!A:C,2,0)","v":9},8,1,223,235,{"$f":"P26+Q26","v":458},null,null,{"$f":"VLOOKUP(V26,Blad1!A:C,2,0)","v":13},4,null,232,"224,5",{"$f":"X26+Y26","v":456.5},null,null,{"$f":"VLOOKUP(AD26,Blad1!A:C,2,0)","v":11},6,null,null,null,null,null,null,null,null,null,null,null,null,null,null,null,null,null,null,null,null,null,null,null,null,{"$f":"M26+U26+AC26+AL26+AT26+BB26","v":33},{"$f":"J26+R26+Z26+AH26+AP26+AX26","v":1345.5},{"$f":"IF($O$4>0,(SMALL(($M26,$U26,$AC26),1)),\"0\")","v":9},null,null,null,{"$f":"BC26-BE26-BF26","v":24},1345.5,null,1,null,null,"ja"]
[null,"678585EE","Lotte Van Engelen","Experience","ZZZ","s-Gravenhof, RV.",null,"229,5",233,{"$f":"H27+I27","v":462.5},null,null,{"$f":"VLOOKUP(N27,Blad1!A:C,2,0)","v":11},6,1,"226,5","231,5",{"$f":"P27+Q27","v":458},null,null,{"$f":"VLOOKUP(V27,Blad1!A:C,2,0)","v":12},5,null,219,"220,5",{"$f":"X27+Y27","v":439.5},null,null,{"$f":"VLOOKUP(AD27,Blad1!A:C,2,0)","v":5},12,null,null,null,null,null,null,null,null,null,null,null,null,null,null,null,null,null,null,null,null,null,null,null,null,{"$f":"M27+U27+AC27+AL27+AT27+BB27","v":28},{"$f":"J27+R27+Z27+AH27+AP27+AX27","v":1360},{"$f":"IF($O$4>0,(SMALL(($M27,$U27,$AC27),1)),\"0\")","v":5},null,null,null,{"$f":"BC27-BE27-BF27","v":23},1360,null,2,null,null,"ja"]
[null,"717759DP","Joelle Peters","Dacar's Dream","ZZZ","Hoefke (HSV), RV.",null,228,236.5,{"$f":"H28+I28","v":464.5},null,null,{"$f":"VLOOKUP(N28,Blad1!A:C,2,0)","v":10},7,1,"207,5",229,{"$f":"P28+Q28","v":436.5},null,null,{"$f":"VLOOKUP(V28,Blad1!A:C,2,0)","v":5},12,1,239,218,{"$f":"X28+Y28","v":457},null,null,{"$f":"VLOOKUP(AD28,Blad1!A:C,2,0)","v":12},5,null,null,null,null,null,null,null,null,null,null,null,null,null,null,null,null,null,null,null,null,null,null,null,null,{"$f":"M28+U28+AC28+AL28+AT28+BB28","v":27},{"$f":"J28+R28+Z28+AH28+AP28+AX28","v":1358},{"$f":"IF($O$4>0,(SMALL(($M28,$U28,$AC28),1)),\"0\")","v":5},null,null,null,{"$f":"BC28-BE28-BF28","v":22},1358,null,3,null,null,"ja"]
[null,"832904FV","Tommie van Puijenbroek - Visser","Fanatique Begijnhoeve","ZZZ","Goirle, RV.",null,234.5,233,{"$f":"H29+I29","v":467.5},null,null,{"$f":"VLOOKUP(N29,Blad1!A:C,2,0)","v":11},6,1,239,239,{"$f":"P29+Q29","v":478},null,null,{"$f":"VLOOKUP(V29,Blad1!A:C,2,0)","v":11},6,1,223,227,{"$f":"X29+Y29","v":450},null,null,{"$f":"VLOOKUP(AD29,Blad1!A:C,2,0)","v":11},6,null,null,null,null,null,null,null,null,null,null,null,null,null,null,null,null,null,null,null,null,null,null,null,null,{"$f":"M29+U29+AC29+AL29+AT29+BB29","v":33},{"$f":"J29+R29+Z29+AH29+AP29+AX29","v":1395.5},{"$f":"IF($O$4>0,(SMALL(($M29,$U29,$AC29),1)),\"0\")","v":11},null,null,null,{"$f":"BC29-BE29-BF29","v":22},1395.5,null,4,null,null,"ja"]
[null,"828718EK","Paulette Kral","El dorado","ZZZ","Hoeve Westland Ruiters, RV.",null,227,224,{"$f":"H30+I30","v":451},null,null,{"$f":"VLOOKUP(N30,Blad1!A:C,2,0)","v":7},10,1,224,228,{"$f":"P30+Q30","v":452},null,null,{"$f":"VLOOKUP(V30,Blad1!A:C,2,0)","v":11},6,null,"232,5","221,5",{"$f":"X30+Y30","v":454},null,null,{"$f":"VLOOKUP(AD30,Blad1!A:C,2,0)","v":9},8,null,null,null,null,null,null,null,null,null,null,null,null,null,null,null,null,null,null,null,null,null,null,null,null,{"$f":"M30+U30+AC30+AL30+AT30+BB30","v":27},{"$f":"J30+R30+Z30+AH30+AP30+AX30","v":1357},{"$f":"IF($O$4>0,(SMALL(($M30,$U30,$AC30),1)),\"0\")","v":7},null,null,null,{"$f":"BC30-BE30-BF30","v":20},1357,null,5,null,null,"ja"]
[null,"728367BJ","Fabienne Jongen","Botticelli","ZZZ","Hubertus, RV.",null,218,234.5,{"$f":"H31+I31","v":452.5},null,null,{"$f":"VLOOKUP(N31,Blad1!A:C,2,0)","v":5},12,1,"218,5",222,{"$f":"P31+Q31","v":440.5},null,null,{"$f":"VLOOKUP(V31,Blad1!A:C,2,0)","v":3},14,null,231,"237,5",{"$f":"X31+Y31","v":468.5},null,null,{"$f":"VLOOKUP(AD31,Blad1!A:C,2,0)","v":15},3,null,null,null,null,null,null,null,null,null,null,null,null,null,null,null,null,null,null,null,null,null,null,null,null,{"$f":"M31+U31+AC31+AL31+AT31+BB31","v":23},{"$f":"J31+R31+Z31+AH31+AP31+AX31","v":1361.5},{"$f":"IF($O$4>0,(SMALL(($M31,$U31,$AC31),1)),\"0\")","v":3},null,null,null,{"$f":"BC31-BE31-BF31","v":20},1361.5,null,6,null,null,"ja"]
[null,"786394DL","Corinda Luttjeboer","Da Vinci Sollenburg DC","ZZZ","Schaapskooiruiters, RV.",null,227.5,235.5,{"$f":"H32+I32","v":463},null,null,{"$f":"VLOOKUP(N32,Blad1!A:C,2,0)","v":9},8,1,237,234,{"$f":"P32+Q32","v":471},null,null,{"$f":"VLOOKUP(V32,Blad1!A:C,2,0)","v":10},7,null,"223,5",228,{"$f":"X32+Y32","v":451.5},null,null,{"$f":"VLOOKUP(AD32,Blad1!A:C,2,0)","v":7},10,null,null,null,null,null,null,null,null,null,null,null,null,null,null,null,null,null,null,null,null,null,null,null,null,{"$f":"M32+U32+AC32+AL32+AT32+BB32","v":26},{"$f":"J32+R32+Z32+AH32+AP32+AX32","v":1385.5},{"$f":"IF($O$4>0,(SMALL(($M32,$U32,$AC32),1)),\"0\")","v":7},null,null,null,{"$f":"BC32-BE32-BF32","v":19},1385.5,null,7,null,null,"ja"]
[null,"683505CH","Patty Hanssen","Cliff","ZZZ","Wittenhorst, RV.",null,219.5,216.5,{"$f":"H33+I33","v":436},null,null,{"$f":"VLOOKUP(N33,Blad1!A:C,2,0)","v":0},26,1,215,233,{"$f":"P33+Q33","v":448},null,null,{"$f":"VLOOKUP(V33,Blad1!A:C,2,0)","v":5},12,null,"230,5",238,{"$f":"X33+Y33","v":468.5},null,null,{"$f":"VLOOKUP(AD33,Blad1!A:C,2,0)","v":13},4,null,null,null,null,null,null,null,null,null,null,null,null,null,null,null,null,null,null,null,null,null,null,null,null,{"$f":"M33+U33+AC33+AL33+AT33+BB33","v":18},{"$f":"J33+R33+Z33+AH33+AP33+AX33","v":1352.5},{"$f":"IF($O$4>0,(SMALL(($M33,$U33,$AC33),1)),\"0\")","v":0},null,null,null,{"$f":"BC33-BE33-BF33","v":18},1352.5,null,8,null,null,"ja"]
[null,"705515FZ","Zoë Zwiggelaar","Fidarsi Rossi","ZZZ","Drentse Hooglanden, RV.",null,213.5,228.5,{"$f":"H34+I34","v":442},null,null,{"$f":"VLOOKUP(N34,Blad1!A:C,2,0)","v":11},6,null,"214,5",203,{"$f":"P34+Q34","v":417.5},null,null,{"$f":"VLOOKUP(V34,Blad1!A:C,2,0)","v":1},16,null,222,"218,5",{"$f":"X34+Y34","v":440.5},null,null,{"$f":"VLOOKUP(AD34,Blad1!A:C,2,0)","v":7},10,null,null,null,null,null,null,null,null,null,null,null,null,null,null,null,null,null,null,null,null,null,null,null,null,{"$f":"M34+U34+AC34+AL34+AT34+BB34","v":19},{"$f":"J34+R34+Z34+AH34+AP34+AX34","v":1300},{"$f":"IF($O$4>0,(SMALL(($M34,$U34,$AC34),1)),\"0\")","v":1},null,null,null,{"$f":"BC34-BE34-BF34","v":18},1300,null,9,null,null,"ja"]
[null,"765016FW","Wenda Welten","Firefly","ZZZ","PPH Horstdravers, RV.",null,225,224,{"$f":"H35+I35","v":449},null,null,{"$f":"VLOOKUP(N35,Blad1!A:C,2,0)","v":2},15,1,220,230,{"$f":"P35+Q35","v":450},null,null,{"$f":"VLOOKUP(V35,Blad1!A:C,2,0)","v":6},11,null,235,"221,5",{"$f":"X35+Y35","v":456.5},null,null,{"$f":"VLOOKUP(AD35,Blad1!A:C,2,0)","v":9},8,null,null,null,null,null,null,null,null,null,null,null,null,null,null,null,null,null,null,null,null,null,null,null,null,{"$f":"M35+U35+AC35+AL35+AT35+BB35","v":17},{"$f":"J35+R35+Z35+AH35+AP35+AX35","v":1355.5},{"$f":"IF($O$4>0,(SMALL(($M35,$U35,$AC35),1)),\"0\")","v":2},null,null,null,{"$f":"BC35-BE35-BF35","v":15},1355.5,null,10,null,null,"ja"]
[null,"786595PM","Loes Mars","Pablo's Henry","ZZZ","Laarhoeveruiters, RV.",null,null,null,{"$f":"H36+I36","v":0},null,null,0,99,null,"231,5",210,{"$f":"P36+Q36","v":441.5},null,null,{"$f":"VLOOKUP(V36,Blad1!A:C,2,0)","v":9},8,null,221,215,{"$f":"X36+Y36","v":436},null,null,{"$f":"VLOOKUP(AD36,Blad1!A:C,2,0)","v":5},12,null,null,null,null,null,null,null,null,null,null,null,null,null,null,null,null,null,null,null,null,null,null,null,null,{"$f":"M36+U36+AC36+AL36+AT36+BB36","v":14},{"$f":"J36+R36+Z36+AH36+AP36+AX36","v":877.5},{"$f":"IF($O$4>0,(SMALL(($M36,$U36,$AC36),1)),\"0\")","v":0},null,null,null,{"$f":"BC36-BE36-BF36","v":14},877.5,null,null,null,null,"ja"]
[null,"713778BS","Rommie Stegeman","Brenna","ZZZ","Stegeman, PSC",null,210,219.5,{"$f":"H37+I37","v":429.5},null,null,{"$f":"VLOOKUP(N37,Blad1!A:C,2,0)","v":8},9,null,"222,5",211,{"$f":"P37+Q37","v":433.5},null,null,{"$f":"VLOOKUP(V37,Blad1!A:C,2,0)","v":6},11,null,220,215,{"$f":"X37+Y37","v":435},null,null,{"$f":"VLOOKUP(AD37,Blad1!A:C,2,0)","v":3},14,null,null,null,null,null,null,null,null,null,null,null,null,null,null,null,null,null,null,null,null,null,null,null,null,{"$f":"M37+U37+AC37+AL37+AT37+BB37","v":17},{"$f":"J37+R37+Z37+AH37+AP37+AX37","v":1298},{"$f":"IF($O$4>0,(SMALL(($M37,$U37,$AC37),1)),\"0\")","v":3},null,null,null,{"$f":"BC37-BE37-BF37","v":14},1298,null,null,null,null,"ja"]
[null,"745414GK","Carola Kral","Gentleman f","ZZZ","Hoeve Westland Ruiters, RV.",null,"224,5","224,5",{"$f":"H38+I38","v":449},null,null,{"$f":"VLOOKUP(N38,Blad1!A:C,2,0)","v":6},11,1,"220,5",222,{"$f":"P38+Q38","v":442.5},null,null,{"$f":"VLOOKUP(V38,Blad1!A:C,2,0)","v":8},9,null,null,null,{"$f":"X38+Y38","v":0},null,null,0,null,null,null,null,null,null,null,null,null,null,null,null,null,null,null,null,null,null,null,null,null,null,null,null,null,{"$f":"M38+U38+AC38+AL38+AT38+BB38","v":14},{"$f":"J38+R38+Z38+AH38+AP38+AX38","v":891.5},{"$f":"IF($O$4>0,(SMALL(($M38,$U38,$AC38),1)),\"0\")","v":0},null,null,null,{"$f":"BC38-BE38-BF38","v":14},891.5,null,null,null,null,"ja"]
[null,"720875ZW","Celeste Weima","Zambrano CZ","ZZZ","Argonaut, RV.",null,220.5,238.5,{"$f":"H39+I39","v":459},null,null,{"$f":"VLOOKUP(N39,Blad1!A:C,2,0)","v":8},9,1,"210,5",226,{"$f":"P39+Q39","v":436.5},null,null,{"$f":"VLOOKUP(V39,Blad1!A:C,2,0)","v":6},11,null,null,null,{"$f":"X39+Y39","v":0},null,null,0,null,null,null,null,null,null,null,null,null,null,null,null,null,null,null,null,null,null,null,null,null,null,null,null,null,{"$f":"M39+U39+AC39+AL39+AT39+BB39","v":14},{"$f":"J39+R39+Z39+AH39+AP39+AX39","v":895.5},{"$f":"IF($O$4>0,(SMALL(($M39,$U39,$AC39),1)),\"0\")","v":0},null,null,null,{"$f":"BC39-BE39-BF39","v":14},895.5,null,null,null,null,"ja"]
[null,"675836IM","Britt Muis","It's Britt's Corlando","ZZZ","Veendam e.o., RV.",null,205.5,209.5,{"$f":"H40+I40","v":415},null,null,{"$f":"VLOOKUP(N40,Blad1!A:C,2,0)","v":6},11,null,222,"213,5",{"$f":"P40+Q40","v":435.5},null,null,{"$f":"VLOOKUP(V40,Blad1!A:C,2,0)","v":7},10,null,null,null,{"$f":"X40+Y40","v":0},null,null,0,null,null,null,null,null,null,null,null,null,null,null,null,null,null,null,null,null,null,null,null,null,null,null,null,null,{"$f":"M40+U40+AC40+AL40+AT40+BB40","v":13},{"$f":"J40+R40+Z40+AH40+AP40+AX40","v":850.5},{"$f":"IF($O$4>0,(SMALL(($M40,$U40,$AC40),1)),\"0\")","v":0},null,null,null,{"$f":"BC40-BE40-BF40","v":13},850.5,null,null,null,null,"ja"]
[null,"756741AH","Roger Hambuckers","Armani","ZZZ","Edele Ros, RV.",null,null,null,{"$f":"H41+I41","v":0},null,null,0,99,1,"218,5","235,5",{"$f":"P41+Q41","v":454},null,null,{"$f":"VLOOKUP(V41,Blad1!A:C,2,0)","v":7},10,null,218,227,{"$f":"X41+Y41","v":445},null,null,{"$f":"VLOOKUP(AD41,Blad1!A:C,2,0)","v":6},11,null,null,null,null,null,null,null,null,null,null,null,null,null,null,null,null,null,null,null,null,null,null,null,null,{"$f":"M41+U41+AC41+AL41+AT41+BB41","v":13},{"$f":"J41+R41+Z41+AH41+AP41+AX41","v":899},{"$f":"IF($O$4>0,(SMALL(($M41,$U41,$AC41),1)),\"0\")","v":0},null,null,null,{"$f":"BC41-BE41-BF41","v":13},{"$f":"BD41-BG41-BH41","v":899},null,null,null,null,"ja"]
[null,"642627DL","Lisa Van de Laar","Dropshot","ZZZ","Thielen, RV.",null,215.5,226.5,{"$f":"H42+I42","v":442},null,null,{"$f":"VLOOKUP(N42,Blad1!A:C,2,0)","v":0},22,1,"212,5","221,5",{"$f":"P42+Q42","v":434},null,null,{"$f":"VLOOKUP(V42,Blad1!A:C,2,0)","v":2},15,null,"225,5",232,{"$f":"X42+Y42","v":457.5},null,null,{"$f":"VLOOKUP(AD42,Blad1!A:C,2,0)","v":10},7,null,null,null,null,null,null,null,null,null,null,null,null,null,null,null,null,null,null,null,null,null,null,null,null,{"$f":"M42+U42+AC42+AL42+AT42+BB42","v":12},{"$f":"J42+R42+Z42+AH42+AP42+AX42","v":1333.5},{"$f":"IF($O$4>0,(SMALL(($M42,$U42,$AC42),1)),\"0\")","v":0},null,null,null,{"$f":"BC42-BE42-BF42","v":12},1333.5,null,null,null,null,"ja"]
[null,"567003BH","Marije Heuvel","Belana","ZZZ","Z.E.O., RV.",null,213,221.5,{"$f":"H43+I43","v":434.5},null,null,{"$f":"VLOOKUP(N43,Blad1!A:C,2,0)","v":10},7,null,221,"200,5",{"$f":"P43+Q43","v":421.5},null,null,{"$f":"VLOOKUP(V43,Blad1!A:C,2,0)","v":2},15,null,null,null,{"$f":"X43+Y43","v":0},null,null,0,null,null,null,null,null,null,null,null,null,null,null,null,null,null,null,null,null,null,null,null,null,null,null,null,null,{"$f":"M43+U43+AC43+AL43+AT43+BB43","v":12},{"$f":"J43+R43+Z43+AH43+AP43+AX43","v":856},{"$f":"IF($O$4>0,(SMALL(($M43,$U43,$AC43),1)),\"0\")","v":0},null,null,null,{"$f":"BC43-BE43-BF43","v":12},856,null,null,null,null,"ja"]
[null,"781887GS","Joyce Van Schaick","Glendale","ZZZ","Sportpaarden Amsterdam (SPA), RV.",null,216,228.5,{"$f":"H44+I44","v":444.5},null,null,{"$f":"VLOOKUP(N44,Blad1!A:C,2,0)","v":0},18,null,210,"212,5",{"$f":"P44+Q44","v":422.5},null,null,{"$f":"VLOOKUP(V44,Blad1!A:C,2,0)","v":3},14,null,"226,5",226,{"$f":"X44+Y44","v":452.5},null,null,{"$f":"VLOOKUP(AD44,Blad1!A:C,2,0)","v":8},9,null,null,null,null,null,null,null,null,null,null,null,null,null,null,null,null,null,null,null,null,null,null,null,null,{"$f":"M44+U44+AC44+AL44+AT44+BB44","v":11},{"$f":"J44+R44+Z44+AH44+AP44+AX44","v":1319.5},{"$f":"IF($O$4>0,(SMALL(($M44,$U44,$AC44),1)),\"0\")","v":0},null,null,null,{"$f":"BC44-BE44-BF44","v":11},1319.5,null,null,null,null,"ja"]
[null,"761477FR","Yael Reijnders","Ferrari","ZZZ","Braanjenhoek, RV.",null,201,220,{"$f":"H45+I45","v":421},null,null,{"$f":"VLOOKUP(N45,Blad1!A:C,2,0)","v":0},22,null,null,null,{"$f":"P45+Q45","v":0},null,null,0,99,1,"219,5","210,5",{"$f":"X45+Y45","v":430},null,null,{"$f":"VLOOKUP(AD45,Blad1!A:C,2,0)","v":9},8,null,null,null,null,null,null,null,null,null,null,null,null,null,null,null,null,null,null,null,null,null,null,null,null,{"$f":"M45+U45+AC45+AL45+AT45+BB45","v":9},{"$f":"J45+R45+Z45+AH45+AP45+AX45","v":851},{"$f":"IF($O$4>0,(SMALL(($M45,$U45,$AC45),1)),\"0\")","v":0},null,null,null,{"$f":"BC45-BE45-BF45","v":9},851,null,null,null,null,"ja"]
[null,"787334BH","Fleur Hovers","Bolero Dvb","ZZZ","Trouwe Kameraden, RV.",null,210.5,233,{"$f":"H46+I46","v":443.5},null,null,{"$f":"VLOOKUP(N46,Blad1!A:C,2,0)","v":0},21,1,222,225,{"$f":"P46+Q46","v":447},null,null,{"$f":"VLOOKUP(V46,Blad1!A:C,2,0)","v":9},8,null,null,null,{"$f":"X46+Y46","v":0},null,null,0,null,null,null,null,null,null,null,null,null,null,null,null,null,null,null,null,null,null,null,null,null,null,null,null,null,{"$f":"M46+U46+AC46+AL46+AT46+BB46","v":9},{"$f":"J46+R46+Z46+AH46+AP46+AX46","v":890.5},{"$f":"IF($O$4>0,(SMALL(($M46,$U46,$AC46),1)),\"0\")","v":0},null,null,null,{"$f":"BC46-BE46-BF46","v":9},890.5,null,null,null,null,"ja"]
[null,"702339DB","Maartje Te Braak","Dizzy Tika","ZZZ","Steegh, RV. De",null,225.5,214.5,{"$f":"H47+I47","v":440},null,null,{"$f":"VLOOKUP(N47,Blad1!A:C,2,0)","v":0},23,1,224,233,{"$f":"P47+Q47","v":457},null,null,{"$f":"VLOOKUP(V47,Blad1!A:C,2,0)","v":8},9,null,null,null,{"$f":"X47+Y47","v":0},null,null,0,null,null,null,null,null,null,null,null,null,null,null,null,null,null,null,null,null,null,null,null,null,null,null,null,null,{"$f":"M47+U47+AC47+AL47+AT47+BB47","v":8},{"$f":"J47+R47+Z47+AH47+AP47+AX47","v":897},{"$f":"IF($O$4>0,(SMALL(($M47,$U47,$AC47),1)),\"0\")","v":0},null,null,null,{"$f":"BC47-BE47-BF47","v":8},897,null,null,null,null,"ja"]
[null,"651260DD","Amy Van Dijk","Django Van De Wateringhoeve","ZZZ","Door Wilskracht Sterk, RV.",null,220,230.5,{"$f":"H48+I48","v":450.5},null,null,{"$f":"VLOOKUP(N48,Blad1!A:C,2,0)","v":4},13,1,223,"220,5",{"$f":"P48+Q48","v":443.5},null,null,{"$f":"VLOOKUP(V48,Blad1!A:C,2,0)","v":4},13,null,null,null,{"$f":"X48+Y48","v":0},null,null,0,null,null,null,null,null,null,null,null,null,null,null,null,null,null,null,null,null,null,null,null,null,null,null,null,null,{"$f":"M48+U48+AC48+AL48+AT48+BB48","v":8},{"$f":"J48+R48+Z48+AH48+AP48+AX48","v":894},{"$f":"IF($O$4>0,(SMALL(($M48,$U48,$AC48),1)),\"0\")","v":0},null,null,null,{"$f":"BC48-BE48-BF48","v":8},894,null,null,null,null,"ja"]
[null,"673446ES","Manouk Steijn","Evy","ZZZ","Zeewolder Ruiters, RV.",null,205,209,{"$f":"H49+I49","v":414},null,null,{"$f":"VLOOKUP(N49,Blad1!A:C,2,0)","v":5},12,null,null,null,{"$f":"P49+Q49","v":0},null,null,0,99,null,"222,5",212,{"$f":"X49+Y49","v":434.5},null,null,{"$f":"VLOOKUP(AD49,Blad1!A:C,2,0)","v":2},15,null,null,null,null,null,null,null,null,null,null,null,null,null,null,null,null,null,null,null,null,null,null,null,null,{"$f":"M49+U49+AC49+AL49+AT49+BB49","v":7},{"$f":"J49+R49+Z49+AH49+AP49+AX49","v":848.5},{"$f":"IF($O$4>0,(SMALL(($M49,$U49,$AC49),1)),\"0\")","v":0},null,null,null,{"$f":"BC49-BE49-BF49","v":7},848.5,null,null,null,null,"ja"]
[null,"678129EE","Britt Van Egmond","Engie Sollenburg","ZZZ","Noord-Hollandse, RV.",null,"205,5","215,5",{"$f":"H50+I50","v":421},null,null,{"$f":"VLOOKUP(N50,Blad1!A:C,2,0)","v":0},21,1,218,221,{"$f":"P50+Q50","v":439},null,null,{"$f":"VLOOKUP(V50,Blad1!A:C,2,0)","v":7},10,null,200,201,{"$f":"X50+Y50","v":401},null,null,{"$f":"VLOOKUP(AD50,Blad1!A:C,2,0)","v":0},20,null,null,null,null,null,null,null,null,null,null,null,null,null,null,null,null,null,null,null,null,null,null,null,null,{"$f":"M50+U50+AC50+AL50+AT50+BB50","v":7},{"$f":"J50+R50+Z50+AH50+AP50+AX50","v":1261},{"$f":"IF($O$4>0,(SMALL(($M50,$U50,$AC50),1)),\"0\")","v":0},null,null,null,{"$f":"BC50-BE50-BF50","v":7},1261,null,null,null,null,"ja"]
[null,"766782BM","Eva Mion","Btw","ZZZ","Jagers, RV.",null,224.5,229,{"$f":"H51+I51","v":453.5},null,null,{"$f":"VLOOKUP(N51,Blad1!A:C,2,0)","v":7},10,1,"197,5",204,{"$f":"P51+Q51","v":401.5},null,null,{"$f":"VLOOKUP(V51,Blad1!A:C,2,0)","v":0},19,null,null,null,{"$f":"X51+Y51","v":0},null,null,0,null,null,null,null,null,null,null,null,null,null,null,null,null,null,null,null,null,null,null,null,null,null,null,null,null,{"$f":"M51+U51+AC51+AL51+AT51+BB51","v":7},{"$f":"J51+R51+Z51+AH51+AP51+AX51","v":855},{"$f":"IF($O$4>0,(SMALL(($M51,$U51,$AC51),1)),\"0\")","v":0},null,null,null,{"$f":"BC51-BE51-BF51","v":7},855,null,null,null,null,"ja"]
[null,"549382BV","Crystal Van Vliet","Boyd","ZZZ","Hekelingen, RV.",null,"224,5","215,5",{"$f":"H52+I52","v":440},null,null,{"$f":"VLOOKUP(N52,Blad1!A:C,2,0)","v":4},13,1,208,208,{"$f":"P52+Q52","v":416},null,null,{"$f":"VLOOKUP(V52,Blad1!A:C,2,0)","v":3},14,null,null,null,{"$f":"X52+Y52","v":0},null,null,0,null,null,null,null,null,null,null,null,null,null,null,null,null,null,null,null,null,null,null,null,null,null,null,null,null,{"$f":"M52+U52+AC52+AL52+AT52+BB52","v":7},{"$f":"J52+R52+Z52+AH52+AP52+AX52","v":856},{"$f":"IF($O$4>0,(SMALL(($M52,$U52,$AC52),1)),\"0\")","v":0},null,null,null,{"$f":"BC52-BE52-BF52","v":7},856,null,null,null,null,"ja"]
[null,"680094ES","Danique Schnellenberg","Everton","ZZZ","Zilfia's Hoeve, RV.",null,213,240.5,{"$f":"H53+I53","v":453.5},null,null,{"$f":"VLOOKUP(N53,Blad1!A:C,2,0)","v":6},11,null,208,203,{"$f":"P53+Q53","v":411},null,null,{"$f":"VLOOKUP(V53,Blad1!A:C,2,0)","v":0},19,null,null,null,{"$f":"X53+Y53","v":0},null,null,0,null,null,null,null,null,null,null,null,null,null,null,null,null,null,null,null,null,null,null,null,null,null,null,null,null,{"$f":"M53+U53+AC53+AL53+AT53+BB53","v":6},{"$f":"J53+R53+Z53+AH53+AP53+AX53","v":864.5},{"$f":"IF($O$4>0,(SMALL(($M53,$U53,$AC53),1)),\"0\")","v":0},null,null,null,{"$f":"BC53-BE53-BF53","v":6},864.5,null,null,null,null,"ja"]
[null,"683514GG","Debby De Graaf","Beltsjeblom Galloper","ZZZ","s-Gravenhof, RV.",null,220.5,210.5,{"$f":"H54+I54","v":431},null,null,{"$f":"VLOOKUP(N54,[1]Blad1!A:C,2,0)","v":0},28,1,"213,5",212,{"$f":"P54+Q54","v":425.5},null,null,{"$f":"VLOOKUP(V54,Blad1!A:C,2,0)","v":4},13,null,null,null,{"$f":"X54+Y54","v":0},null,null,0,null,null,null,null,null,null,null,null,null,null,null,null,null,null,null,null,null,null,null,null,null,null,null,null,null,{"$f":"M54+U54+AC54+AL54+AT54+BB54","v":4},{"$f":"J54+R54+Z54+AH54+AP54+AX54","v":856.5},{"$f":"IF($O$4>0,(SMALL(($M54,$U54,$AC54),1)),\"0\")","v":0},null,null,null,{"$f":"BC54-BE54-BF54","v":4},856.5,null,null,null,null,"ja"]
[null,"756175CV","Kees Verheij","Cypress-hill","ZZZ","Bernisse, RV.",null,208,215,{"$f":"H55+I55","v":423},null,null,{"$f":"VLOOKUP(N55,Blad1!A:C,2,0)","v":0},17,1,208,"207,5",{"$f":"P55+Q55","v":415.5},null,null,{"$f":"VLOOKUP(V55,Blad1!A:C,2,0)","v":2},15,null,null,null,{"$f":"X55+Y55","v":0},null,null,0,null,null,null,null,null,null,null,null,null,null,null,null,null,null,null,null,null,null,null,null,null,null,null,null,null,{"$f":"M55+U55+AC55+AL55+AT55+BB55","v":2},{"$f":"J55+R55+Z55+AH55+AP55+AX55","v":838.5},{"$f":"IF($O$4>0,(SMALL(($M55,$U55,$AC55),1)),\"0\")","v":0},null,null,null,{"$f":"BC55-BE55-BF55","v":2},838.5,null,null,null,null,"ja"]
[null,"534173AZ","Annemarie Zuijdwegt","Atomic","ZZZ","Capelse R.j.v., RV.",null,201,206,{"$f":"H56+I56","v":407},null,null,{"$f":"VLOOKUP(N56,Blad1!A:C,2,0)","v":0},25,1,193,199,{"$f":"P56+Q56","v":392},null,null,{"$f":"VLOOKUP(V56,Blad1!A:C,2,0)","v":0},21,null,null,null,{"$f":"X56+Y56","v":0},null,null,0,null,null,null,null,null,null,null,null,null,null,null,null,null,null,null,null,null,null,null,null,null,null,null,null,null,{"$f":"M56+U56+AC56+AL56+AT56+BB56","v":0},{"$f":"J56+R56+Z56+AH56+AP56+AX56","v":799},{"$f":"IF($O$4>0,(SMALL(($M56,$U56,$AC56),1)),\"0\")","v":0},null,null,null,{"$f":"BC56-BE56-BF56","v":0},799,null,null,null,null,"ja"]
[null,"723995BA","Zinzi Aegten","Black Diamond","ZZZ","Jasmijnruiters, RV.",null,null,null,{"$f":"H57+I57","v":0},null,null,0,99,null,null,null,{"$f":"P57+Q57","v":0},null,null,0,99,null,"230,5","223,5",{"$f":"X57+Y57","v":454},null,null,{"$f":"VLOOKUP(AD57,Blad1!A:C,2,0)","v":8},9,null,null,null,null,null,null,null,null,null,null,null,null,null,null,null,null,null,null,null,null,null,null,null,null,{"$f":"M57+U57+AC57+AL57+AT57+BB57","v":8},{"$f":"J57+R57+Z57+AH57+AP57+AX57","v":454},{"$f":"IF($O$4>0,(SMALL(($M57,$U57,$AC57),1)),\"0\")","v":0},null,null,null,{"$f":"BC57-BE57-BF57","v":8},454]
[null,"654467LS","Hilde Smits","Luka","ZZZ","Hubertus, RV.",null,null,null,0,null,null,0,99,null,null,null,0,null,null,0,99,null,229,"232,5",461.5,null,null,{"$f":"VLOOKUP(AD58,Blad1!A:C,2,0)","v":11},6,null,null,null,null,null,null,null,null,null,null,null,null,null,null,null,null,null,null,null,null,null,null,null,null,11,461.5,{"$f":"IF($O$4>0,(SMALL(($M58,$U58,$AC58),1)),\"0\")","v":0},null,null,null,11,461.5]
[null,"650867ES","Lotte Somers","Elmondo","ZZZ","Sint Michaël (RSV), RV.",null,null,null,0,null,null,0,99,null,null,null,0,null,null,0,99,null,205,210,415,null,null,{"$f":"VLOOKUP(AD59,Blad1!A:C,2,0)","v":4},13,null,null,null,null,null,null,null,null,null,null,null,null,null,null,null,null,null,null,null,null,null,null,null,null,4,415,{"$f":"IF($O$4>0,(SMALL(($M59,$U59,$AC59),1)),\"0\")","v":0},null,null,null,4,415]
[null,"652570DO","Maartje Overweel","Don Benito","ZZZ","Schouwse Ruiters, RV. De",null,null,null,0,null,null,0,99,null,null,null,0,null,null,0,99,1,224,"222,5",446.5,null,null,{"$f":"VLOOKUP(AD60,Blad1!A:C,2,0)","v":10},7,null,null,null,null,null,null,null,null,null,null,null,null,null,null,null,null,null,null,null,null,null,null,null,null,10,446.5,{"$f":"IF($O$4>0,(SMALL(($M60,$U60,$AC60),1)),\"0\")","v":0},null,null,null,10,446.5]
[null,"766397HP","Veronique Van der Panne","Hexagons Feno","ZZZ","Benschopper Ruiters, RV.",null,null,null,0,null,null,0,99,null,null,null,0,null,null,0,99,1,"215,5","213,5",429,null,null,{"$f":"VLOOKUP(AD61,Blad1!A:C,2,0)","v":8},9,null,null,null,null,null,null,null,null,null,null,null,null,null,null,null,null,null,null,null,null,null,null,null,null,8,429,{"$f":"IF($O$4>0,(SMALL(($M61,$U61,$AC61),1)),\"0\")","v":0},null,null,null,8,429]
[null,"705501ZG","Bianca Gorter","Zonnaleone","ZZZ","Sé-ros, RV.",null,null,null,0,null,null,null,99,null,null,null,0,null,null,null,99,1,208,208,416,null,null,{"$f":"VLOOKUP(AD62,Blad1!A:C,2,0)","v":7},10,null,null,null,null,null,null,null,null,null,null,null,null,null,null,null,null,null,null,null,null,null,null,null,null,7,416,{"$f":"IF($O$4>0,(SMALL(($M62,$U62,$AC62),1)),\"0\")","v":7},null,null,null,0,416]
[null,"673258ED","Jose Dingemanse - Van de Velde","Edison","ZZZ","Scheldestad (RSV), RV. De",null,null,null,0,null,null,0,99,null,null,null,0,null,null,0,99,1,205,199,404,null,null,{"$f":"VLOOKUP(AD63,Blad1!A:C,2,0)","v":6},11,null,null,null,null,null,null,null,null,null,null,null,null,null,null,null,null,null,null,null,null,null,null,null,null,6,404,{"$f":"IF($O$4>0,(SMALL(($M63,$U63,$AC63),1)),\"0\")","v":0},null,null,null,6,404]
[null,"644998DS","Iris Schunselaar","Dalila Imani","ZZZ","Sé-ros, RV.",null,null,null,0,null,null,0,99,null,null,null,0,null,null,0,99,1,"203,5","198,5",402,null,null,{"$f":"VLOOKUP(AD64,Blad1!A:C,2,0)","v":5},12,null,null,null,null,null,null,null,null,null,null,null,null,null,null,null,null,null,null,null,null,null,null,null,null,5,402,{"$f":"IF($O$4>0,(SMALL(($M64,$U64,$AC64),1)),\"0\")","v":0},null,null,null,5,402]
[null,"243085ND","Jolanda Van Dijke","Nick A","ZZZ","Scheldestad (RSV), RV. De",null,null,null,0,null,null,0,99,null,null,null,0,null,null,0,99,1,205,195,400,null,null,{"$f":"VLOOKUP(AD65,Blad1!A:C,2,0)","v":4},13,null,null,null,null,null,null,null,null,null,null,null,null,null,null,null,null,null,null,null,null,null,null,null,null,4,400,{"$f":"IF($O$4>0,(SMALL(($M65,$U65,$AC65),1)),\"0\")","v":0},null,null,null,4,400]
[null,"521167ZM","Bo De Muynck","Zicolda","ZZZ","Weelruiters, RV.",null,null,null,0,null,null,0,99,null,null,null,0,null,null,0,99,1,"200,5",190,390.5,null,null,{"$f":"VLOOKUP(AD66,Blad1!A:C,2,0)","v":3},14,null,null,null,null,null,null,null,null,null,null,null,null,null,null,null,null,null,null,null,null,null,null,null,null,3,390.5,{"$f":"IF($O$4>0,(SMALL(($M66,$U66,$AC66),1)),\"0\")","v":0},null,null,null,3,390.5]
[null,"724864FD","Rianne Van Dulst - De Lange","Fontainebleau","ZZZ","Veluws Ros, RV.",null,null,null,0,null,null,0,99,null,null,null,0,null,null,0,99,null,"220,5","216,5",437,null,null,{"$f":"VLOOKUP(AD67,Blad1!A:C,2,0)","v":6},11,null,null,null,null,null,null,null,null,null,null,null,null,null,null,null,null,null,null,null,null,null,null,null,null,6,437,{"$f":"IF($O$4>0,(SMALL(($M67,$U67,$AC67),1)),\"0\")","v":0},null,null,null,6,437]
[null,"808171DK","Iris Klaassen","Denzel B","ZZZ","Berkenruiters, RV.",null,null,null,0,null,null,0,99,null,null,null,0,null,null,0,99,null,"215,5","219,5",435,null,null,{"$f":"VLOOKUP(AD68,Blad1!A:C,2,0)","v":4},13,null,null,null,null,null,null,null,null,null,null,null,null,null,null,null,null,null,null,null,null,null,null,null,null,4,435,{"$f":"IF($O$4>0,(SMALL(($M68,$U68,$AC68),1)),\"0\")","v":0},null,null,null,4,435]
[null,"599232AK","Rob Kuijper","Anky V.d. T.","ZZZ","Srjv Groenendaal, RV.",null,null,null,0,null,null,0,99,null,null,null,0,null,null,0,99,null,"213,5","211,5",425,null,null,{"$f":"VLOOKUP(AD69,Blad1!A:C,2,0)","v":1},16,null,null,null,null,null,null,null,null,null,null,null,null,null,null,null,null,null,null,null,null,null,null,null,null,1,425,{"$f":"IF($O$4>0,(SMALL(($M69,$U69,$AC69),1)),\"0\")","v":0},null,null,null,1,425]
[null,"652296DM","Kelly Maijoor","Donar V","ZZZ","Ronde Venen, RV.",null,null,null,0,null,null,0,99,null,null,null,0,null,null,0,99,null,217,"207,5",424.5,null,null,{"$f":"VLOOKUP(AD70,Blad1!A:C,2,0)","v":0},17,null,null,null,null,null,null,null,null,null,null,null,null,null,null,null,null,null,null,null,null,null,null,null,null,0,424.5,{"$f":"IF($O$4>0,(SMALL(($M70,$U70,$AC70),1)),\"0\")","v":0},null,null,null,0,424.5]
[null,"683863EC","Janet Castricium","Easy Khan","ZZZ","Heerhugowaard, RV.",null,null,null,0,null,null,0,99,null,null,null,0,null,null,0,99,null,211,"209,5",420.5,null,null,{"$f":"VLOOKUP(AD71,Blad1!A:C,2,0)","v":0},18,null,null,null,null,null,null,null,null,null,null,null,null,null,null,null,null,null,null,null,null,null,null,null,null,0,420.5,{"$f":"IF($O$4>0,(SMALL(($M71,$U71,$AC71),1)),\"0\")","v":0},null,null,null,0,420.5]
[null,"765944BS","Claudia Scheeres - Roos","Biotelli's Empereur","ZZZ","Noord-Hollandse, RV.",null,null,null,0,null,null,0,99,null,null,null,0,null,null,0,99,null,"199,5","211,5",411,null,null,{"$f":"VLOOKUP(AD72,Blad1!A:C,2,0)","v":0},19,null,null,null,null,null,null,null,null,null,null,null,null,null,null,null,null,null,null,null,null,null,null,null,null,0,411,{"$f":"IF($O$4>0,(SMALL(($M72,$U72,$AC72),1)),\"0\")","v":0},null,null,null,0,411]
[null,"778062GF","Stephanie De Frel","Vmf Gladiator","ZZZ","Hulst, RV.",null,231,240.5,{"$f":"H73+I73","v":471.5},null,null,{"$f":"VLOOKUP(N73,Blad1!A:C,2,0)","v":12},5,null,null,null,{"$f":"P73+Q73","v":0},null,null,null,99,null,null,null,{"$f":"X73+Y73","v":0},null,null,null,null,null,null,null,null,null,null,null,null,null,null,null,null,null,null,null,null,null,null,null,null,null,null,null,null,{"$f":"M73+U73+AC73+AL73+AT73+BB73","v":12},{"$f":"J73+R73+Z73+AH73+AP73+AX73","v":471.5},{"$f":"IF($O$4>0,(SMALL(($M73,$U73,$AC73),1)),\"0\")","v":12},null,null,null,{"$f":"BC73-BE73-BF73","v":0},{"$f":"BD73-BG73-BH73","v":471.5}]
[null,"810485LH","Hergen Van Hall","Love For You","ZZZ","Molenruiters, RV.",null,212,208.5,420.5,null,null,{"$f":"VLOOKUP(N74,Blad1!A:C,2,0)","v":7},10,null,null,null,0,null,null,null,99,null,null,null,0,null,null,null,null,null,null,null,null,null,null,null,null,null,null,null,null,null,null,null,null,null,null,null,null,null,null,null,null,7,420.5,{"$f":"IF($O$4>0,(SMALL(($M74,$U74,$AC74),1)),\"0\")","v":7},null,null,null,0,420.5]
[null,"801890FK","Annemieke Vincourt - Krom","Fimosa","ZZZ","Millenniumruiters (RSV), RV.",null,null,null,0,null,null,0,99,null,232,224,456,null,null,{"$f":"VLOOKUP(V75,Blad1!A:C,2,0)","v":11},6,null,null,null,0,null,null,null,null,null,null,null,null,null,null,null,null,null,null,null,null,null,null,null,null,null,null,null,null,null,null,null,null,11,456,{"$f":"IF($O$4>0,(SMALL(($M75,$U75,$AC75),1)),\"0\")","v":0},null,null,null,11,456]
[null,"719724BB","Cindy Boere","Brown Sugar","ZZZ","Giessenruiters, RV.",null,null,null,0,null,null,0,99,1,"220,5","228,5",449,null,null,{"$f":"VLOOKUP(V76,Blad1!A:C,2,0)","v":10},7,null,null,null,0,null,null,null,null,null,null,null,null,null,null,null,null,null,null,null,null,null,null,null,null,null,null,null,null,null,null,null,null,10,449,{"$f":"IF($O$4>0,(SMALL(($M76,$U76,$AC76),1)),\"0\")","v":0},null,null,null,10,449]
[null,"810822FK","Carola Kral","Fearless","ZZZ","Hoeve Westland Ruiters, RV.",null,232,"228,5",460.5,null,null,{"$f":"VLOOKUP(N77,Blad1!A:C,2,0)","v":10},7,null,null,null,0,null,null,0,99,null,null,null,0,null,null,null,null,null,null,null,null,null,null,null,null,null,null,null,null,null,null,null,null,null,null,null,null,null,null,null,null,10,460.5,{"$f":"IF($O$4>0,(SMALL(($M77,$U77,$AC77),1)),\"0\")","v":0},null,null,null,10,460.5]
[null,"836481DW","Steve Van der Woude","Dasookwat","ZZZ","Vrije Passage (HRV), RV.",null,"231,5","226,5",458,null,null,{"$f":"VLOOKUP(N78,Blad1!A:C,2,0)","v":8},9,null,null,null,0,null,null,0,99,null,null,null,0,null,null,null,null,null,null,null,null,null,null,null,null,null,null,null,null,null,null,null,null,null,null,null,null,null,null,null,null,8,458,{"$f":"IF($O$4>0,(SMALL(($M78,$U78,$AC78),1)),\"0\")","v":0},null,null,null,8,458]
[null,"500798WL","Roel Van Lenthe","Watouche","ZZZ","Nieuwleusen, RV.",null,null,null,0,null,null,0,99,null,"225,5","206,5",432,null,null,{"$f":"VLOOKUP(V79,Blad1!A:C,2,0)","v":5},12,null,null,null,0,null,null,null,null,null,null,null,null,null,null,null,null,null,null,null,null,null,null,null,null,null,null,null,null,null,null,null,null,5,432,{"$f":"IF($O$4>0,(SMALL(($M79,$U79,$AC79),1)),\"0\")","v":0},null,null,null,5,432]
[null,"755161GN","Jeanine Nieuwenhuis","Great Lady TC","ZZZ","Oud-beijerland, RV.",null,220,"220,5",440.5,null,null,{"$f":"VLOOKUP(N80,[1]Blad1!A:C,2,0)","v":5},12,null,null,null,0,null,null,0,99,null,null,null,0,null,null,null,null,null,null,null,null,null,null,null,null,null,null,null,null,null,null,null,null,null,null,null,null,null,null,null,null,5,440.5,{"$f":"IF($O$4>0,(SMALL(($M80,$U80,$AC80),1)),\"0\")","v":0},null,null,null,5,440.5]
[null,"802686ZS","Anouk Slabbers","Zülle","ZZZ","Any Dale, RV.",null,null,null,0,null,null,0,99,null,218,205,423,null,null,{"$f":"VLOOKUP(V81,Blad1!A:C,2,0)","v":4},13,null,null,null,0,null,null,null,null,null,null,null,null,null,null,null,null,null,null,null,null,null,null,null,null,null,null,null,null,null,null,null,null,4,423,{"$f":"IF($O$4>0,(SMALL(($M81,$U81,$AC81),1)),\"0\")","v":0},null,null,null,4,423]
[null,"554558SI","Janet Yntema","Sybrich Fan 'e Koai","ZZZ","Ruterwille, RV.",null,199,205,404,null,null,{"$f":"VLOOKUP(N82,Blad1!A:C,2,0)","v":4},13,null,null,null,0,null,null,0,99,null,null,null,0,null,null,null,null,null,null,null,null,null,null,null,null,null,null,null,null,null,null,null,null,null,null,null,null,null,null,null,null,4,404,{"$f":"IF($O$4>0,(SMALL(($M82,$U82,$AC82),1)),\"0\")","v":0},null,null,null,4,404]
[null,"785359TA","Elles Van Asseldonk","Tjello","ZZZ","Hubertus, RV.",null,224.5,225.5,450,null,null,{"$f":"VLOOKUP(N83,Blad1!A:C,2,0)","v":3},14,1,0,0,0,null,null,0,99,null,null,null,0,null,null,null,null,null,null,null,null,null,null,null,null,null,null,null,null,null,null,null,null,null,null,null,null,null,null,null,null,3,450,{"$f":"IF($O$4>0,(SMALL(($M83,$U83,$AC83),1)),\"0\")","v":0},null,null,null,3,450]
[null,"783801ZV","Serena Vergunst","Zigeuner","ZZZ","Palensteynruiters, RV.",null,206,221,427,null,null,{"$f":"VLOOKUP(N84,Blad1!A:C,2,0)","v":3},14,null,null,null,0,null,null,0,99,null,null,null,0,null,null,null,null,null,null,null,null,null,null,null,null,null,null,null,null,null,null,null,null,null,null,null,null,null,null,null,null,3,427,{"$f":"IF($O$4>0,(SMALL(($M84,$U84,$AC84),1)),\"0\")","v":0},null,null,null,3,427]
[null,"631587AS","Marsha Smits","Actie W","ZZZ","Niop, RV.",null,198,196,394,null,null,{"$f":"VLOOKUP(N85,Blad1!A:C,2,0)","v":3},14,null,null,null,0,null,null,0,99,null,null,null,0,null,null,null,null,null,null,null,null,null,null,null,null,null,null,null,null,null,null,null,null,null,null,null,null,null,null,null,null,3,394,{"$f":"IF($O$4>0,(SMALL(($M85,$U85,$AC85),1)),\"0\")","v":0},null,null,null,3,394]
[null,"546014BJ","Nicole Jurriens","Bas","ZZZ","La Grande, RV.",null,209,"217,5",426.5,null,null,{"$f":"VLOOKUP(N86,Blad1!A:C,2,0)","v":2},15,null,null,null,0,null,null,0,99,null,null,null,0,null,null,null,null,null,null,null,null,null,null,null,null,null,null,null,null,null,null,null,null,null,null,null,null,null,null,null,null,2,426.5,{"$f":"IF($O$4>0,(SMALL(($M86,$U86,$AC86),1)),\"0\")","v":0},null,null,null,2,426.5]
[null,"666881EB","Ina Beuving","Erona Utopia","ZZZ","Exloo, RV.",null,189.5,195.5,385,null,null,{"$f":"VLOOKUP(N87,Blad1!A:C,2,0)","v":2},15,null,null,null,0,null,null,0,99,null,null,null,0,null,null,null,null,null,null,null,null,null,null,null,null,null,null,null,null,null,null,null,null,null,null,null,null,null,null,null,null,2,385,{"$f":"IF($O$4>0,(SMALL(($M87,$U87,$AC87),1)),\"0\")","v":0},null,null,null,2,385]
[null,"609752DE","Fiona Van Es","Donna","ZZZ","Gelderse Boys, RV.",null,null,null,0,null,null,0,99,1,"202,5",218,420.5,null,null,{"$f":"VLOOKUP(V88,Blad1!A:C,2,0)","v":1},16,null,null,null,0,null,null,null,null,null,null,null,null,null,null,null,null,null,null,null,null,null,null,null,null,null,null,null,null,null,null,null,null,1,420.5,{"$f":"IF($O$4>0,(SMALL(($M88,$U88,$AC88),1)),\"0\")","v":0},null,null,null,1,420.5]
[null,"718954EW","Maike Wiebelitz","Empire","ZZZ","Hoeve Westland Ruiters, RV.",null,null,null,0,null,null,0,99,1,201,"214,5",415.5,null,null,{"$f":"VLOOKUP(V89,Blad1!A:C,2,0)","v":1},16,null,null,null,0,null,null,null,null,null,null,null,null,null,null,null,null,null,null,null,null,null,null,null,null,null,null,null,null,null,null,null,null,1,415.5,{"$f":"IF($O$4>0,(SMALL(($M89,$U89,$AC89),1)),\"0\")","v":0},null,null,null,1,415.5]
[null,"545322BL","Saskia Lacroix","Berlita","ZZZ","Nootdorp, RV.",null,211,212,423,null,null,{"$f":"VLOOKUP(N90,Blad1!A:C,2,0)","v":1},16,null,null,null,0,null,null,0,99,null,null,null,0,null,null,null,null,null,null,null,null,null,null,null,null,null,null,null,null,null,null,null,null,null,null,null,null,null,null,null,null,1,423,{"$f":"IF($O$4>0,(SMALL(($M90,$U90,$AC90),1)),\"0\")","v":0},null,null,null,1,423]
[null,"781510FO","Marlies Ottevanger","Fernando","ZZZ","Westland, RV.",null,217.5,231.5,449,null,null,{"$f":"VLOOKUP(N91,Blad1!A:C,2,0)","v":1},16,null,null,null,0,null,null,0,99,null,null,null,0,null,null,null,null,null,null,null,null,null,null,null,null,null,null,null,null,null,null,null,null,null,null,null,null,null,null,null,null,1,449,{"$f":"IF($O$4>0,(SMALL(($M91,$U91,$AC91),1)),\"0\")","v":0},null,null,null,1,449]
[null,"738716DM","Simone Meilink","Delana T","ZZZ","Spijkerboor (RSV), RV.",null,182,187,369,null,null,{"$f":"VLOOKUP(N92,Blad1!A:C,2,0)","v":1},16,null,null,null,0,null,null,0,99,null,null,null,0,null,null,null,null,null,null,null,null,null,null,null,null,null,null,null,null,null,null,null,null,null,null,null,null,null,null,null,null,1,369,{"$f":"IF($O$4>0,(SMALL(($M92,$U92,$AC92),1)),\"0\")","v":0},null,null,null,1,369]
[null,"781458AS","Marijke van Schaik","Aramis","ZZZ","Ronde Venen, RV.",null,201.5,194.5,396,null,null,{"$f":"VLOOKUP(N93,Blad1!A:C,2,0)","v":0},31,null,null,null,0,null,null,0,99,null,null,null,0,null,null,null,null,null,null,null,null,null,null,null,null,null,null,null,null,null,null,null,null,null,null,null,null,null,null,null,null,0,396,{"$f":"IF($O$4>0,(SMALL(($M93,$U93,$AC93),1)),\"0\")","v":0},null,null,null,0,396]
[null,"817432GK","Danielle Keur","Forever","ZZZ","Noord-Hollandse, RV.",null,204.5,214.5,419,null,null,{"$f":"VLOOKUP(N94,Blad1!A:C,2,0)","v":0},30,null,null,null,0,null,null,0,99,null,null,null,0,null,null,null,null,null,null,null,null,null,null,null,null,null,null,null,null,null,null,null,null,null,null,null,null,null,null,null,null,0,419,{"$f":"IF($O$4>0,(SMALL(($M94,$U94,$AC94),1)),\"0\")","v":0},null,null,null,0,419]
[null,"815984FN","Albert Nap","Future","ZZZ","Hoge Devel (RSV), RV.",null,200.5,226.5,427,null,null,{"$f":"VLOOKUP(N95,Blad1!A:C,2,0)","v":0},29,null,null,null,0,null,null,0,99,null,null,null,0,null,null,null,null,null,null,null,null,null,null,null,null,null,null,null,null,null,null,null,null,null,null,null,null,null,null,null,null,0,427,{"$f":"IF($O$4>0,(SMALL(($M95,$U95,$AC95),1)),\"0\")","v":0},null,null,null,0,427]
[null,"838080DV","Evert Veenstra","Divaldi","ZZZ","Zoetermeer, RV.",null,"192,5",180,372.5,null,null,{"$f":"VLOOKUP(N96,Blad1!A:C,2,0)","v":0},28,null,null,null,0,null,null,0,99,null,null,null,0,null,null,null,null,null,null,null,null,null,null,null,null,null,null,null,null,null,null,null,null,null,null,null,null,null,null,null,null,0,372.5,{"$f":"IF($O$4>0,(SMALL(($M96,$U96,$AC96),1)),\"0\")","v":0},null,null,null,0,372.5]
[null,"602072DS","Isabelle Spinhoven","Domingo","ZZZ","Plantageruiters, RV. De",null,201,191,392,null,null,{"$f":"VLOOKUP(N97,Blad1!A:C,2,0)","v":0},27,null,null,null,0,null,null,0,99,null,null,null,0,null,null,null,null,null,null,null,null,null,null,null,null,null,null,null,null,null,null,null,null,null,null,null,null,null,null,null,null,0,392,{"$f":"IF($O$4>0,(SMALL(($M97,$U97,$AC97),1)),\"0\")","v":0},null,null,null,0,392]
[null,"738833DM","Merel Massop","MS Duchateau","ZZZ","Voornruiters, RV. De",null,210.5,223,433.5,null,null,{"$f":"VLOOKUP(N98,Blad1!A:C,2,0)","v":0},27,null,null,null,0,null,null,0,99,null,null,null,0,null,null,null,null,null,null,null,null,null,null,null,null,null,null,null,null,null,null,null,null,null,null,null,null,null,null,null,null,0,433.5,{"$f":"IF($O$4>0,(SMALL(($M98,$U98,$AC98),1)),\"0\")","v":0},null,null,null,0,433.5]
[null,"569901ZA","Merel Ahles","Zadinsky","ZZZ","Prestige Ruiters, RV. De",null,203,201,404,null,null,{"$f":"VLOOKUP(N99,Blad1!A:C,2,0)","v":0},26,null,null,null,0,null,null,0,99,null,null,null,0,null,null,null,null,null,null,null,null,null,null,null,null,null,null,null,null,null,null,null,null,null,null,null,null,null,null,null,null,0,404,{"$f":"IF($O$4>0,(SMALL(($M99,$U99,$AC99),1)),\"0\")","v":0},null,null,null,0,404]
[null,"402089VT","Jasmijn Timmermans","Vaduz Jt","ZZZ","Duyksehoef, RV.",null,216.5,222,438.5,null,null,{"$f":"VLOOKUP(N100,Blad1!A:C,2,0)","v":0},25,null,null,null,0,null,null,0,99,null,null,null,0,null,null,null,null,null,null,null,null,null,null,null,null,null,null,null,null,null,null,null,null,null,null,null,null,null,null,null,null,0,438.5,{"$f":"IF($O$4>0,(SMALL(($M100,$U100,$AC100),1)),\"0\")","v":0},null,null,null,0,438.5]
[null,"687931HM","Sharina Mandemakers","Superhorse Hawar W.","ZZZ","Bommelerwaard, RV. De",null,217,222,439,null,null,{"$f":"VLOOKUP(N101,Blad1!A:C,2,0)","v":0},24,null,null,null,0,null,null,0,99,null,null,null,0,null,null,null,null,null,null,null,null,null,null,null,null,null,null,null,null,null,null,null,null,null,null,null,null,null,null,null,null,0,439,{"$f":"IF($O$4>0,(SMALL(($M101,$U101,$AC101),1)),\"0\")","v":0},null,null,null,0,439]
[null,"799960FK","Mariëtte Kunz","Daylight","ZZZ","s-Gravenhof, RV.",null,201,"208,5",409.5,null,null,{"$f":"VLOOKUP(N102,Blad1!A:C,2,0)","v":0},24,null,null,null,0,null,null,0,99,null,null,null,0,null,null,null,null,null,null,null,null,null,null,null,null,null,null,null,null,null,null,null,null,null,null,null,null,null,null,null,null,0,409.5,{"$f":"IF($O$4>0,(SMALL(($M102,$U102,$AC102),1)),\"0\")","v":0},null,null,null,0,409.5]
[null,"640166DL","Daphne Van Leeuwen","Salve Daijiro","ZZZ","Jeanne D'arc, RV.",null,206,"211,5",417.5,null,null,{"$f":"VLOOKUP(N103,Blad1!A:C,2,0)","v":0},23,null,null,null,0,null,null,0,99,null,null,null,0,null,null,null,null,null,null,null,null,null,null,null,null,null,null,null,null,null,null,null,null,null,null,null,null,null,null,null,null,0,417.5,{"$f":"IF($O$4>0,(SMALL(($M103,$U103,$AC103),1)),\"0\")","v":0},null,null,null,0,417.5]
[null,"552527BB","Monique Byl","Bing","ZZZ","Noblesse, RV.",null,null,null,0,null,null,0,99,1,"172,5",179,351.5,null,null,{"$f":"VLOOKUP(V104,Blad1!A:C,2,0)","v":0},22,null,null,null,0,null,null,null,null,null,null,null,null,null,null,null,null,null,null,null,null,null,null,null,null,null,null,null,null,null,null,null,null,0,351.5,{"$f":"IF($O$4>0,(SMALL(($M104,$U104,$AC104),1)),\"0\")","v":0},null,null,null,0,351.5]
[null,"789404DR","Maikel De Reuver","Don Sonador","ZZZ","Heer Jan's Ruiters, RV.",null,null,null,{"$f":"H105+I105","v":0},null,null,0,99,1,"189,5","192,5",{"$f":"P105+Q105","v":382},null,null,{"$f":"VLOOKUP(V105,Blad1!A:C,2,0)","v":0},21,null,null,null,{"$f":"X105+Y105","v":0},null,null,null,null,null,null,null,null,null,null,null,null,null,null,null,null,null,null,null,null,null,null,null,null,null,null,null,null,{"$f":"M105+U105+AC105+AL105+AT105+BB105","v":0},{"$f":"J105+R105+Z105+AH105+AP105+AX105","v":382},{"$f":"IF($O$4>0,(SMALL(($M105,$U105,$AC105),1)),\"0\")","v":0},null,null,null,{"$f":"BC105-BE105-BF105","v":0},{"$f":"BD105-BG105-BH105","v":382}]
[null,"547286TW","Edith De Wild","Teunis Atsje","ZZZ","Hippos, RV.",null,null,null,0,null,null,0,99,1,196,"202,5",398.5,null,null,{"$f":"VLOOKUP(V106,Blad1!A:C,2,0)","v":0},20,null,null,null,0,null,null,null,null,null,null,null,null,null,null,null,null,null,null,null,null,null,null,null,null,null,null,null,null,null,null,null,null,0,398.5,{"$f":"IF($O$4>0,(SMALL(($M106,$U106,$AC106),1)),\"0\")","v":0},null,null,null,0,398.5]
[null,"583609KR","Esther Van Rijswijk","Kirow","ZZZ","Delflandruiters, RV.",null,null,null,0,null,null,0,99,1,200,198,398,null,null,{"$f":"VLOOKUP(V107,Blad1!A:C,2,0)","v":0},20,null,null,null,0,null,null,null,null,null,null,null,null,null,null,null,null,null,null,null,null,null,null,null,null,null,null,null,null,null,null,null,null,0,398,{"$f":"IF($O$4>0,(SMALL(($M107,$U107,$AC107),1)),\"0\")","v":0},null,null,null,0,398]
[null,"719404BR","Marrit Reusien","Brinkhof's Filius Apache","ZZZ","Dwingeloo, RV.",null,null,null,0,null,null,0,99,null,205,204,409,null,null,{"$f":"VLOOKUP(V108,Blad1!A:C,2,0)","v":0},20,null,null,null,0,null,null,null,null,null,null,null,null,null,null,null,null,null,null,null,null,null,null,null,null,null,null,null,null,null,null,null,null,0,409,{"$f":"IF($O$4>0,(SMALL(($M108,$U108,$AC108),1)),\"0\")","v":0},null,null,null,0,409]
[null,"668140EK","Leonie Van der Kooij","Egbert","ZZZ","Hippische Sportvereniging Prometheus",null,"205,5","216,5",422,null,null,{"$f":"VLOOKUP(N109,Blad1!A:C,2,0)","v":0},20,null,null,null,0,null,null,0,99,null,null,null,0,null,null,null,null,null,null,null,null,null,null,null,null,null,null,null,null,null,null,null,null,null,null,null,null,null,null,null,null,0,422,{"$f":"IF($O$4>0,(SMALL(($M109,$U109,$AC109),1)),\"0\")","v":0},null,null,null,0,422]
[null,"584864CM","Deborah Van Mook","Calvin Klein","ZZZ","Eendracht, RV.",null,214.5,229.5,444,null,null,{"$f":"VLOOKUP(N110,Blad1!A:C,2,0)","v":0},20,null,null,null,0,null,null,0,99,null,null,null,0,null,null,null,null,null,null,null,null,null,null,null,null,null,null,null,null,null,null,null,null,null,null,null,null,null,null,null,null,0,444,{"$f":"IF($O$4>0,(SMALL(($M110,$U110,$AC110),1)),\"0\")","v":0},null,null,null,0,444]
[null,"677187DH","Laila Hanzouli","Disco Danaë","ZZZ","t Einde, RV.",null,null,null,0,null,null,0,99,1,"200,5","207,5",408,null,null,{"$f":"VLOOKUP(V111,Blad1!A:C,2,0)","v":0},19,null,null,null,0,null,null,null,null,null,null,null,null,null,null,null,null,null,null,null,null,null,null,null,null,null,null,null,null,null,null,null,null,0,408,{"$f":"IF($O$4>0,(SMALL(($M111,$U111,$AC111),1)),\"0\")","v":0},null,null,null,0,408]
[null,"412748TT","Sanne Tazelaar","Totilas","ZZZ","Hoeve Westland Ruiters, RV.",null,206,"216,5",422.5,null,null,{"$f":"VLOOKUP(N112,Blad1!A:C,2,0)","v":0},19,null,null,null,0,null,null,0,99,null,null,null,0,null,null,null,null,null,null,null,null,null,null,null,null,null,null,null,null,null,null,null,null,null,null,null,null,null,null,null,null,0,422.5,{"$f":"IF($O$4>0,(SMALL(($M112,$U112,$AC112),1)),\"0\")","v":0},null,null,null,0,422.5]
[null,"820956ZV","Michelle Vacquier","Zhara - Obertje","ZZZ","Sint Michaël (RSV), RV.",null,221,223,444,null,null,{"$f":"VLOOKUP(N113,Blad1!A:C,2,0)","v":0},19,null,null,null,0,null,null,0,99,null,null,null,0,null,null,null,null,null,null,null,null,null,null,null,null,null,null,null,null,null,null,null,null,null,null,null,null,null,null,null,null,0,444,{"$f":"IF($O$4>0,(SMALL(($M113,$U113,$AC113),1)),\"0\")","v":0},null,null,null,0,444]
[null,"753646EB","Michelle Van Berkum","Enjoy","ZZZ","Steegh, RV. De",null,null,null,0,null,null,0,99,1,"200,5","205,5",406,null,null,{"$f":"VLOOKUP(V114,Blad1!A:C,2,0)","v":0},18,null,null,null,0,null,null,null,null,null,null,null,null,null,null,null,null,null,null,null,null,null,null,null,null,null,null,null,null,null,null,null,null,0,406,{"$f":"IF($O$4>0,(SMALL(($M114,$U114,$AC114),1)),\"0\")","v":0},null,null,null,0,406]
[null,"756368LV","Lisanne Veenje","Loadewyk 431","ZZZ","Nienoord, RV.",null,null,null,0,null,null,0,99,null,205,207,412,null,null,{"$f":"VLOOKUP(V115,Blad1!A:C,2,0)","v":0},18,null,null,null,0,null,null,null,null,null,null,null,null,null,null,null,null,null,null,null,null,null,null,null,null,null,null,null,null,null,null,null,null,0,412,{"$f":"IF($O$4>0,(SMALL(($M115,$U115,$AC115),1)),\"0\")","v":0},null,null,null,0,412]
[null,"598025CM","Latoya Van der Meer","Cheyenne","ZZZ","s-Gravenhof, RV.",null,210,"212,5",422.5,null,null,{"$f":"VLOOKUP(N116,Blad1!A:C,2,0)","v":0},18,null,null,null,0,null,null,0,99,null,null,null,0,null,null,null,null,null,null,null,null,null,null,null,null,null,null,null,null,null,null,null,null,null,null,null,null,null,null,null,null,0,422.5,{"$f":"IF($O$4>0,(SMALL(($M116,$U116,$AC116),1)),\"0\")","v":0},null,null,null,0,422.5]
[null,"655544EG","Manon Van 't Goor","Emanda","ZZZ","Sint Anthonis (Martinus), RV.",null,null,null,0,null,null,0,99,1,"203,5",203,406.5,null,null,{"$f":"VLOOKUP(V117,Blad1!A:C,2,0)","v":0},17,null,null,null,0,null,null,null,null,null,null,null,null,null,null,null,null,null,null,null,null,null,null,null,null,null,null,null,null,null,null,null,null,0,406.5,{"$f":"IF($O$4>0,(SMALL(($M117,$U117,$AC117),1)),\"0\")","v":0},null,null,null,0,406.5]
[null,"660101DH","Milou De Haan","De Keizer","ZZZ","Aa-ruiters, RV.",null,null,null,0,null,null,0,99,1,198,216,414,null,null,{"$f":"VLOOKUP(V118,Blad1!A:C,2,0)","v":0},17,null,null,null,0,null,null,null,null,null,null,null,null,null,null,null,null,null,null,null,null,null,null,null,null,null,null,null,null,null,null,null,null,0,414,{"$f":"IF($O$4>0,(SMALL(($M118,$U118,$AC118),1)),\"0\")","v":0},null,null,null,0,414]
[null,"664981SO","Wendy Okkema","Stal Okkema's Eos","ZZZ","Raerderhimrúters, RV.",null,null,null,0,null,null,0,99,null,213,"203,5",416.5,null,null,{"$f":"VLOOKUP(V119,Blad1!A:C,2,0)","v":0},17,null,null,null,0,null,null,null,null,null,null,null,null,null,null,null,null,null,null,null,null,null,null,null,null,null,null,null,null,null,null,null,null,0,416.5,{"$f":"IF($O$4>0,(SMALL(($M119,$U119,$AC119),1)),\"0\")","v":0},null,null,null,0,416.5]

{"sheet":"Lichte Tour","index":2,"n_rows":143,"n_cols":67,"rows_kept":143,"cut":false,"hidden":false,"merged":[[0,0,0,65],[2,0,2,1],[2,2,2,4],[2,5,2,13],[2,14,2,21],[2,22,4,53],[2,54,2,62],[2,64,6,65],[3,0,3,1],[3,2,3,4],[3,5,3,13],[3,14,3,21],[3,54,3,62],[4,0,4,1],[4,2,4,4],[4,5,4,13],[4,14,4,21],[4,54,4,62],[5,0,6,4],[5,6,5,13],[5,14,5,21],[5,22,5,29],[5,30,5,37],[5,46,5,53],[5,54,5,59],[6,6,6,13],[6,14,6,21],[6,22,6,29],[6,30,6,37],[6,38,6,45],[6,46,6,53],[5,38,5,45]]}
["Selectie uitslagen"]
[null,null,1,{"$f":"FLOOR((C2+3)/4,1)","v":1},null,null,null,192,190,{"$f":"H2+I2","v":382},null,null,null,1,null,193,193,{"$f":"P2+Q2","v":386},null,null,null,2,null,198,198,{"$f":"X2+Y2","v":396},null,null,null,3,null,177,177,{"$f":"AF2+AG2","v":354},null,null,null,4,null,178,178,{"$f":"AN2+AO2","v":356},null,null,null,5,null,179,179,{"$f":"AV2+AW2","v":358},null,null,null,6,{"$f":"N2+V2+AD2+AL2+AT2+BB2","v":21},{"$f":"J2+R2+Z2+AH2+AP2+AX2","v":2232},{"$f":"IF($O$4>0,(LARGE(($N2,$V2,$AD2,$AL2,$AT2,$BB2),1)),\"0\")","v":6},{"$f":"IF($O$4>0,(LARGE(($N2,$V2,$AD2,$AL2,$AT2,$BB2),2)),\"0\")","v":5},354,354,{"$f":"BC2-BE2-BF2","v":10},{"$f":"BD2-BG2-BH2","v":1524}]
["Kring:",null,{"$f":"Instellingen!B3","v":"Selectie Subtop"},null,null,"Aantal afvaardiging Indoorkampioenschappen:",null,null,null,null,null,null,null,null,20,null,null,null,null,null,null,null,null,null,null,null,null,null,null,null,null,null,null,null,null,null,null,null,null,null,null,null,null,null,null,null,null,null,null,null,null,null,null,null,"Aantal wedstrijden:",null,null,null,null,null,null,null,null,{"$f":"Instellingen!B6","v":3}]
["Klasse:",null,"LT",null,null,"Aantal afval resultaten:",null,null,null,null,null,null,null,null,{"$f":"Instellingen!B7","v":1}]
["Cat.:",null,null,null,null,"Plaatsingspunten niet gestart:",null,null,null,null,null,null,null,null,{"$f":"Instellingen!B5","v":99},null,null,null,null,null,null,null,null,null,null,null,null,null,null,null,null,null,null,null,null,null,null,null,null,null,null,null,null,null,null,null,null,null,null,null,null,null,null,null,"Aantal reserves:",null,null,null,null,null,null,null,null,10]
[null,null,null,null,null,"Lokatie:",{"$f":"Instellingen!B36","v":"Delft/Werkendam/Harich"},null,null,null,null,null,null,null,{"$f":"Instellingen!B37","v":"uden/Emmeloord/Den Hoorn"},null,null,null,null,null,null,null,{"$f":"Instellingen!B38","v":"Nw. en St. Joosland/Boxtel/Bunschoten-Spakenburg"},null,null,null,null,null,null,null,{"$f":"Instellingen!B39","v":" "},null,null,null,null,null,null,null,{"$f":"Instellingen!B40","v":" "},null,null,null,null,null,null,null,{"$f":"Instellingen!B41","v":" "},null,null,null,null,null,null,null,"Dressuur",null,null,null,null,null,"Pnt. 60% regel",null,null,228]
[null,null,null,null,null,"Datum:",{"$f":"Instellingen!C36","v":"18 & 19 -11-2017"},null,null,null,null,null,null,null,{"$f":"Instellingen!C37","v":"16 & 17 -12 -2017"},null,null,null,null,null,null,null,{"$f":"Instellingen!C38","v":"20 en 21-1-2018"},null,null,null,null,null,null,null,{"$f":"Instellingen!C39","v":" "},null,null,null,null,null,null,null,{"$f":"Instellingen!C40","v":" "},null,null,null,null,null,null,null,{"$f":"Instellingen!C41","v":" "},null,null,null,null,null,null,null,"Tot.","Tot.","afval","afval","afval","afval","Beste","Beste"]
["Pl.","Comb.nr.","Ruiter/amazone","Paard/pony","kl.","vereniging","Ring","pnt.C","pnt.H","pnt.tot","ex 1","ex 2","pl.","pl.p.","Ring","pnt.C","pnt.H","pnt.tot.","ex 1","ex 2","pl.","pl.p.","Ring","pnt.C","pnt. H","pnt.tot.","ex 1","ex 2","pl.","pl.p.","Ring","pnt.C","pnt.H","pnt.tot.","ex 1","ex 2","pl.","pl.p.","Ring","pnt.C","pnt.H","pnt.tot.","ex 1","ex 2","pl.","pl.p.","Ring","pnt.C","pnt.H","pnt.tot.","ex 1","ex 2","pl.","pl.p.","pl.pnt","punten","pl.pnt","pl.pnt","punten","punten","pl.pnt","punten","Afv.","Res.","Afv. Regio","opmerking"]
[null,"725894RL","Robin Van Lierop","Finja","LT","Ewijk, RV.",null,"280,5",275,{"$f":"H9+I9","v":555.5},null,null,{"$f":"VLOOKUP(N9,Blad1!A:C,2,0)","v":17},2,1,282,283,{"$f":"P9+Q9","v":565},null,null,{"$f":"VLOOKUP(V9,Blad1!A:C,2,0)","v":20},1,2,251,253,{"$f":"X9+Y9","v":504},null,null,{"$f":"VLOOKUP(AD9,Blad1!A:C,2,0)","v":20},1,null,null,null,null,null,null,null,null,null,null,null,null,null,null,null,null,null,null,null,null,null,null,null,null,{"$f":"M9+U9+AC9","v":57},{"$f":"J9+R9+Z9+AH9+AP9+AX9","v":1624.5},{"$f":"IF($O$4>0,(SMALL(($M9,$U9,$AC9,$AL9,$AT9,$BB9),1)),\"0\")","v":17},null,null,null,{"$f":"BC9-BE9-BF9","v":40},{"$f":"BD9-BG9-BH9","v":1624.5},1,null,null,null,{"$f":"IF(COUNT(M9,U9,AC9)>1,\"ja\",\"nee\")","v":"ja"}]
[null,"765172FC","Adelinde Cornelissen","Fleau de Baian","LT","Stroomruiters, RV.",null,287,275,562,null,null,{"$f":"VLOOKUP(N10,Blad1!A:C,2,0)","v":20},1,null,290,279,569,null,null,{"$f":"VLOOKUP(V10,Blad1!A:C,2,0)","v":20},1,3,"257,5","248,5",506,null,null,{"$f":"VLOOKUP(AD10,Blad1!A:C,2,0)","v":20},1,null,null,null,null,null,null,null,null,null,null,null,null,null,null,null,null,null,null,null,null,null,null,null,null,60,1637,{"$f":"IF($O$4>0,(SMALL(($M10,$U10,$AC10,$AL10,$AT10,$BB10),1)),\"0\")","v":20},null,null,null,40,1637,2,null,null,null,{"$f":"IF(COUNT(M10,U10,AC10)>1,\"ja\",\"nee\")","v":"ja"}]
[null,"660566EC","Ilse Van Cranenbroek","Emerald S","LT","Molenhorst, RV. De",null,"280,5",284,564.5,null,null,{"$f":"VLOOKUP(N11,Blad1!A:C,2,0)","v":20},1,1,"280,5",284,564.5,null,null,{"$f":"VLOOKUP(V11,Blad1!A:C,2,0)","v":17},2,null,null,null,0,null,null,0,99,null,null,null,null,null,null,null,null,null,null,null,null,null,null,null,null,null,null,null,null,null,null,null,null,37,1129,{"$f":"IF($O$4>0,(SMALL(($M11,$U11,$AC11,$AL11,$AT11,$BB11),1)),\"0\")","v":0},null,null,null,37,1129,3,null,null,null,"ja"]
[null,"808868DH","Danielle Heijkoop","Daula II","LT","Zwethruiters, RV.",null,"269,5","272,5",542,null,null,{"$f":"VLOOKUP(N12,Blad1!A:C,2,0)","v":17},2,1,"269,5",269,538.5,null,null,{"$f":"VLOOKUP(V12,Blad1!A:C,2,0)","v":20},1,null,null,null,0,null,null,0,99,null,null,null,null,null,null,null,null,null,null,null,null,null,null,null,null,null,null,null,null,null,null,null,null,37,1080.5,{"$f":"IF($O$4>0,(SMALL(($M12,$U12,$AC12,$AL12,$AT12,$BB12),1)),\"0\")","v":0},null,null,null,37,1080.5,4,null,null,null,"ja"]
[null,"783238FV","Mara De Vries","Farzana G","LT","Biesboschruiters, RV.",null,269,"275,5",544.5,null,null,{"$f":"VLOOKUP(N13,Blad1!A:C,2,0)","v":15},3,1,261,256,517,null,null,{"$f":"VLOOKUP(V13,Blad1!A:C,2,0)","v":11},6,1,"262,5",248,510.5,null,null,{"$f":"VLOOKUP(AD13,Blad1!A:C,2,0)","v":20},1,null,null,null,null,null,null,null,null,null,null,null,null,null,null,null,null,null,null,null,null,null,null,null,null,46,1572,{"$f":"IF($O$4>0,(SMALL(($M13,$U13,$AC13,$AL13,$AT13,$BB13),1)),\"0\")","v":11},null,null,null,35,1572,5,null,null,null,"ja"]
[null,"743085EK","Jasmien De Koeyer","Esperanza","LT","Oud-beijerland, RV.",null,264,"273,5",537.5,null,null,{"$f":"VLOOKUP(N14,Blad1!A:C,2,0)","v":12},5,1,268,"269,5",537.5,null,null,{"$f":"VLOOKUP(V14,Blad1!A:C,2,0)","v":17},2,1,251,"243,5",494.5,null,null,{"$f":"VLOOKUP(AD14,Blad1!A:C,2,0)","v":17},2,null,null,null,null,null,null,null,null,null,null,null,null,null,null,null,null,null,null,null,null,null,null,null,null,46,1569.5,{"$f":"IF($O$4>0,(SMALL(($M14,$U14,$AC14,$AL14,$AT14,$BB14),1)),\"0\")","v":12},null,null,null,34,1569.5,6,null,null,null,"ja"]
[null,"675384SS","Jennifer Sekreve","San Siro","LT","Oost-Veluwse R.J.V., RV.",null,"271,5",284,555.5,null,null,{"$f":"VLOOKUP(N15,Blad1!A:C,2,0)","v":17},2,null,"273,5",272,545.5,null,null,{"$f":"VLOOKUP(V15,Blad1!A:C,2,0)","v":17},2,null,null,null,0,null,null,0,99,null,null,null,null,null,null,null,null,null,null,null,null,null,null,null,null,null,null,null,null,null,null,null,null,34,1101,{"$f":"IF($O$4>0,(SMALL(($M15,$U15,$AC15,$AL15,$AT15,$BB15),1)),\"0\")","v":0},null,null,null,34,1101,7,null,null,null,"ja"]
[null,"807344DV","Mara De Vries","Dornenstern","LT","Biesboschruiters, RV.",null,null,null,0,null,null,0,99,1,"264,5","264,5",529,null,null,{"$f":"VLOOKUP(V16,Blad1!A:C,2,0)","v":15},3,2,"246,5","247,5",494,null,null,{"$f":"VLOOKUP(AD16,Blad1!A:C,2,0)","v":17},2,null,null,null,null,null,null,null,null,null,null,null,null,null,null,null,null,null,null,null,null,null,null,null,null,32,1023,{"$f":"IF($O$4>0,(SMALL(($M16,$U16,$AC16,$AL16,$AT16,$BB16),1)),\"0\")","v":0},null,null,null,32,1023,8,null,null,null,"ja"]
[null,"805186DS","Diederik Van Silfhout","Dahlhoff","LT","Valouwe, RV.",null,null,null,0,null,null,0,99,1,282,282,564,null,null,{"$f":"VLOOKUP(V17,Blad1!A:C,2,0)","v":15},3,3,"252,5",249,501.5,null,null,{"$f":"VLOOKUP(AD17,Blad1!A:C,2,0)","v":17},2,null,null,null,null,null,null,null,null,null,null,null,null,null,null,null,null,null,null,null,null,null,null,null,null,32,1065.5,{"$f":"IF($O$4>0,(SMALL(($M17,$U17,$AC17,$AL17,$AT17,$BB17),1)),\"0\")","v":0},null,null,null,32,1065.5,9,null,null,null,"ja"]
[null,"703415FR","Veronique Roerink","Flanell","LT","Drentse Hooglanden, RV.",null,275,261,536,null,null,{"$f":"VLOOKUP(N18,Blad1!A:C,2,0)","v":15},3,null,"269,5","251,5",521,null,null,{"$f":"VLOOKUP(V18,Blad1!A:C,2,0)","v":15},3,null,null,null,0,null,null,0,99,null,null,null,null,null,null,null,null,null,null,null,null,null,null,null,null,null,null,null,null,null,null,null,null,30,1057,{"$f":"IF($O$4>0,(SMALL(($M18,$U18,$AC18,$AL18,$AT18,$BB18),1)),\"0\")","v":0},null,null,null,30,1057,10,null,null,null,"ja"]
[null,"732828EB","Sandy Van Boxmeer - Westerhuis","Earth Wind and Fire","LT","Hoefslag, RV.",null,"267,5","268,5",536,null,null,{"$f":"VLOOKUP(N19,Blad1!A:C,2,0)","v":11},6,1,266,271,537,null,null,{"$f":"VLOOKUP(V19,Blad1!A:C,2,0)","v":12},5,2,"242,5",240,482.5,null,null,{"$f":"VLOOKUP(AD19,Blad1!A:C,2,0)","v":15},3,null,null,null,null,null,null,null,null,null,null,null,null,null,null,null,null,null,null,null,null,null,null,null,null,38,1555.5,{"$f":"IF($O$4>0,(SMALL(($M19,$U19,$AC19,$AL19,$AT19,$BB19),1)),\"0\")","v":11},null,null,null,27,1555.5,11,null,null,null,"ja"]
[null,"829992EZ","Thamar Zweistra","Erina","LT","Hexagon B.V., Stal",null,"264,5",259,523.5,null,null,{"$f":"VLOOKUP(N20,Blad1!A:C,2,0)","v":15},3,null,256,"260,5",516.5,null,null,{"$f":"VLOOKUP(V20,Blad1!A:C,2,0)","v":12},5,1,244,"222,5",466.5,null,null,{"$f":"VLOOKUP(AD20,Blad1!A:C,2,0)","v":12},5,null,null,null,null,null,null,null,null,null,null,null,null,null,null,null,null,null,null,null,null,null,null,null,null,39,1506.5,{"$f":"IF($O$4>0,(SMALL(($M20,$U20,$AC20,$AL20,$AT20,$BB20),1)),\"0\")","v":12},null,null,null,27,1506.5,12,null,null,null,"ja"]
[null,"812924DH","Kebie Van der Heijden","Don Diego","LT","Equinus Stramproy, RV.",null,"255,5",265,520.5,null,null,{"$f":"VLOOKUP(N21,Blad1!A:C,2,0)","v":13},4,1,"276,5","267,5",544,null,null,{"$f":"VLOOKUP(V21,Blad1!A:C,2,0)","v":13},4,2,"227,5","233,5",461,null,null,{"$f":"VLOOKUP(AD21,Blad1!A:C,2,0)","v":11},6,null,null,null,null,null,null,null,null,null,null,null,null,null,null,null,null,null,null,null,null,null,null,null,null,37,1525.5,{"$f":"IF($O$4>0,(SMALL(($M21,$U21,$AC21,$AL21,$AT21,$BB21),1)),\"0\")","v":11},null,null,null,26,1525.5,13,null,null,null,"ja"]
[null,"825460FM","Lynne Maas","Fantastique","LT","t Einde, RV.",null,null,null,0,null,null,0,99,1,266,262,528,null,null,{"$f":"VLOOKUP(V22,Blad1!A:C,2,0)","v":13},4,3,244,"241,5",485.5,null,null,{"$f":"VLOOKUP(AD22,Blad1!A:C,2,0)","v":13},4,null,null,null,null,null,null,null,null,null,null,null,null,null,null,null,null,null,null,null,null,null,null,null,null,26,1013.5,{"$f":"IF($O$4>0,(SMALL(($M22,$U22,$AC22,$AL22,$AT22,$BB22),1)),\"0\")","v":0},null,null,null,26,1013.5,14,null,null,null,"ja"]
[null,"732829FB","Sandy Van Boxmeer - Westerhuis","Figaro","LT","Hoefslag, RV.",null,"269,5","274,5",544,null,null,{"$f":"VLOOKUP(N23,Blad1!A:C,2,0)","v":13},4,1,"270,5",263,533.5,null,null,{"$f":"VLOOKUP(V23,Blad1!A:C,2,0)","v":10},7,2,"227,5",234,461.5,null,null,{"$f":"VLOOKUP(AD23,Blad1!A:C,2,0)","v":12},5,null,null,null,null,null,null,null,null,null,null,null,null,null,null,null,null,null,null,null,null,null,null,null,null,35,1539,{"$f":"IF($O$4>0,(SMALL(($M23,$U23,$AC23,$AL23,$AT23,$BB23),1)),\"0\")","v":10},null,null,null,25,1539,15,null,null,null,"ja"]
[null,"817045EH","Danielle Houtvast","Entertainer","LT","Katsbekruiters, RV.",null,262,270,532,null,null,{"$f":"VLOOKUP(N24,Blad1!A:C,2,0)","v":9},8,1,269,"266,5",535.5,null,null,{"$f":"VLOOKUP(V24,Blad1!A:C,2,0)","v":11},6,1,"243,5","228,5",472,null,null,{"$f":"VLOOKUP(AD24,Blad1!A:C,2,0)","v":13},4,null,null,null,null,null,null,null,null,null,null,null,null,null,null,null,null,null,null,null,null,null,null,null,null,33,1539.5,{"$f":"IF($O$4>0,(SMALL(($M24,$U24,$AC24,$AL24,$AT24,$BB24),1)),\"0\")","v":9},null,null,null,24,1539.5,16,null,null,null,"ja"]
[null,"800786SS","Diederik Van Silfhout","Scenario 2","LT","Valouwe, RV.",null,null,null,0,null,null,0,99,1,261,265,526,null,null,{"$f":"VLOOKUP(V25,Blad1!A:C,2,0)","v":9},8,3,"249,5",241,490.5,null,null,{"$f":"VLOOKUP(AD25,Blad1!A:C,2,0)","v":15},3,null,null,null,null,null,null,null,null,null,null,null,null,null,null,null,null,null,null,null,null,null,null,null,null,24,1016.5,{"$f":"IF($O$4>0,(SMALL(($M25,$U25,$AC25,$AL25,$AT25,$BB25),1)),\"0\")","v":0},null,null,null,24,1016.5,17,null,null,null,"ja"]
[null,"681336DB","Vai Bruntink","Darabel","LT","Neta, RV.",null,null,null,0,null,null,0,99,1,"263,5","257,5",521,null,null,{"$f":"VLOOKUP(V26,Blad1!A:C,2,0)","v":12},5,3,237,238,475,null,null,{"$f":"VLOOKUP(AD26,Blad1!A:C,2,0)","v":12},5,null,null,null,null,null,null,null,null,null,null,null,null,null,null,null,null,null,null,null,null,null,null,null,null,24,996,{"$f":"IF($O$4>0,(SMALL(($M26,$U26,$AC26,$AL26,$AT26,$BB26),1)),\"0\")","v":0},null,null,null,24,996,18,null,null,null,"ja"]
[null,"789483JV","Linda Verwaal","Jakari 2","LT","Horstlinde, RV.",null,251,249,500,null,null,{"$f":"VLOOKUP(N27,Blad1!A:C,2,0)","v":8},9,null,260,258,518,null,null,{"$f":"VLOOKUP(V27,Blad1!A:C,2,0)","v":13},4,3,229,"219,5",448.5,null,null,{"$f":"VLOOKUP(AD27,Blad1!A:C,2,0)","v":10},7,null,null,null,null,null,null,null,null,null,null,null,null,null,null,null,null,null,null,null,null,null,null,null,null,31,1466.5,{"$f":"IF($O$4>0,(SMALL(($M27,$U27,$AC27,$AL27,$AT27,$BB27),1)),\"0\")","v":8},null,null,null,23,1466.5,19,null,null,null,"ja"]
[null,"832061PO","Philip Van Ommen","President's Denver","LT","Hoeve Westland Ruiters, RV.",null,null,null,0,null,null,0,99,1,259,254,513,null,null,{"$f":"VLOOKUP(V28,Blad1!A:C,2,0)","v":10},7,2,232,"237,5",469.5,null,null,{"$f":"VLOOKUP(AD28,Blad1!A:C,2,0)","v":13},4,null,null,null,null,null,null,null,null,null,null,null,null,null,null,null,null,null,null,null,null,null,null,null,null,23,982.5,{"$f":"IF($O$4>0,(SMALL(($M28,$U28,$AC28,$AL28,$AT28,$BB28),1)),\"0\")","v":0},null,null,null,23,982.5,20,null,null,null,"ja"]
[null,"754413OZ","Thamar Zweistra","Oldi 67","LT","Hexagon B.V., Stal",null,260,257,517,null,null,{"$f":"VLOOKUP(N29,Blad1!A:C,2,0)","v":10},7,null,"256,5","253,5",510,null,null,{"$f":"VLOOKUP(V29,Blad1!A:C,2,0)","v":11},6,null,null,null,0,null,null,0,99,null,null,null,null,null,null,null,null,null,null,null,null,null,null,null,null,null,null,null,null,null,null,null,null,21,1027,{"$f":"IF($O$4>0,(SMALL(($M29,$U29,$AC29,$AL29,$AT29,$BB29),1)),\"0\")","v":0},null,null,null,21,1027,null,1,null,null,"ja"]
[null,"666136DE","Eline Van Egmond","Duvall","LT","Zuid-Hollandsche J.V., RV.",null,235,236,471,null,null,{"$f":"VLOOKUP(N30,Blad1!A:C,2,0)","v":0},26,null,255,248,503,null,null,{"$f":"VLOOKUP(V30,Blad1!A:C,2,0)","v":9},8,1,226,"235,5",461.5,null,null,{"$f":"VLOOKUP(AD30,Blad1!A:C,2,0)","v":11},6,null,null,null,null,null,null,null,null,null,null,null,null,null,null,null,null,null,null,null,null,null,null,null,null,20,1435.5,{"$f":"IF($O$4>0,(SMALL(($M30,$U30,$AC30,$AL30,$AT30,$BB30),1)),\"0\")","v":0},null,null,null,20,1435.5,null,2,null,null,"ja"]
[null,"766811DV","Sanne Voets","Demantur N.O.P.","LT","St. Martinus, RV.",null,257,"260,5",517.5,null,null,{"$f":"VLOOKUP(N31,Blad1!A:C,2,0)","v":11},6,1,251,"256,5",507.5,null,null,{"$f":"VLOOKUP(V31,Blad1!A:C,2,0)","v":8},9,2,225,223,448,null,null,{"$f":"VLOOKUP(AD31,Blad1!A:C,2,0)","v":9},8,null,null,null,null,null,null,null,null,null,null,null,null,null,null,null,null,null,null,null,null,null,null,null,null,28,1473,{"$f":"IF($O$4>0,(SMALL(($M31,$U31,$AC31,$AL31,$AT31,$BB31),1)),\"0\")","v":8},null,null,null,20,1473,null,3,null,null,"ja"]
[null,"799045BD","Mark Van de Donk","Belcanto","LT","Srjv Groenendaal, RV.",null,264,"245,5",509.5,null,null,{"$f":"VLOOKUP(N32,Blad1!A:C,2,0)","v":5},12,null,249,252,501,null,null,{"$f":"VLOOKUP(V32,Blad1!A:C,2,0)","v":8},9,3,"234,5","231,5",466,null,null,{"$f":"VLOOKUP(AD32,Blad1!A:C,2,0)","v":11},6,null,null,null,null,null,null,null,null,null,null,null,null,null,null,null,null,null,null,null,null,null,null,null,null,24,1476.5,{"$f":"IF($O$4>0,(SMALL(($M32,$U32,$AC32,$AL32,$AT32,$BB32),1)),\"0\")","v":5},null,null,null,19,1476.5,null,4,null,null,"ja"]
[null,"721458DW","Myrthe Wedda","Diamond Geezer","LT","Voornruiters, RV. De",null,257,262,519,null,null,{"$f":"VLOOKUP(N33,Blad1!A:C,2,0)","v":8},9,1,251,"239,5",490.5,null,null,{"$f":"VLOOKUP(V33,Blad1!A:C,2,0)","v":1},16,3,216,214,430,null,null,{"$f":"VLOOKUP(AD33,Blad1!A:C,2,0)","v":9},8,null,null,null,null,null,null,null,null,null,null,null,null,null,null,null,null,null,null,null,null,null,null,null,null,18,1439.5,{"$f":"IF($O$4>0,(SMALL(($M33,$U33,$AC33,$AL33,$AT33,$BB33),1)),\"0\")","v":1},null,null,null,17,1439.5,null,5,null,null,"ja"]
[null,"644523BB","Vincent Bol","Baltimore","LT","Walcheren, RV.",null,null,null,0,null,null,0,99,1,250,"254,5",504.5,null,null,{"$f":"VLOOKUP(V34,Blad1!A:C,2,0)","v":7},10,1,"231,5","227,5",459,null,null,{"$f":"VLOOKUP(AD34,Blad1!A:C,2,0)","v":10},7,null,null,null,null,null,null,null,null,null,null,null,null,null,null,null,null,null,null,null,null,null,null,null,null,17,963.5,{"$f":"IF($O$4>0,(SMALL(($M34,$U34,$AC34,$AL34,$AT34,$BB34),1)),\"0\")","v":0},null,null,null,17,963.5,null,6,null,null,"ja"]
[null,"640138WS","Jenny Schreven","Wings H","LT","Jasmijnruiters, RV.",null,null,null,0,null,null,0,99,1,262,251,513,null,null,{"$f":"VLOOKUP(V35,Blad1!A:C,2,0)","v":7},10,2,233,228,461,null,null,{"$f":"VLOOKUP(AD35,Blad1!A:C,2,0)","v":10},7,null,null,null,null,null,null,null,null,null,null,null,null,null,null,null,null,null,null,null,null,null,null,null,null,17,974,{"$f":"IF($O$4>0,(SMALL(($M35,$U35,$AC35,$AL35,$AT35,$BB35),1)),\"0\")","v":0},null,null,null,17,974,null,7,null,null,"ja"]
[null,"675747EW","Wilma Wernsen","Estupendo","LT","Srjv Groenendaal, RV.",null,"242,5",266,508.5,null,null,{"$f":"VLOOKUP(N36,Blad1!A:C,2,0)","v":9},8,null,null,null,0,null,null,0,99,2,221,"223,5",444.5,null,null,{"$f":"VLOOKUP(AD36,Blad1!A:C,2,0)","v":7},10,null,null,null,null,null,null,null,null,null,null,null,null,null,null,null,null,null,null,null,null,null,null,null,null,16,953,{"$f":"IF($O$4>0,(SMALL(($M36,$U36,$AC36,$AL36,$AT36,$BB36),1)),\"0\")","v":0},null,null,null,16,953,null,8,null,null,"ja"]
[null,"598024BH","Jacinta Hemmen","Burghgraef","LT","Bathmen e.o., RV.",null,"249,5","245,5",495,null,null,{"$f":"VLOOKUP(N37,Blad1!A:C,2,0)","v":11},6,null,"239,5",236,475.5,null,null,{"$f":"VLOOKUP(V37,Blad1!A:C,2,0)","v":0},18,2,"219,5",213,432.5,null,null,{"$f":"VLOOKUP(AD37,Blad1!A:C,2,0)","v":4},13,null,null,null,null,null,null,null,null,null,null,null,null,null,null,null,null,null,null,null,null,null,null,null,null,15,1403,{"$f":"IF($O$4>0,(SMALL(($M37,$U37,$AC37,$AL37,$AT37,$BB37),1)),\"0\")","v":0},null,null,null,15,1403,null,9,null,null,"ja"]
[null,"639242BR","Gabrielle Röst - de Groot","Bibi Vita","LT","Stroe, RV.",null,"253,5","250,5",504,null,null,{"$f":"VLOOKUP(N38,Blad1!A:C,2,0)","v":1},16,null,"243,5",253,496.5,null,null,{"$f":"VLOOKUP(V38,Blad1!A:C,2,0)","v":7},10,3,212,"212,5",424.5,null,null,{"$f":"VLOOKUP(AD38,Blad1!A:C,2,0)","v":8},9,null,null,null,null,null,null,null,null,null,null,null,null,null,null,null,null,null,null,null,null,null,null,null,null,16,1425,{"$f":"IF($O$4>0,(SMALL(($M38,$U38,$AC38,$AL38,$AT38,$BB38),1)),\"0\")","v":1},null,null,null,15,1425,null,10,null,null,"ja"]
[null,"637625LZ","Laura Zwart","Lumen Dylan","LT","Hynstewille, RV.",null,245,"244,5",489.5,null,null,{"$f":"VLOOKUP(N39,Blad1!A:C,2,0)","v":10},7,null,null,null,0,null,null,0,99,2,"215,5","221,5",437,null,null,{"$f":"VLOOKUP(AD39,Blad1!A:C,2,0)","v":5},12,null,null,null,null,null,null,null,null,null,null,null,null,null,null,null,null,null,null,null,null,null,null,null,null,15,926.5,{"$f":"IF($O$4>0,(SMALL(($M39,$U39,$AC39,$AL39,$AT39,$BB39),1)),\"0\")","v":0},null,null,null,15,926.5,null,null,null,null,"ja"]
[null,"675603EP","Kiki Pols","Esprit","LT","Heuvelruiters, RV.",null,"250,5",232,482.5,null,null,{"$f":"VLOOKUP(N40,Blad1!A:C,2,0)","v":7},10,null,252,"240,5",492.5,null,null,{"$f":"VLOOKUP(V40,Blad1!A:C,2,0)","v":6},11,3,214,208,422,null,null,{"$f":"VLOOKUP(AD40,Blad1!A:C,2,0)","v":6},11,null,null,null,null,null,null,null,null,null,null,null,null,null,null,null,null,null,null,null,null,null,null,null,null,19,1397,{"$f":"IF($O$4>0,(SMALL(($M40,$U40,$AC40,$AL40,$AT40,$BB40),1)),\"0\")","v":6},null,null,null,13,1397,null,null,null,null,"ja"]
[null,"731871EM","Marie louise Moerings","Esplanade","LT","Heer Jan's Ruiters, RV.",null,"256,5","256,5",{"$f":"H41+I41","v":513},null,null,{"$f":"VLOOKUP(N41,Blad1!A:C,2,0)","v":7},10,1,"252,5","251,5",{"$f":"P41+Q41","v":504},null,null,{"$f":"VLOOKUP(V41,Blad1!A:C,2,0)","v":6},11,null,null,null,{"$f":"X41+Y41","v":0},null,null,0,99,null,null,null,null,null,null,null,null,null,null,null,null,null,null,null,null,null,null,null,null,null,null,null,null,{"$f":"M41+U41+AC41","v":13},{"$f":"J41+R41+Z41+AH41+AP41+AX41","v":1017},{"$f":"IF($O$4>0,(SMALL(($M41,$U41,$AC41,$AL41,$AT41,$BB41),1)),\"0\")","v":0},null,null,null,{"$f":"BC41-BE41-BF41","v":13},{"$f":"BD41-BG41-BH41","v":1017},null,null,null,null,"ja"]
[null,"669437LZ","Laura Zwart","Lumen Express","LT","Hynstewille, RV.",null,232,"237,5",469.5,null,null,{"$f":"VLOOKUP(N42,Blad1!A:C,2,0)","v":0},17,null,"246,5",244,490.5,null,null,{"$f":"VLOOKUP(V42,Blad1!A:C,2,0)","v":5},12,2,"217,5",221,438.5,null,null,{"$f":"VLOOKUP(AD42,Blad1!A:C,2,0)","v":6},11,null,null,null,null,null,null,null,null,null,null,null,null,null,null,null,null,null,null,null,null,null,null,null,null,11,1398.5,{"$f":"IF($O$4>0,(SMALL(($M42,$U42,$AC42,$AL42,$AT42,$BB42),1)),\"0\")","v":0},null,null,null,11,1398.5,null,null,null,null,"ja"]
[null,"584996CW","Ellen Wynia","Chakakahn","LT","Mensinghe Roden, RV.",null,245,238,483,null,null,{"$f":"VLOOKUP(N43,Blad1!A:C,2,0)","v":8},9,null,244,"241,5",485.5,null,null,{"$f":"VLOOKUP(V43,Blad1!A:C,2,0)","v":3},14,null,null,null,0,null,null,0,99,null,null,null,null,null,null,null,null,null,null,null,null,null,null,null,null,null,null,null,null,null,null,null,null,11,968.5,{"$f":"IF($O$4>0,(SMALL(($M43,$U43,$AC43,$AL43,$AT43,$BB43),1)),\"0\")","v":0},null,null,null,11,968.5,null,null,null,null,"ja"]
[null,"779994PR","Geert-jan Raateland","Painted RDH","LT","Oud-beijerland, RV.",null,"240,5",247,487.5,null,null,{"$f":"VLOOKUP(N44,Blad1!A:C,2,0)","v":6},11,1,246,249,495,null,null,{"$f":"VLOOKUP(V44,Blad1!A:C,2,0)","v":4},13,1,"209,5","215,5",425,null,null,{"$f":"VLOOKUP(AD44,Blad1!A:C,2,0)","v":2},15,null,null,null,null,null,null,null,null,null,null,null,null,null,null,null,null,null,null,null,null,null,null,null,null,12,1407.5,{"$f":"IF($O$4>0,(SMALL(($M44,$U44,$AC44,$AL44,$AT44,$BB44),1)),\"0\")","v":2},null,null,null,10,1407.5,null,null,null,null,"ja"]
[null,"837703FV","Rob van Puijenbroek - Visser","Fabiola Begijnhoeve","LT","Goirle, RV.",null,"260,5","251,5",512,null,null,{"$f":"VLOOKUP(N45,Blad1!A:C,2,0)","v":6},11,1,249,"261,5",510.5,null,null,{"$f":"VLOOKUP(V45,Blad1!A:C,2,0)","v":4},13,null,null,null,0,null,null,0,99,null,null,null,null,null,null,null,null,null,null,null,null,null,null,null,null,null,null,null,null,null,null,null,null,10,1022.5,{"$f":"IF($O$4>0,(SMALL(($M45,$U45,$AC45,$AL45,$AT45,$BB45),1)),\"0\")","v":0},null,null,null,10,1022.5,null,null,null,null,"ja"]
[null,"713722EO","Maxime Osse","HemCell Estados","LT","Weelruiters, RV.",null,247,"244,5",491.5,null,null,{"$f":"VLOOKUP(N46,Blad1!A:C,2,0)","v":0},20,1,"247,5","246,5",494,null,null,{"$f":"VLOOKUP(V46,Blad1!A:C,2,0)","v":3},14,1,220,"214,5",434.5,null,null,{"$f":"VLOOKUP(AD46,Blad1!A:C,2,0)","v":6},11,null,null,null,null,null,null,null,null,null,null,null,null,null,null,null,null,null,null,null,null,null,null,null,null,9,1420,{"$f":"IF($O$4>0,(SMALL(($M46,$U46,$AC46,$AL46,$AT46,$BB46),1)),\"0\")","v":0},null,null,null,9,1420,null,null,null,null,"ja"]
[null,"674437EK","Kyra Klinkers","Equirelle W","LT","Katsbekruiters, RV.",null,255,250,505,null,null,{"$f":"VLOOKUP(N47,Blad1!A:C,2,0)","v":3},14,1,256,257,513,null,null,{"$f":"VLOOKUP(V47,Blad1!A:C,2,0)","v":6},11,null,null,null,0,null,null,0,99,null,null,null,null,null,null,null,null,null,null,null,null,null,null,null,null,null,null,null,null,null,null,null,null,9,1018,{"$f":"IF($O$4>0,(SMALL(($M47,$U47,$AC47,$AL47,$AT47,$BB47),1)),\"0\")","v":0},null,null,null,9,1018,null,null,null,null,"ja"]
[null,"523789AP","Marie louise Philipsen - Wynhoven","Andreo","LT","Wittenhorst, RV.",null,null,null,0,null,null,0,99,1,249,241,490,null,null,{"$f":"VLOOKUP(V48,Blad1!A:C,2,0)","v":0},17,2,"222,5","222,5",445,null,null,{"$f":"VLOOKUP(AD48,Blad1!A:C,2,0)","v":8},9,null,null,null,null,null,null,null,null,null,null,null,null,null,null,null,null,null,null,null,null,null,null,null,null,8,935,{"$f":"IF($O$4>0,(SMALL(($M48,$U48,$AC48,$AL48,$AT48,$BB48),1)),\"0\")","v":0},null,null,null,8,935,null,null,null,null,"ja"]
[null,"585315AG","Christianne Goes","Accountancy Bellissimo","LT","Voornruiters, RV. De",null,"230,5","240,5",471,null,null,{"$f":"VLOOKUP(N49,Blad1!A:C,2,0)","v":0},25,null,216,225,441,null,null,{"$f":"VLOOKUP(V49,Blad1!A:C,2,0)","v":0},25,3,211,212,423,null,null,{"$f":"VLOOKUP(AD49,Blad1!A:C,2,0)","v":7},10,null,null,null,null,null,null,null,null,null,null,null,null,null,null,null,null,null,null,null,null,null,null,null,null,7,1335,{"$f":"IF($O$4>0,(SMALL(($M49,$U49,$AC49,$AL49,$AT49,$BB49),1)),\"0\")","v":0},null,null,null,7,1335,null,null,null,null,"ja"]
[null,"815807FN","Jeanine Nekeman","Ferrari","LT","Hasselt, RV.",null,242,234,476,null,null,{"$f":"VLOOKUP(N50,Blad1!A:C,2,0)","v":3},14,null,"241,5","247,5",489,null,null,{"$f":"VLOOKUP(V50,Blad1!A:C,2,0)","v":4},13,null,null,null,0,null,null,0,99,null,null,null,null,null,null,null,null,null,null,null,null,null,null,null,null,null,null,null,null,null,null,null,null,7,965,{"$f":"IF($O$4>0,(SMALL(($M50,$U50,$AC50,$AL50,$AT50,$BB50),1)),\"0\")","v":0},null,null,null,7,965,null,null,null,null,"ja"]
[null,"632302DK","Jolien Van Kollenburg","Da Vinci Svk","LT","PPH Horstdravers, RV.",null,"255,5",251,506.5,null,null,{"$f":"VLOOKUP(N51,Blad1!A:C,2,0)","v":4},13,1,249,249,498,null,null,{"$f":"VLOOKUP(V51,Blad1!A:C,2,0)","v":2},15,null,null,null,0,null,null,0,99,null,null,null,null,null,null,null,null,null,null,null,null,null,null,null,null,null,null,null,null,null,null,null,null,6,1004.5,{"$f":"IF($O$4>0,(SMALL(($M51,$U51,$AC51,$AL51,$AT51,$BB51),1)),\"0\")","v":0},null,null,null,6,1004.5,null,null,null,null,"ja"]
[null,"609530RV","Arnold Veldhoen","Ravel","LT","Zuidwijk, RV.",null,222,"243,5",465.5,null,null,{"$f":"VLOOKUP(N52,Blad1!A:C,2,0)","v":0},19,null,"243,5",238,481.5,null,null,{"$f":"VLOOKUP(V52,Blad1!A:C,2,0)","v":2},15,3,199,"199,5",398.5,null,null,{"$f":"VLOOKUP(AD52,Blad1!A:C,2,0)","v":3},14,null,null,null,null,null,null,null,null,null,null,null,null,null,null,null,null,null,null,null,null,null,null,null,null,5,1345.5,{"$f":"IF($O$4>0,(SMALL(($M52,$U52,$AC52,$AL52,$AT52,$BB52),1)),\"0\")","v":0},null,null,null,5,1345.5,null,null,null,null,"ja"]
[null,"723790EC","Larissa Van Craaikamp","Elvira Oase","LT","Hs Heiloo e.o., RV.",null,"243,5",243,486.5,null,null,{"$f":"VLOOKUP(N53,Blad1!A:C,2,0)","v":5},12,1,232,229,461,null,null,{"$f":"VLOOKUP(V53,Blad1!A:C,2,0)","v":0},19,null,null,null,0,null,null,0,99,null,null,null,null,null,null,null,null,null,null,null,null,null,null,null,null,null,null,null,null,null,null,null,null,5,947.5,{"$f":"IF($O$4>0,(SMALL(($M53,$U53,$AC53,$AL53,$AT53,$BB53),1)),\"0\")","v":0},null,null,null,5,947.5,null,null,null,null,"ja"]
[null,"731807EH","Andre Houben","Empelaer's Dante","LT","Thull, RV.",null,241,"232,5",473.5,null,null,{"$f":"VLOOKUP(N54,Blad1!A:C,2,0)","v":0},24,1,240,"233,5",473.5,null,null,{"$f":"VLOOKUP(V54,Blad1!A:C,2,0)","v":0},22,2,213,217,430,null,null,{"$f":"VLOOKUP(AD54,Blad1!A:C,2,0)","v":3},14,null,null,null,null,null,null,null,null,null,null,null,null,null,null,null,null,null,null,null,null,null,null,null,null,3,1377,{"$f":"IF($O$4>0,(SMALL(($M54,$U54,$AC54,$AL54,$AT54,$BB54),1)),\"0\")","v":0},null,null,null,3,1377,null,null,null,null,"ja"]
[null,"697116EB","Jeske Bouwman","Enterprice","LT","Schouwse Ruiters, RV. De",null,245,"229,5",474.5,null,null,{"$f":"VLOOKUP(N55,Blad1!A:C,2,0)","v":3},14,1,241,"236,5",477.5,null,null,{"$f":"VLOOKUP(V55,Blad1!A:C,2,0)","v":0},18,1,"200,5",208,408.5,null,null,{"$f":"VLOOKUP(AD55,Blad1!A:C,2,0)","v":0},18,null,null,null,null,null,null,null,null,null,null,null,null,null,null,null,null,null,null,null,null,null,null,null,null,3,1360.5,{"$f":"IF($O$4>0,(SMALL(($M55,$U55,$AC55,$AL55,$AT55,$BB55),1)),\"0\")","v":0},null,null,null,3,1360.5,null,null,null,null,"ja"]
[null,"673557DG","Mariska Van Groningen","Dutch Dandy","LT","Rockanje (RPC), RV.",null,"220,5","221,5",442,null,null,{"$f":"VLOOKUP(N56,Blad1!A:C,2,0)","v":0},33,null,null,null,0,null,null,0,99,1,"216,5",214,430.5,null,null,{"$f":"VLOOKUP(AD56,Blad1!A:C,2,0)","v":3},14,null,null,null,null,null,null,null,null,null,null,null,null,null,null,null,null,null,null,null,null,null,null,null,null,3,872.5,{"$f":"IF($O$4>0,(SMALL(($M56,$U56,$AC56,$AL56,$AT56,$BB56),1)),\"0\")","v":0},null,null,null,3,872.5,null,null,null,null,"ja"]
[null,"676693BR","Jeannette Rijksen","Baltimore","LT","Grote Brug, RV.",null,"220,5","221,5",442,null,null,{"$f":"VLOOKUP(N57,Blad1!A:C,2,0)","v":0},33,null,null,null,0,null,null,0,99,3,194,"194,5",388.5,null,null,{"$f":"VLOOKUP(AD57,Blad1!A:C,2,0)","v":2},15,null,null,null,null,null,null,null,null,null,null,null,null,null,null,null,null,null,null,null,null,null,null,null,null,2,830.5,{"$f":"IF($O$4>0,(SMALL(($M57,$U57,$AC57,$AL57,$AT57,$BB57),1)),\"0\")","v":0},null,null,null,2,830.5,null,null,null,null,"ja"]
[null,"565327BB","Vivienne Bos","Baronijke-l","LT","Hoeve Westland Ruiters, RV.",null,"224,5","219,5",444,null,null,{"$f":"VLOOKUP(N58,Blad1!A:C,2,0)","v":0},21,1,"243,5",243,486.5,null,null,{"$f":"VLOOKUP(V58,Blad1!A:C,2,0)","v":2},15,null,null,null,0,null,null,0,99,null,null,null,null,null,null,null,null,null,null,null,null,null,null,null,null,null,null,null,null,null,null,null,null,2,930.5,{"$f":"IF($O$4>0,(SMALL(($M58,$U58,$AC58,$AL58,$AT58,$BB58),1)),\"0\")","v":0},null,null,null,2,930.5,null,null,null,null,"ja"]
[null,"756994RH","Lisanne De Haas","Bruëll","LT","Bosch En Duin, RV.",null,"230,5","236,5",467,null,null,{"$f":"VLOOKUP(N59,Blad1!A:C,2,0)","v":0},27,null,null,null,0,null,null,0,99,3,190,194,384,null,null,{"$f":"VLOOKUP(AD59,Blad1!A:C,2,0)","v":1},16,null,null,null,null,null,null,null,null,null,null,null,null,null,null,null,null,null,null,null,null,null,null,null,null,1,851,{"$f":"IF($O$4>0,(SMALL(($M59,$U59,$AC59,$AL59,$AT59,$BB59),1)),\"0\")","v":0},null,null,null,1,851,null,null,null,null,"ja"]
[null,"690575DB","Ina Beuving","Dinant B","LT","Exloo, RV.",null,"232,5",240,472.5,null,null,{"$f":"VLOOKUP(N60,Blad1!A:C,2,0)","v":1},16,null,230,226,456,null,null,{"$f":"VLOOKUP(V60,Blad1!A:C,2,0)","v":0},20,null,null,null,0,null,null,0,99,null,null,null,null,null,null,null,null,null,null,null,null,null,null,null,null,null,null,null,null,null,null,null,null,1,928.5,{"$f":"IF($O$4>0,(SMALL(($M60,$U60,$AC60,$AL60,$AT60,$BB60),1)),\"0\")","v":0},null,null,null,1,928.5,null,null,null,null,"ja"]
[null,"687361VB","Clarissa Van Biezen","Vancouver","LT","Prins Bernhard, RV.",null,"215,5","235,5",451,null,null,{"$f":"VLOOKUP(N61,Blad1!A:C,2,0)","v":0},31,1,226,201,427,null,null,{"$f":"VLOOKUP(V61,Blad1!A:C,2,0)","v":0},28,null,null,null,0,null,null,0,99,null,null,null,null,null,null,null,null,null,null,null,null,null,null,null,null,null,null,null,null,null,null,null,null,0,878,{"$f":"IF($O$4>0,(SMALL(($M61,$U61,$AC61,$AL61,$AT61,$BB61),1)),\"0\")","v":0},null,null,null,0,878,null,null,null,null,"ja"]
[null,"695800GG","Debby De Graaf","Gerrit Galloper","LT","s-Gravenhof, RV.",null,228,237,465,null,null,{"$f":"VLOOKUP(N62,Blad1!A:C,2,0)","v":0},28,1,231,215,446,null,null,{"$f":"VLOOKUP(V62,Blad1!A:C,2,0)","v":0},21,null,null,null,0,null,null,0,99,null,null,null,null,null,null,null,null,null,null,null,null,null,null,null,null,null,null,null,null,null,null,null,null,0,911,{"$f":"IF($O$4>0,(SMALL(($M62,$U62,$AC62,$AL62,$AT62,$BB62),1)),\"0\")","v":0},null,null,null,0,911,null,null,null,null,"ja"]
[null,"828571MM","Nienke Van der Muil","Molenkoning Zanzibar","LT","St. Martinus, RV.",null,230,231,461,null,null,{"$f":"VLOOKUP(N63,Blad1!A:C,2,0)","v":0},30,1,"236,5","248,5",485,null,null,{"$f":"VLOOKUP(V63,Blad1!A:C,2,0)","v":0},18,null,null,null,0,null,null,0,99,null,null,null,null,null,null,null,null,null,null,null,null,null,null,null,null,null,null,null,null,null,null,null,null,0,946,{"$f":"IF($O$4>0,(SMALL(($M63,$U63,$AC63,$AL63,$AT63,$BB63),1)),\"0\")","v":0},null,null,null,0,946,null,null,null,null,"ja"]
[null,"798863EA","Jordy Andeweg","Elvita","LT","Zuid-Veluwse Jachtvereniging, RV.",null,244,240,484,null,null,{"$f":"VLOOKUP(N64,Blad1!A:C,2,0)","v":0},21,1,"238,5","238,5",477,null,null,{"$f":"VLOOKUP(V64,Blad1!A:C,2,0)","v":0},20,null,null,null,0,null,null,0,99,null,null,null,null,null,null,null,null,null,null,null,null,null,null,null,null,null,null,null,null,null,null,null,null,0,961,{"$f":"IF($O$4>0,(SMALL(($M64,$U64,$AC64,$AL64,$AT64,$BB64),1)),\"0\")","v":0},null,null,null,0,961,null,null,null,null,"ja"]
[null,"744957CH","Rensche De Haan","Callucci HR","LT","Fjildruters Hemrik e.o., RV.",null,225,"244,5",469.5,null,null,{"$f":"VLOOKUP(N65,Blad1!A:C,2,0)","v":0},18,null,"230,5","223,5",454,null,null,{"$f":"VLOOKUP(V65,Blad1!A:C,2,0)","v":0},21,null,null,null,0,null,null,0,99,null,null,null,null,null,null,null,null,null,null,null,null,null,null,null,null,null,null,null,null,null,null,null,null,0,923.5,{"$f":"IF($O$4>0,(SMALL(($M65,$U65,$AC65,$AL65,$AT65,$BB65),1)),\"0\")","v":0},null,null,null,0,923.5,null,null,null,null,"ja"]
[null,"713767SW","Amey Wagenaar","El Macho Malo","LT","Hoge Devel (RSV), RV.",null,"220,5","232,5",453,null,null,{"$f":"VLOOKUP(N66,Blad1!A:C,2,0)","v":0},18,null,"241,5",238,479.5,null,null,{"$f":"VLOOKUP(V66,Blad1!A:C,2,0)","v":0},17,null,null,null,0,null,null,0,99,null,null,null,null,null,null,null,null,null,null,null,null,null,null,null,null,null,null,null,null,null,null,null,null,0,932.5,{"$f":"IF($O$4>0,(SMALL(($M66,$U66,$AC66,$AL66,$AT66,$BB66),1)),\"0\")","v":0},null,null,null,0,932.5,null,null,null,null,"ja"]
[null,"663776EW","Angelique Van Dijk","Eastpoint Vdw","LT","Ottersum e.o., RV.",null,"213,5",233,446.5,null,null,{"$f":"VLOOKUP(N67,Blad1!A:C,2,0)","v":0},32,null,null,null,0,null,null,null,99,null,null,null,0,null,null,null,99,null,null,null,null,null,null,null,null,null,null,null,null,null,null,null,null,null,null,null,null,null,null,null,null,0,446.5,{"$f":"IF($O$4>0,(SMALL(($M67,$U67,$AC67,$AL67,$AT67,$BB67),1)),\"0\")","v":0},null,null,null,0,446.5,null,null,null,null,"nee"]
[null,"799502CG","Ingrid Gerritsen","Cantano-tetti","LT","Voornruiters, RV. De",null,231,232,463,null,null,{"$f":"VLOOKUP(N68,Blad1!A:C,2,0)","v":0},29,null,null,null,0,null,null,null,99,null,null,null,0,null,null,null,99,null,null,null,null,null,null,null,null,null,null,null,null,null,null,null,null,null,null,null,null,null,null,null,null,0,463,{"$f":"IF($O$4>0,(SMALL(($M68,$U68,$AC68,$AL68,$AT68,$BB68),1)),\"0\")","v":0},null,null,null,0,463,null,null,null,null,"nee"]
[null,"589577CR","Lieke Van Rixtel","Cupido","LT","Sint Anthonis (Martinus), RV.",null,null,null,0,null,null,null,99,1,219,"210,5",429.5,null,null,{"$f":"VLOOKUP(V69,Blad1!A:C,2,0)","v":0},27,null,null,null,0,null,null,null,99,null,null,null,null,null,null,null,null,null,null,null,null,null,null,null,null,null,null,null,null,null,null,null,null,0,429.5,{"$f":"IF($O$4>0,(SMALL(($M69,$U69,$AC69,$AL69,$AT69,$BB69),1)),\"0\")","v":0},null,null,null,0,429.5,null,null,null,null,"nee"]
[null,"645921DH","Heleen De Haas","Dwk-leen","LT","Postruters, RV.",null,null,null,0,null,null,null,99,null,220,204,424,null,null,{"$f":"VLOOKUP(V70,Blad1!A:C,2,0)","v":0},27,null,null,null,0,null,null,null,99,null,null,null,null,null,null,null,null,null,null,null,null,null,null,null,null,null,null,null,null,null,null,null,null,0,424,{"$f":"IF($O$4>0,(SMALL(($M70,$U70,$AC70,$AL70,$AT70,$BB70),1)),\"0\")","v":0},null,null,null,0,424,null,null,null,null,"nee"]
[null,"547187BH","Diane Heymans","Bailando","LT","Heemskinderen, RV.",null,null,null,0,null,null,null,99,1,230,217,447,null,null,{"$f":"VLOOKUP(V71,Blad1!A:C,2,0)","v":0},26,null,null,null,0,null,null,null,99,null,null,null,null,null,null,null,null,null,null,null,null,null,null,null,null,null,null,null,null,null,null,null,null,0,447,{"$f":"IF($O$4>0,(SMALL(($M71,$U71,$AC71,$AL71,$AT71,$BB71),1)),\"0\")","v":0},null,null,null,0,447,null,null,null,null,"nee"]
[null,"698212VF","Cindy Feld","Sweet Sensation Dcf","LT","Berkenruiters, RV.",null,null,null,0,null,null,null,99,null,214,"212,5",426.5,null,null,{"$f":"VLOOKUP(V72,Blad1!A:C,2,0)","v":0},26,null,null,null,0,null,null,null,99,null,null,null,null,null,null,null,null,null,null,null,null,null,null,null,null,null,null,null,null,null,null,null,null,0,426.5,{"$f":"IF($O$4>0,(SMALL(($M72,$U72,$AC72,$AL72,$AT72,$BB72),1)),\"0\")","v":0},null,null,null,0,426.5,null,null,null,null,"nee"]
[null,"534714EL","Iris Lamers","Eyecatcher","LT","Kroenekranen (PSV), RV. de",null,null,null,{"$f":"H73+I73","v":0},null,null,null,99,1,233,222,{"$f":"P73+Q73","v":455},null,null,{"$f":"VLOOKUP(V73,Blad1!A:C,2,0)","v":0},25,null,null,null,{"$f":"X73+Y73","v":0},null,null,null,99,null,null,null,null,null,null,null,null,null,null,null,null,null,null,null,null,null,null,null,null,null,null,null,null,{"$f":"M73+U73+AC73","v":0},{"$f":"J73+R73+Z73+AH73+AP73+AX73","v":455},{"$f":"IF($O$4>0,(SMALL(($M73,$U73,$AC73,$AL73,$AT73,$BB73),1)),\"0\")","v":0},null,null,null,{"$f":"BC73-BE73-BF73","v":0},{"$f":"BD73-BG73-BH73","v":455},null,null,null,null,"nee"]
[null,"510765AW","Michelle Westerdijk","Approval T","LT","Nijnselse Ruiters, RV.",null,null,null,0,null,null,null,99,1,231,"230,5",461.5,null,null,{"$f":"VLOOKUP(V74,Blad1!A:C,2,0)","v":0},24,null,null,null,0,null,null,null,99,null,null,null,null,null,null,null,null,null,null,null,null,null,null,null,null,null,null,null,null,null,null,null,null,0,461.5,{"$f":"IF($O$4>0,(SMALL(($M74,$U74,$AC74,$AL74,$AT74,$BB74),1)),\"0\")","v":0},null,null,null,0,461.5,null,null,null,null,{"$f":"IF(COUNT(M74,U74,AC74)>1,\"ja\",\"nee\")","v":"nee"}]
[null,"815118DB","Ina Beuving","Duc","LT","Exloo, RV.",null,null,null,0,null,null,null,99,null,217,"224,5",441.5,null,null,{"$f":"VLOOKUP(V75,Blad1!A:C,2,0)","v":0},24,null,null,null,0,null,null,null,99,null,null,null,null,null,null,null,null,null,null,null,null,null,null,null,null,null,null,null,null,null,null,null,null,0,441.5,{"$f":"IF($O$4>0,(SMALL(($M75,$U75,$AC75,$AL75,$AT75,$BB75),1)),\"0\")","v":0},null,null,null,0,441.5,null,null,null,null,"nee"]
[null,"615944DP","Laura Petersen","Divident.l","LT","Rooyse Ruiters En Ponyruiters, RV.",null,null,null,0,null,null,null,99,1,"235,5","233,5",469,null,null,{"$f":"VLOOKUP(V76,Blad1!A:C,2,0)","v":0},23,null,null,null,0,null,null,null,99,null,null,null,null,null,null,null,null,null,null,null,null,null,null,null,null,null,null,null,null,null,null,null,null,0,469,{"$f":"IF($O$4>0,(SMALL(($M76,$U76,$AC76,$AL76,$AT76,$BB76),1)),\"0\")","v":0},null,null,null,0,469,null,null,null,null,"nee"]
[null,"480731WH","Leonie Holleman","Washington B","LT","Voorne-putten, RV.",null,null,null,0,null,null,null,99,1,215,202,417,null,null,{"$f":"VLOOKUP(V77,Blad1!A:C,2,0)","v":0},23,null,null,null,0,null,null,null,99,null,null,null,null,null,null,null,null,null,null,null,null,null,null,null,null,null,null,null,null,null,null,null,null,0,417,{"$f":"IF($O$4>0,(SMALL(($M77,$U77,$AC77,$AL77,$AT77,$BB77),1)),\"0\")","v":0},null,null,null,0,417,null,null,null,null,"nee"]
[null,"729324AH","Heleen De Haas","Alger T fan 'e Boppelannen","LT","Postruters, RV.",null,null,null,0,null,null,null,99,null,"221,5",221,442.5,null,null,{"$f":"VLOOKUP(V78,Blad1!A:C,2,0)","v":0},23,null,null,null,0,null,null,null,99,null,null,null,null,null,null,null,null,null,null,null,null,null,null,null,null,null,null,null,null,null,null,null,null,0,442.5,{"$f":"IF($O$4>0,(SMALL(($M78,$U78,$AC78,$AL78,$AT78,$BB78),1)),\"0\")","v":0},null,null,null,0,442.5,null,null,null,null,"nee"]
[null,"678697EO","Kelly Outhuijse","Empaire W","LT","Prins Bernhard, RV.",null,"238,5",241,479.5,null,null,{"$f":"VLOOKUP(N79,Blad1!A:C,2,0)","v":0},23,null,null,null,0,null,null,null,99,null,null,null,0,null,null,null,99,null,null,null,null,null,null,null,null,null,null,null,null,null,null,null,null,null,null,null,null,null,null,null,null,0,479.5,{"$f":"IF($O$4>0,(SMALL(($M79,$U79,$AC79,$AL79,$AT79,$BB79),1)),\"0\")","v":0},null,null,null,0,479.5,null,null,null,null,"nee"]
[null,"809720CK","Tessa Koning","Cote D'or","LT","Belckmeer, RV.",null,209,"206,5",415.5,null,null,{"$f":"VLOOKUP(N80,Blad1!A:C,2,0)","v":0},23,null,null,null,0,null,null,null,99,null,null,null,0,null,null,null,99,null,null,null,null,null,null,null,null,null,null,null,null,null,null,null,null,null,null,null,null,null,null,null,null,0,415.5,{"$f":"IF($O$4>0,(SMALL(($M80,$U80,$AC80,$AL80,$AT80,$BB80),1)),\"0\")","v":0},null,null,null,0,415.5,null,null,null,null,"nee"]
[null,"546014BJ","Nicole Jurriens","Bas","LT","La Grande, RV.",null,null,null,0,null,null,null,99,1,224,"210,5",434.5,null,null,{"$f":"VLOOKUP(V81,Blad1!A:C,2,0)","v":0},22,null,null,null,0,null,null,null,99,null,null,null,null,null,null,null,null,null,null,null,null,null,null,null,null,null,null,null,null,null,null,null,null,0,434.5,{"$f":"IF($O$4>0,(SMALL(($M81,$U81,$AC81,$AL81,$AT81,$BB81),1)),\"0\")","v":0},null,null,null,0,434.5,null,null,null,null,"nee"]
[null,"594452CS","Annelon Schermer","Casimier","LT","Oostelijk West Friesland, RV.",null,null,null,0,null,null,null,99,null,"224,5","228,5",453,null,null,{"$f":"VLOOKUP(V82,Blad1!A:C,2,0)","v":0},22,null,null,null,0,null,null,null,99,null,null,null,null,null,null,null,null,null,null,null,null,null,null,null,null,null,null,null,null,null,null,null,null,0,453,{"$f":"IF($O$4>0,(SMALL(($M82,$U82,$AC82,$AL82,$AT82,$BB82),1)),\"0\")","v":0},null,null,null,0,453,null,null,null,null,"nee"]
[null,"836899WD","Mark Van de Donk","Wonderboy DC","LT",null,null,242,239,481,null,null,{"$f":"VLOOKUP(N83,Blad1!A:C,2,0)","v":0},22,null,null,null,0,null,null,null,99,null,null,null,0,null,null,null,99,null,null,null,null,null,null,null,null,null,null,null,null,null,null,null,null,null,null,null,null,null,null,null,null,0,481,{"$f":"IF($O$4>0,(SMALL(($M83,$U83,$AC83,$AL83,$AT83,$BB83),1)),\"0\")","v":0},null,null,null,0,481,null,null,null,null,"nee"]
[null,"657914GH","Lianne Van der Horst","Golden Eagle's Envoy","LT","Raalte, RV.",null,221,"225,5",446.5,null,null,{"$f":"VLOOKUP(N84,Blad1!A:C,2,0)","v":0},22,null,null,null,0,null,null,null,99,null,null,null,0,null,null,null,99,null,null,null,null,null,null,null,null,null,null,null,null,null,null,null,null,null,null,null,null,null,null,null,null,0,446.5,{"$f":"IF($O$4>0,(SMALL(($M84,$U84,$AC84,$AL84,$AT84,$BB84),1)),\"0\")","v":0},null,null,null,0,446.5,null,null,null,null,"nee"]
[null,"789686ED","Jacobine Bijl - Dijkshoorn","Ebony Sollenburg SD","LT","Boreftse Ruiters, RV.",null,"224,5","210,5",435,null,null,{"$f":"VLOOKUP(N85,Blad1!A:C,2,0)","v":0},22,null,null,null,0,null,null,null,99,null,null,null,0,null,null,null,99,null,null,null,null,null,null,null,null,null,null,null,null,null,null,null,null,null,null,null,null,null,null,null,null,0,435,{"$f":"IF($O$4>0,(SMALL(($M85,$U85,$AC85,$AL85,$AT85,$BB85),1)),\"0\")","v":0},null,null,null,0,435,null,null,null,null,"nee"]
[null,"837217DL","Jean-rené Luijmes","Disney","LT","Sylawald, RV.",null,null,null,0,null,null,null,99,1,246,228,474,null,null,{"$f":"VLOOKUP(V86,Blad1!A:C,2,0)","v":0},21,null,null,null,0,null,null,null,99,null,null,null,null,null,null,null,null,null,null,null,null,null,null,null,null,null,null,null,null,null,null,null,null,0,474,{"$f":"IF($O$4>0,(SMALL(($M86,$U86,$AC86,$AL86,$AT86,$BB86),1)),\"0\")","v":0},null,null,null,0,474,null,null,null,null,"nee"]
[null,"824146BS","Daniella Smit","Bommelsteyn's Tymon","LT","Waldruters, RV.",null,232,"230,5",462.5,null,null,{"$f":"VLOOKUP(N87,Blad1!A:C,2,0)","v":0},21,null,null,null,0,null,null,null,99,null,null,null,0,null,null,null,99,null,null,null,null,null,null,null,null,null,null,null,null,null,null,null,null,null,null,null,null,null,null,null,null,0,462.5,{"$f":"IF($O$4>0,(SMALL(($M87,$U87,$AC87,$AL87,$AT87,$BB87),1)),\"0\")","v":0},null,null,null,0,462.5,null,null,null,null,"nee"]
[null,"693311ZB","Lisanne De Braal","Ztoefzand","LT","Oranjeruiters, RV.",null,null,null,0,null,null,null,99,null,null,null,0,null,null,null,99,1,183,"196,5",379.5,null,null,{"$f":"VLOOKUP(AD88,Blad1!A:C,2,0)","v":0},20,null,null,null,null,null,null,null,null,null,null,null,null,null,null,null,null,null,null,null,null,null,null,null,null,0,379.5,{"$f":"IF($O$4>0,(SMALL(($M88,$U88,$AC88,$AL88,$AT88,$BB88),1)),\"0\")","v":0},null,null,null,0,379.5,null,null,null,null,"nee"]
[null,"496574VT","Anne-marie Telkamp","Voque Of Class","LT","Zoetermeer, RV.",null,null,null,0,null,null,null,99,1,"223,5",223,446.5,null,null,{"$f":"VLOOKUP(V89,Blad1!A:C,2,0)","v":0},20,null,null,null,0,null,null,null,99,null,null,null,null,null,null,null,null,null,null,null,null,null,null,null,null,null,null,null,null,null,null,null,null,0,446.5,{"$f":"IF($O$4>0,(SMALL(($M89,$U89,$AC89,$AL89,$AT89,$BB89),1)),\"0\")","v":0},null,null,null,0,446.5,null,null,null,null,"nee"]
[null,"644776BS","Wytske Schuth","Bandiet","LT","Veendam e.o., RV.",null,"229,5",233,462.5,null,null,{"$f":"VLOOKUP(N90,Blad1!A:C,2,0)","v":0},20,null,null,null,0,null,null,null,99,null,null,null,0,null,null,null,99,null,null,null,null,null,null,null,null,null,null,null,null,null,null,null,null,null,null,null,null,null,null,null,null,0,462.5,{"$f":"IF($O$4>0,(SMALL(($M90,$U90,$AC90,$AL90,$AT90,$BB90),1)),\"0\")","v":0},null,null,null,0,462.5,null,null,null,null,"nee"]
[null,"657789DA","Inge Agterberg - Heymans","Dressboy","LT","Capelse R.j.v., RV.",null,"230,5","213,5",444,null,null,{"$f":"VLOOKUP(N91,Blad1!A:C,2,0)","v":0},20,null,null,null,0,null,null,null,99,null,null,null,0,null,null,null,99,null,null,null,null,null,null,null,null,null,null,null,null,null,null,null,null,null,null,null,null,null,null,null,null,0,444,{"$f":"IF($O$4>0,(SMALL(($M91,$U91,$AC91,$AL91,$AT91,$BB91),1)),\"0\")","v":0},null,null,null,0,444,null,null,null,null,"nee"]
[null,"529774AO","Debbie Offermans","Avec Espoir","LT","Sé-ros, RV.",null,null,null,0,null,null,null,99,null,null,null,0,null,null,null,99,1,210,198,408,null,null,{"$f":"VLOOKUP(AD92,Blad1!A:C,2,0)","v":0},19,null,null,null,null,null,null,null,null,null,null,null,null,null,null,null,null,null,null,null,null,null,null,null,null,0,408,{"$f":"IF($O$4>0,(SMALL(($M92,$U92,$AC92,$AL92,$AT92,$BB92),1)),\"0\")","v":0},null,null,null,0,408,null,null,null,null,"nee"]
[null,"805383DV","Bart Veeze","Devito Van De Kempenhoeve","LT","Hummelo, RV.",null,null,null,0,null,null,null,99,1,"237,5",244,481.5,null,null,{"$f":"VLOOKUP(V93,Blad1!A:C,2,0)","v":0},19,null,null,null,0,null,null,null,99,null,null,null,null,null,null,null,null,null,null,null,null,null,null,null,null,null,null,null,null,null,null,null,null,0,481.5,{"$f":"IF($O$4>0,(SMALL(($M93,$U93,$AC93,$AL93,$AT93,$BB93),1)),\"0\")","v":0},null,null,null,0,481.5,null,null,null,null,"nee"]
[null,"667513FH","Heleen De Haas","Fonger T. Fan 'e Boppelannen","LT","Postruters, RV.",null,null,null,0,null,null,null,99,null,232,225,457,null,null,{"$f":"VLOOKUP(V94,Blad1!A:C,2,0)","v":0},19,null,null,null,0,null,null,null,99,null,null,null,null,null,null,null,null,null,null,null,null,null,null,null,null,null,null,null,null,null,null,null,null,0,457,{"$f":"IF($O$4>0,(SMALL(($M94,$U94,$AC94,$AL94,$AT94,$BB94),1)),\"0\")","v":0},null,null,null,0,457,null,null,null,null,"nee"]
[null,"676130BS","Melissa Stikkelorum","Baruch","LT","Katsbekruiters, RV.",null,"243,5",248,491.5,null,null,{"$f":"VLOOKUP(N95,Blad1!A:C,2,0)","v":0},19,null,null,null,0,null,null,null,99,null,null,null,0,null,null,null,99,null,null,null,null,null,null,null,null,null,null,null,null,null,null,null,null,null,null,null,null,null,null,null,null,0,491.5,{"$f":"IF($O$4>0,(SMALL(($M95,$U95,$AC95,$AL95,$AT95,$BB95),1)),\"0\")","v":0},null,null,null,0,491.5,null,null,null,null,"nee"]
[null,"794162EK","Johan Kral","Eugene","LT","Hoeve Westland Ruiters, RV.",null,222,223,445,null,null,{"$f":"VLOOKUP(N96,Blad1!A:C,2,0)","v":0},19,null,null,null,0,null,null,null,99,null,null,null,0,null,null,null,99,null,null,null,null,null,null,null,null,null,null,null,null,null,null,null,null,null,null,null,null,null,null,null,null,0,445,{"$f":"IF($O$4>0,(SMALL(($M96,$U96,$AC96,$AL96,$AT96,$BB96),1)),\"0\")","v":0},null,null,null,0,445,null,null,null,null,"nee"]
[null,"668222SB","Sylvia Van den Broek","Selevia's Champion","LT","Biesboschruiters, RV.",null,248,"249,5",497.5,null,null,{"$f":"VLOOKUP(N97,Blad1!A:C,2,0)","v":0},18,null,null,null,0,null,null,null,99,null,null,null,0,null,null,null,99,null,null,null,null,null,null,null,null,null,null,null,null,null,null,null,null,null,null,null,null,null,null,null,null,0,497.5,{"$f":"IF($O$4>0,(SMALL(($M97,$U97,$AC97,$AL97,$AT97,$BB97),1)),\"0\")","v":0},null,null,null,0,497.5,null,null,null,null,"nee"]
[null,"700613EB","Janine Boudens","Eternal Flame","LT","Paardebloem, RV.",null,null,null,0,null,null,null,99,null,null,null,0,null,null,null,99,1,200,214,414,null,null,{"$f":"VLOOKUP(AD98,Blad1!A:C,2,0)","v":0},17,null,null,null,null,null,null,null,null,null,null,null,null,null,null,null,null,null,null,null,null,null,null,null,null,0,414,{"$f":"IF($O$4>0,(SMALL(($M98,$U98,$AC98,$AL98,$AT98,$BB98),1)),\"0\")","v":0},null,null,null,0,414,null,null,null,null,"nee"]
[null,"655354CV","Fréderique Vermaat","Captein","LT","Rockanje (RPC), RV.",null,null,null,0,null,null,null,99,1,240,"238,5",478.5,null,null,{"$f":"VLOOKUP(V99,Blad1!A:C,2,0)","v":0},17,null,null,null,0,null,null,null,99,null,null,null,null,null,null,null,null,null,null,null,null,null,null,null,null,null,null,null,null,null,null,null,null,0,478.5,{"$f":"IF($O$4>0,(SMALL(($M99,$U99,$AC99,$AL99,$AT99,$BB99),1)),\"0\")","v":0},null,null,null,0,478.5,null,null,null,null,"nee"]
[null,"667834TV","Amber Vermeer","Farinelli","LT","PPH Horstdravers, RV.",null,252,248,500,null,null,{"$f":"VLOOKUP(N100,Blad1!A:C,2,0)","v":0},17,null,null,null,0,null,null,null,99,null,null,null,0,null,null,null,99,null,null,null,null,null,null,null,null,null,null,null,null,null,null,null,null,null,null,null,null,null,null,null,null,0,500,{"$f":"IF($O$4>0,(SMALL(($M100,$U100,$AC100,$AL100,$AT100,$BB100),1)),\"0\")","v":0},null,null,null,0,500,null,null,null,null,"nee"]
[null,"529366AV","Yoni De Vette","Alonso","LT","Argonaut, RV.",null,231,"233,5",464.5,null,null,{"$f":"VLOOKUP(N101,Blad1!A:C,2,0)","v":0},17,null,null,null,0,null,null,null,99,null,null,null,0,null,null,null,99,null,null,null,null,null,null,null,null,null,null,null,null,null,null,null,null,null,null,null,null,null,null,null,null,0,464.5,{"$f":"IF($O$4>0,(SMALL(($M101,$U101,$AC101,$AL101,$AT101,$BB101),1)),\"0\")","v":0},null,null,null,0,464.5,null,null,null,null,"nee"]
[null,"834037EB","Zoe De Booij","Esther de Jeu SVN","LT","Oranjeruiters, RV.",null,null,null,0,null,null,null,99,null,null,null,0,null,null,null,99,1,"211,5",208,419.5,null,null,{"$f":"VLOOKUP(AD102,Blad1!A:C,2,0)","v":1},16,null,null,null,null,null,null,null,null,null,null,null,null,null,null,null,null,null,null,null,null,null,null,null,null,1,419.5,{"$f":"IF($O$4>0,(SMALL(($M102,$U102,$AC102,$AL102,$AT102,$BB102),1)),\"0\")","v":1},null,null,null,0,419.5,null,null,null,null,"nee"]
[null,"836224VK","Maarten Koppejan","Vivaldi Vdl","LT","Grote Brug, RV.",null,null,null,0,null,null,null,99,null,null,null,0,null,null,null,99,2,"190,5","191,5",382,null,null,{"$f":"VLOOKUP(AD103,Blad1!A:C,2,0)","v":1},16,null,null,null,null,null,null,null,null,null,null,null,null,null,null,null,null,null,null,null,null,null,null,null,null,1,382,{"$f":"IF($O$4>0,(SMALL(($M103,$U103,$AC103,$AL103,$AT103,$BB103),1)),\"0\")","v":1},null,null,null,0,382,null,null,null,null,"nee"]
[null,"687720TM","Carmen Mulrain","Essen's Elino","LT","Hoge Devel (RSV), RV.",null,null,null,0,null,null,null,99,1,247,"233,5",480.5,null,null,{"$f":"VLOOKUP(V104,Blad1!A:C,2,0)","v":1},16,null,null,null,0,null,null,null,99,null,null,null,null,null,null,null,null,null,null,null,null,null,null,null,null,null,null,null,null,null,null,null,null,1,480.5,{"$f":"IF($O$4>0,(SMALL(($M104,$U104,$AC104,$AL104,$AT104,$BB104),1)),\"0\")","v":1},null,null,null,0,480.5,null,null,null,null,"nee"]
[null,"669062DL","Anne Lehmann","Don Juan","LT","Millenniumruiters (RSV), RV.",null,null,null,{"$f":"H105+I105","v":0},null,null,null,99,null,243,238,{"$f":"P105+Q105","v":481},null,null,{"$f":"VLOOKUP(V105,Blad1!A:C,2,0)","v":1},16,null,null,null,{"$f":"X105+Y105","v":0},null,null,null,99,null,null,null,null,null,null,null,null,null,null,null,null,null,null,null,null,null,null,null,null,null,null,null,null,{"$f":"M105+U105+AC105","v":1},{"$f":"J105+R105+Z105+AH105+AP105+AX105","v":481},{"$f":"IF($O$4>0,(SMALL(($M105,$U105,$AC105,$AL105,$AT105,$BB105),1)),\"0\")","v":1},null,null,null,{"$f":"BC105-BE105-BF105","v":0},{"$f":"BD105-BG105-BH105","v":481},null,null,null,null,"nee"]
[null,"825216RL","Emma Laarkamp","Remmits Detroit","LT","Kennemerruiters, RV.",null,"240,5","225,5",466,null,null,{"$f":"VLOOKUP(N106,Blad1!A:C,2,0)","v":1},16,null,null,null,0,null,null,null,99,null,null,null,0,null,null,null,99,null,null,null,null,null,null,null,null,null,null,null,null,null,null,null,null,null,null,null,null,null,null,null,null,1,466,{"$f":"IF($O$4>0,(SMALL(($M106,$U106,$AC106,$AL106,$AT106,$BB106),1)),\"0\")","v":1},null,null,null,0,466,null,null,null,null,"nee"]
[null,"565502UF","Tessa Fleskens","Unique D","LT","Lekzoomruiters, RV.",null,null,null,0,null,null,null,99,null,null,null,0,null,null,null,99,2,207,206,413,null,null,{"$f":"VLOOKUP(AD107,Blad1!A:C,2,0)","v":2},15,null,null,null,null,null,null,null,null,null,null,null,null,null,null,null,null,null,null,null,null,null,null,null,null,2,413,{"$f":"IF($O$4>0,(SMALL(($M107,$U107,$AC107,$AL107,$AT107,$BB107),1)),\"0\")","v":2},null,null,null,0,413,null,null,null,null,"nee"]
[null,"760192VV","Renate Van Vliet","Axia's Victory U.S.","LT","Westland, RV.",null,254,"250,5",504.5,null,null,{"$f":"VLOOKUP(N108,Blad1!A:C,2,0)","v":2},15,null,null,null,0,null,null,null,99,null,null,null,0,null,null,null,99,null,null,null,null,null,null,null,null,null,null,null,null,null,null,null,null,null,null,null,null,null,null,null,null,2,504.5,{"$f":"IF($O$4>0,(SMALL(($M108,$U108,$AC108,$AL108,$AT108,$BB108),1)),\"0\")","v":2},null,null,null,0,504.5,null,null,null,null,"nee"]
[null,"596626CG","Joey Van de Grijp","Cayenne JC","LT","Radboudruiters, RV.",null,"238,5",237,475.5,null,null,{"$f":"VLOOKUP(N109,Blad1!A:C,2,0)","v":2},15,null,null,null,0,null,null,null,99,null,null,null,0,null,null,null,99,null,null,null,null,null,null,null,null,null,null,null,null,null,null,null,null,null,null,null,null,null,null,null,null,2,475.5,{"$f":"IF($O$4>0,(SMALL(($M109,$U109,$AC109,$AL109,$AT109,$BB109),1)),\"0\")","v":2},null,null,null,0,475.5,null,null,null,null,"nee"]
[null,"833708DB","Robin Beekink","Diamond","LT","Lambertus, RV.",null,"239,5","231,5",471,null,null,{"$f":"VLOOKUP(N110,Blad1!A:C,2,0)","v":2},15,null,null,null,0,null,null,null,99,null,null,null,0,null,null,null,99,null,null,null,null,null,null,null,null,null,null,null,null,null,null,null,null,null,null,null,null,null,null,null,null,2,471,{"$f":"IF($O$4>0,(SMALL(($M110,$U110,$AC110,$AL110,$AT110,$BB110),1)),\"0\")","v":2},null,null,null,0,471,null,null,null,null,"nee"]
[null,"753785DK","Mischa Koot","Don Quichot","LT","Grevelingen, RV. De",null,null,null,0,null,null,null,99,1,253,"252,5",505.5,null,null,{"$f":"VLOOKUP(V111,Blad1!A:C,2,0)","v":3},14,null,null,null,0,null,null,null,99,null,null,null,null,null,null,null,null,null,null,null,null,null,null,null,null,null,null,null,null,null,null,null,null,3,505.5,{"$f":"IF($O$4>0,(SMALL(($M111,$U111,$AC111,$AL111,$AT111,$BB111),1)),\"0\")","v":3},null,null,null,0,505.5,null,null,null,null,"nee"]
[null,"811944DK","Sharon De Kok","Daydreamer","LT","Walcheren, RV.",null,null,null,0,null,null,null,99,null,null,null,0,null,null,null,99,1,"218,5","214,5",433,null,null,{"$f":"VLOOKUP(AD112,Blad1!A:C,2,0)","v":4},13,null,null,null,null,null,null,null,null,null,null,null,null,null,null,null,null,null,null,null,null,null,null,null,null,4,433,{"$f":"IF($O$4>0,(SMALL(($M112,$U112,$AC112,$AL112,$AT112,$BB112),1)),\"0\")","v":4},null,null,null,0,433,null,null,null,null,"nee"]
[null,"820425AD","Gerald Drent","Arriant","LT","Oost-Veluwse R.J.V., RV.",null,null,null,0,null,null,null,99,null,null,null,0,null,null,null,99,3,200,200,400,null,null,{"$f":"VLOOKUP(AD113,Blad1!A:C,2,0)","v":4},13,null,null,null,null,null,null,null,null,null,null,null,null,null,null,null,null,null,null,null,null,null,null,null,null,4,400,{"$f":"IF($O$4>0,(SMALL(($M113,$U113,$AC113,$AL113,$AT113,$BB113),1)),\"0\")","v":4},null,null,null,0,400,null,null,null,null,"nee"]
[null,"800589BD","Trea Mulder - Dolsma","Brinkhof's EnVogue","LT","Dwingeloo, RV.",null,233,"243,5",476.5,null,null,{"$f":"VLOOKUP(N114,Blad1!A:C,2,0)","v":4},13,null,null,null,0,null,null,null,99,null,null,null,0,null,null,null,99,null,null,null,null,null,null,null,null,null,null,null,null,null,null,null,null,null,null,null,null,null,null,null,null,4,476.5,{"$f":"IF($O$4>0,(SMALL(($M114,$U114,$AC114,$AL114,$AT114,$BB114),1)),\"0\")","v":4},null,null,null,0,476.5,null,null,null,null,"nee"]
[null,"535070VR","Laura Van Rijswijk","Valentino","LT","Elzen, RV.",null,244,"231,5",475.5,null,null,{"$f":"VLOOKUP(N115,Blad1!A:C,2,0)","v":4},13,null,null,null,0,null,null,null,99,null,null,null,0,null,null,null,99,null,null,null,null,null,null,null,null,null,null,null,null,null,null,null,null,null,null,null,null,null,null,null,null,4,475.5,{"$f":"IF($O$4>0,(SMALL(($M115,$U115,$AC115,$AL115,$AT115,$BB115),1)),\"0\")","v":4},null,null,null,0,475.5,null,null,null,null,"nee"]
[null,"721603ZL","Jessica Leijser","Zazou","LT","Zelden Rust, RV.",null,null,null,0,null,null,null,99,null,null,null,0,null,null,null,99,1,"215,5","218,5",434,null,null,{"$f":"VLOOKUP(AD116,Blad1!A:C,2,0)","v":5},12,null,null,null,null,null,null,null,null,null,null,null,null,null,null,null,null,null,null,null,null,null,null,null,null,5,434,{"$f":"IF($O$4>0,(SMALL(($M116,$U116,$AC116,$AL116,$AT116,$BB116),1)),\"0\")","v":5},null,null,null,0,434,null,null,null,null,"nee"]
[null,"725184DB","Anouk Beelen","Derrel","LT","R.s.v. Stal Rodeo, RV.",null,null,null,0,null,null,null,99,null,null,null,0,null,null,null,99,3,"210,5","210,5",421,null,null,{"$f":"VLOOKUP(AD117,Blad1!A:C,2,0)","v":5},12,null,null,null,null,null,null,null,null,null,null,null,null,null,null,null,null,null,null,null,null,null,null,null,null,5,421,{"$f":"IF($O$4>0,(SMALL(($M117,$U117,$AC117,$AL117,$AT117,$BB117),1)),\"0\")","v":5},null,null,null,0,421,null,null,null,null,"nee"]
[null,"723474FL","Dinja Van Liere","For Gribaldi","LT","Veldhuisen Stables Nigtevecht",null,null,null,0,null,null,null,99,1,"258,5","252,5",511,null,null,{"$f":"VLOOKUP(V118,Blad1!A:C,2,0)","v":5},12,null,null,null,0,null,null,null,99,null,null,null,null,null,null,null,null,null,null,null,null,null,null,null,null,null,null,null,null,null,null,null,null,5,511,{"$f":"IF($O$4>0,(SMALL(($M118,$U118,$AC118,$AL118,$AT118,$BB118),1)),\"0\")","v":5},null,null,null,0,511,null,null,null,null,"nee"]
[null,"616255BR","Caroline Rijnders","Baya","LT","St. Clemens, RV",null,null,null,0,null,null,null,99,1,"252,5",243,495.5,null,null,{"$f":"VLOOKUP(V119,Blad1!A:C,2,0)","v":5},12,null,null,null,0,null,null,null,99,null,null,null,null,null,null,null,null,null,null,null,null,null,null,null,null,null,null,null,null,null,null,null,null,5,495.5,{"$f":"IF($O$4>0,(SMALL(($M119,$U119,$AC119,$AL119,$AT119,$BB119),1)),\"0\")","v":5},null,null,null,0,495.5,null,null,null,null,"nee"]
[null,"602238CM","Dominique Marijnissen","C'est Liza","LT","Oostzanerveld, RV.",null,239,241,480,null,null,{"$f":"VLOOKUP(N120,Blad1!A:C,2,0)","v":5},12,null,null,null,0,null,null,null,99,null,null,null,0,null,null,null,99,null,null,null,null,null,null,null,null,null,null,null,null,null,null,null,null,null,null,null,null,null,null,null,null,5,480,{"$f":"IF($O$4>0,(SMALL(($M120,$U120,$AC120,$AL120,$AT120,$BB120),1)),\"0\")","v":5},null,null,null,0,480,null,null,null,null,"nee"]
[null,"751346BZ","Laura Zwart","Bingo","LT","Hynstewille, RV.",null,239,243,482,null,null,{"$f":"VLOOKUP(N121,Blad1!A:C,2,0)","v":6},11,null,null,null,0,null,null,null,99,null,null,null,0,null,null,null,99,null,null,null,null,null,null,null,null,null,null,null,null,null,null,null,null,null,null,null,null,null,null,null,null,6,482,{"$f":"IF($O$4>0,(SMALL(($M121,$U121,$AC121,$AL121,$AT121,$BB121),1)),\"0\")","v":6},null,null,null,0,482,null,null,null,null,"nee"]
[null,"527543AW","Emily Wiskerke","Aristocraat","LT","Zuid-Beveland, RV.",null,null,null,0,null,null,null,99,null,null,null,0,null,null,null,99,1,"220,5",216,436.5,null,null,{"$f":"VLOOKUP(AD122,Blad1!A:C,2,0)","v":7},10,null,null,null,null,null,null,null,null,null,null,null,null,null,null,null,null,null,null,null,null,null,null,null,null,7,436.5,{"$f":"IF($O$4>0,(SMALL(($M122,$U122,$AC122,$AL122,$AT122,$BB122),1)),\"0\")","v":7},null,null,null,0,436.5,null,null,null,null,"nee"]
[null,"559960AW","Wilma Wernsen","Apretado","LT","Srjv Groenendaal, RV.",null,"246,5",243,489.5,null,null,{"$f":"VLOOKUP(N123,Blad1!A:C,2,0)","v":7},10,null,null,null,0,null,null,null,99,null,null,null,0,null,null,null,99,null,null,null,null,null,null,null,null,null,null,null,null,null,null,null,null,null,null,null,null,null,null,null,null,7,489.5,{"$f":"IF($O$4>0,(SMALL(($M123,$U123,$AC123,$AL123,$AT123,$BB123),1)),\"0\")","v":7},null,null,null,0,489.5,null,null,null,null,"nee"]
[null,"841314RB","Zoe De Booij","Rohdante","LT","Oranjeruiters, RV.",null,null,null,0,null,null,null,99,null,null,null,0,null,null,null,99,1,"223,5","218,5",442,null,null,{"$f":"VLOOKUP(AD124,Blad1!A:C,2,0)","v":8},9,null,null,null,null,null,null,null,null,null,null,null,null,null,null,null,null,null,null,null,null,null,null,null,null,8,442,{"$f":"IF($O$4>0,(SMALL(($M124,$U124,$AC124,$AL124,$AT124,$BB124),1)),\"0\")","v":8},null,null,null,0,442,null,null,null,null,"nee"]
[null,"838408LL","Dinja Van Liere","Lollypop","LT","Veldhuisen Stables Nigtevecht",null,null,null,0,null,null,null,99,1,262,"253,5",515.5,null,null,{"$f":"VLOOKUP(V125,Blad1!A:C,2,0)","v":8},9,null,null,null,0,null,null,null,99,null,null,null,null,null,null,null,null,null,null,null,null,null,null,null,null,null,null,null,null,null,null,null,null,8,515.5,{"$f":"IF($O$4>0,(SMALL(($M125,$U125,$AC125,$AL125,$AT125,$BB125),1)),\"0\")","v":8},null,null,null,0,515.5,null,null,null,null,"nee"]
[null,"600472DB","Vincent Bol","Vip","LT","Walcheren, RV.",null,null,null,0,null,null,null,99,null,null,null,0,null,null,null,99,1,"226,5",232,458.5,null,null,{"$f":"VLOOKUP(AD126,Blad1!A:C,2,0)","v":9},8,null,null,null,null,null,null,null,null,null,null,null,null,null,null,null,null,null,null,null,null,null,null,null,null,9,458.5,{"$f":"IF($O$4>0,(SMALL(($M126,$U126,$AC126,$AL126,$AT126,$BB126),1)),\"0\")","v":9},null,null,null,0,458.5,null,null,null,null,"nee"]
[null,"839097FN","Jeanine Nieuwenhuis","Flying Dutchman TC","LT","Oud-beijerland, RV.",null,null,null,0,null,null,null,99,1,"256,5","255,5",512,null,null,{"$f":"VLOOKUP(V127,Blad1!A:C,2,0)","v":9},8,null,null,null,0,null,null,null,99,null,null,null,null,null,null,null,null,null,null,null,null,null,null,null,null,null,null,null,null,null,null,null,null,9,512,{"$f":"IF($O$4>0,(SMALL(($M127,$U127,$AC127,$AL127,$AT127,$BB127),1)),\"0\")","v":9},null,null,null,0,512,null,null,null,null,"nee"]
[null,"680305AV","Nathalie Vorenhout","Anna Van De 'haffriehoeve'","LT","Generaal Van Den Bosch, RV.",null,"243,5",243,486.5,null,null,{"$f":"VLOOKUP(N128,Blad1!A:C,2,0)","v":9},8,null,null,null,0,null,null,null,99,null,null,null,0,null,null,null,99,null,null,null,null,null,null,null,null,null,null,null,null,null,null,null,null,null,null,null,null,null,null,null,null,9,486.5,{"$f":"IF($O$4>0,(SMALL(($M128,$U128,$AC128,$AL128,$AT128,$BB128),1)),\"0\")","v":9},null,null,null,0,486.5,null,null,null,null,"nee"]
[null,"649055DK","Stephanie Kooyman","Dibert L","LT","Oud-beijerland, RV.",null,264,"271,5",535.5,null,null,{"$f":"VLOOKUP(N129,Blad1!A:C,2,0)","v":10},7,null,null,null,0,null,null,null,99,null,null,null,0,null,null,null,99,null,null,null,null,null,null,null,null,null,null,null,null,null,null,null,null,null,null,null,null,null,null,null,null,10,535.5,{"$f":"IF($O$4>0,(SMALL(($M129,$U129,$AC129,$AL129,$AT129,$BB129),1)),\"0\")","v":10},null,null,null,0,535.5,null,null,null,null,"nee"]
[null,"729053DL","Astrid Langeberg","Downtown","LT","Soc. Rijvereniging Vennen, RV.",null,null,null,0,null,null,null,99,null,"260,5",246,506.5,null,null,{"$f":"VLOOKUP(V130,Blad1!A:C,2,0)","v":10},7,null,null,null,0,null,null,null,99,null,null,null,null,null,null,null,null,null,null,null,null,null,null,null,null,null,null,null,null,null,null,null,null,10,506.5,{"$f":"IF($O$4>0,(SMALL(($M130,$U130,$AC130,$AL130,$AT130,$BB130),1)),\"0\")","v":10},null,null,null,0,506.5,null,null,null,null,"nee"]
[null,"819264DB","Hester Bischot","Dancer Again","LT","Hce Ruiters, RV.",null,249,249,498,null,null,{"$f":"VLOOKUP(N131,Blad1!A:C,2,0)","v":12},5,null,null,null,0,null,null,null,99,null,null,null,0,null,null,null,99,null,null,null,null,null,null,null,null,null,null,null,null,null,null,null,null,null,null,null,null,null,null,null,null,12,498,{"$f":"IF($O$4>0,(SMALL(($M131,$U131,$AC131,$AL131,$AT131,$BB131),1)),\"0\")","v":12},null,null,null,0,498,null,null,null,null,"nee"]
[null,"816379AB","Kirsten Beckers","Aladin","LT","Oud-beijerland, RV.",null,"253,5","264,5",518,null,null,{"$f":"VLOOKUP(N132,Blad1!A:C,2,0)","v":12},5,null,null,null,0,null,null,null,99,null,null,null,0,null,null,null,99,null,null,null,null,null,null,null,null,null,null,null,null,null,null,null,null,null,null,null,null,null,null,null,null,12,518,{"$f":"IF($O$4>0,(SMALL(($M132,$U132,$AC132,$AL132,$AT132,$BB132),1)),\"0\")","v":12},null,null,null,0,518,null,null,null,null,"nee"]
[null,"806892WB","Femke Beljon","Winningmood","LT","Raalte, RV.",null,263,"257,5",520.5,null,null,{"$f":"VLOOKUP(N133,Blad1!A:C,2,0)","v":13},4,null,null,null,0,null,null,null,99,null,null,null,0,null,null,null,99,null,null,null,null,null,null,null,null,null,null,null,null,null,null,null,null,null,null,null,null,null,null,null,null,13,520.5,{"$f":"IF($O$4>0,(SMALL(($M133,$U133,$AC133,$AL133,$AT133,$BB133),1)),\"0\")","v":13},null,null,null,0,520.5,null,null,null,null,"nee"]
[null,"785919FF","Charlotte Fry","Fendi T","LT","Ons Genoegen, RV.",null,null,null,0,null,null,null,99,null,null,null,0,null,null,null,99,1,"244,5",232,476.5,null,null,{"$f":"VLOOKUP(AD134,Blad1!A:C,2,0)","v":15},3,null,null,null,null,null,null,null,null,null,null,null,null,null,null,null,null,null,null,null,null,null,null,null,null,15,476.5,{"$f":"IF($O$4>0,(SMALL(($M134,$U134,$AC134,$AL134,$AT134,$BB134),1)),\"0\")","v":15},null,null,null,0,476.5,null,null,null,null,"nee"]
[null,"724703FB","Kirsten Brouwer","Ferdeaux","LT","Voornruiters, RV. De",null,"282,5",272,554.5,null,null,{"$f":"VLOOKUP(N135,Blad1!A:C,2,0)","v":20},1,null,null,null,0,null,null,null,99,null,null,null,0,null,null,null,99,null,null,null,null,null,null,null,null,null,null,null,null,null,null,null,null,null,null,null,null,null,null,null,null,20,554.5,{"$f":"IF($O$4>0,(SMALL(($M135,$U135,$AC135,$AL135,$AT135,$BB135),1)),\"0\")","v":20},null,null,null,0,554.5,null,null,null,null,"nee"]
[null,null,null,null,null,null,null,null,null,null,null,null,null,null,null,null,null,null,null,null,null,null,null,null,null,null,null,null,null,null,null,null,null,null,null,null,null,null,null,null,null,null,null,null,null,null,null,null,null,null,null,null,null,null,null,null,null,null,null,null,null,0,null,null,null,null,"nee"]
[null,null,null,null,null,null,null,null,null,null,null,null,null,null,null,null,null,null,null,null,null,null,null,null,null,null,null,null,null,null,null,null,null,null,null,null,null,null,null,null,null,null,null,null,null,null,null,null,null,null,null,null,null,null,null,null,null,null,null,null,null,{"$f":"BD137-BG137-BH137","v":0},null,null,null,null,"nee"]
[null,null,null,null,null,null,null,null,null,null,null,null,null,null,null,null,null,null,null,null,null,null,null,null,null,null,null,null,null,null,null,null,null,null,null,null,null,null,null,null,null,null,null,null,null,null,null,null,null,null,null,null,null,null,null,null,null,null,null,null,null,0,null,null,null,null,{"$f":"IF(COUNT(M138,U138,AC138)>1,\"ja\",\"nee\")","v":"nee"}]
[null,null,null,null,null,null,null,null,null,null,null,null,null,null,null,null,null,null,null,null,null,null,null,null,null,null,null,null,null,null,null,null,null,null,null,null,null,null,null,null,null,null,null,null,null,null,null,null,null,null,null,null,null,null,null,null,null,null,null,null,null,0,null,null,null,null,"nee"]
[null,null,null,null,null,null,null,null,null,null,null,null,null,null,null,null,null,null,null,null,null,null,null,null,null,null,null,null,null,null,null,null,null,null,null,null,null,null,null,null,null,null,null,null,null,null,null,null,null,null,null,null,null,null,null,null,null,null,null,null,null,0,null,null,null,null,"nee"]
[null,null,null,null,null,null,null,null,null,null,null,null,null,null,null,null,null,null,null,null,null,null,null,null,null,null,null,null,null,null,null,null,null,null,null,null,null,null,null,null,null,null,null,null,null,null,null,null,null,null,null,null,null,null,null,null,null,null,null,null,null,0,null,null,null,null,"nee"]
[null,null,null,null,null,null,null,null,null,null,null,null,null,null,null,null,null,null,null,null,null,null,null,null,null,null,null,null,null,null,null,null,null,null,null,null,null,null,null,null,null,null,null,null,null,null,null,null,null,null,null,null,null,null,null,null,null,null,null,null,null,0,null,null,null,null,"nee"]
[null,null,null,null,null,null,null,null,null,null,null,null,null,null,null,null,null,null,null,null,null,null,null,null,null,null,null,null,null,null,null,null,null,null,null,null,null,null,null,null,null,null,null,null,null,null,null,null,null,null,null,null,null,null,null,null,null,null,null,null,null,0,null,null,null,null,"nee"]

{"sheet":"L1","index":3,"n_rows":8,"n_cols":66,"rows_kept":8,"cut":false,"hidden":true,"merged":[[0,0,0,65],[2,0,2,1],[2,2,2,4],[2,5,2,13],[2,14,2,21],[2,22,4,53],[2,54,2,62],[2,64,6,65],[3,0,3,1],[3,2,3,4],[3,5,3,13],[3,14,3,21],[3,54,3,62],[4,0,4,1],[4,2,4,4],[4,5,4,13],[4,14,4,21],[4,54,4,62],[5,0,6,4],[5,6,5,13],[5,14,5,21],[5,22,5,29],[5,30,5,37],[5,46,5,53],[5,54,5,59],[6,6,6,13],[6,14,6,21],[6,22,6,29],[6,30,6,37],[6,38,6,45],[6,46,6,53],[5,38,5,45]]}
["Selectie uitslagen"]
[null,null,1,{"$f":"FLOOR((C2+3)/4,1)","v":1},null,null,null,192,190,{"$f":"H2+I2","v":382},null,null,null,1,null,193,193,{"$f":"P2+Q2","v":386},null,null,null,2,null,198,198,{"$f":"X2+Y2","v":396},null,null,null,3,null,177,177,{"$f":"AF2+AG2","v":354},null,null,null,4,null,178,178,{"$f":"AN2+AO2","v":356},null,null,null,5,null,179,179,{"$f":"AV2+AW2","v":358},null,null,null,6,{"$f":"N2+V2+AD2+AL2+AT2+BB2","v":21},{"$f":"J2+R2+Z2+AH2+AP2+AX2","v":2232},{"$f":"IF($O$4>0,(LARGE(($N2,$V2,$AD2,$AL2,$AT2,$BB2),1)),\"0\")","v":6},{"$f":"IF($O$4>0,(LARGE(($N2,$V2,$AD2,$AL2,$AT2,$BB2),2)),\"0\")","v":5},354,354,{"$f":"BC2-BE2-BF2","v":10},{"$f":"BD2-BG2-BH2","v":1524}]
["Kring:",null,{"$f":"Instellingen!B3","v":"Selectie Subtop"},null,null,"Aantal afvaardiging Regio:",null,null,null,null,null,null,null,null,null,null,null,null,null,null,null,null,null,null,null,null,null,null,null,null,null,null,null,null,null,null,null,null,null,null,null,null,null,null,null,null,null,null,null,null,null,null,null,null,"Aantal wedstrijden:",null,null,null,null,null,null,null,null,{"$f":"Instellingen!B6","v":3}]
["Klasse:",null,"L1",null,null,"Aantal afval resultaten:",null,null,null,null,null,null,null,null,{"$f":"Instellingen!B7","v":1}]
["Cat.:",null,null,null,null,"Plaatsingspunten niet gestart:",null,null,null,null,null,null,null,null,{"$f":"Instellingen!B5","v":99},null,null,null,null,null,null,null,null,null,null,null,null,null,null,null,null,null,null,null,null,null,null,null,null,null,null,null,null,null,null,null,null,null,null,null,null,null,null,null,"Aantal reserves:",null,null,null,null,null,null,null,null,2]
[null,null,null,null,null,"Lokatie:",{"$f":"Instellingen!B36","v":"Delft/Werkendam/Harich"},null,null,null,null,null,null,null,{"$f":"Instellingen!B37","v":"uden/Emmeloord/Den Hoorn"},null,null,null,null,null,null,null,{"$f":"Instellingen!B38","v":"Nw. en St. Joosland/Boxtel/Bunschoten-Spakenburg"},null,null,null,null,null,null,null,{"$f":"Instellingen!B39","v":" "},null,null,null,null,null,null,null,{"$f":"Instellingen!B40","v":" "},null,null,null,null,null,null,null,{"$f":"Instellingen!B41","v":" "},null,null,null,null,null,null,null,"Dressuur",null,null,null,null,null,"Pnt. 60% regel",null,null,180]
[null,null,null,null,null,"Datum:",{"$f":"Instellingen!C36","v":"18 & 19 -11-2017"},null,null,null,null,null,null,null,{"$f":"Instellingen!C37","v":"16 & 17 -12 -2017"},null,null,null,null,null,null,null,{"$f":"Instellingen!C38","v":"20 en 21-1-2018"},null,null,null,null,null,null,null,{"$f":"Instellingen!C39","v":" "},null,null,null,null,null,null,null,{"$f":"Instellingen!C40","v":" "},null,null,null,null,null,null,null,{"$f":"Instellingen!C41","v":" "},null,null,null,null,null,null,null,"Tot.","Tot.","afval","afval","afval","afval","Beste","Beste"]
["Pl.","Comb.nr.","Ruiter/amazone","Paard/pony","kl.","vereniging","Ring","pnt.C","pnt.H","pnt.tot","ex 1","ex 2","pl.","pl.p.","Ring","pnt.C","pnt.H","pnt.tot.","ex 1","ex 2","pl.","pl.p.","Ring","pnt.C","pnt. H","pnt.tot.","ex 1","ex 2","pl.","pl.p.","Ring","pnt.C","pnt.H","pnt.tot.","ex 1","ex 2","pl.","pl.p.","Ring","pnt.C","pnt.H","pnt.tot.","ex 1","ex 2","pl.","pl.p.","Ring","pnt.C","pnt.H","pnt.tot.","ex 1","ex 2","pl.","pl.p.","pl.pnt","punten","pl.pnt","pl.pnt","punten","punten","pl.pnt","punten","Afv.","Res.","Afv. Regio","opmerking"]

{"sheet":"L2","index":4,"n_rows":8,"n_cols":66,"rows_kept":8,"cut":false,"hidden":true,"merged":[[4,14,4,21],[4,54,4,62],[5,0,6,4],[5,6,5,13],[5,14,5,21],[5,22,5,29],[5,30,5,37],[5,46,5,53],[5,54,5,59],[6,6,6,13],[6,14,6,21],[6,22,6,29],[6,30,6,37],[6,38,6,45],[6,46,6,53],[5,38,5,45],[0,0,0,65],[2,0,2,1],[2,2,2,4],[2,5,2,13],[2,14,2,21],[2,22,4,53],[2,54,2,62],[2,64,6,65],[3,0,3,1],[3,2,3,4],[3,5,3,13],[3,14,3,21],[3,54,3,62],[4,0,4,1],[4,2,4,4],[4,5,4,13]]}
["Selectie uitslagen"]
[null,null,1,{"$f":"FLOOR((C2+3)/4,1)","v":1},null,null,null,192,190,{"$f":"H2+I2","v":382},null,null,null,1,null,193,193,{"$f":"P2+Q2","v":386},null,null,null,2,null,198,198,{"$f":"X2+Y2","v":396},null,null,null,3,null,177,177,{"$f":"AF2+AG2","v":354},null,null,null,4,null,178,178,{"$f":"AN2+AO2","v":356},null,null,null,5,null,179,179,{"$f":"AV2+AW2","v":358},null,null,null,6,{"$f":"N2+V2+AD2+AL2+AT2+BB2","v":21},{"$f":"J2+R2+Z2+AH2+AP2+AX2","v":2232},{"$f":"IF($O$4>0,(LARGE(($N2,$V2,$AD2,$AL2,$AT2,$BB2),1)),\"0\")","v":6},{"$f":"IF($O$4>0,(LARGE(($N2,$V2,$AD2,$AL2,$AT2,$BB2),2)),\"0\")","v":5},354,354,{"$f":"BC2-BE2-BF2","v":10},{"$f":"BD2-BG2-BH2","v":1524}]
["Kring:",null,{"$f":"Instellingen!B3","v":"Selectie Subtop"},null,null,"Aantal afvaardiging Regio:",null,null,null,null,null,null,null,null,null,null,null,null,null,null,null,null,null,null,null,null,null,null,null,null,null,null,null,null,null,null,null,null,null,null,null,null,null,null,null,null,null,null,null,null,null,null,null,null,"Aantal wedstrijden:",null,null,null,null,null,null,null,null,{"$f":"Instellingen!B6","v":3}]
["Klasse:",null,"L2",null,null,"Aantal afval resultaten:",null,null,null,null,null,null,null,null,{"$f":"Instellingen!B7","v":1}]
["Cat.:",null,null,null,null,"Plaatsingspunten niet gestart:",null,null,null,null,null,null,null,null,{"$f":"Instellingen!B5","v":99},null,null,null,null,null,null,null,null,null,null,null,null,null,null,null,null,null,null,null,null,null,null,null,null,null,null,null,null,null,null,null,null,null,null,null,null,null,null,null,"Aantal reserves:",null,null,null,null,null,null,null,null,2]
[null,null,null,null,null,"Lokatie:",{"$f":"Instellingen!B36","v":"Delft/Werkendam/Harich"},null,null,null,null,null,null,null,{"$f":"Instellingen!B37","v":"uden/Emmeloord/Den Hoorn"},null,null,null,null,null,null,null,{"$f":"Instellingen!B38","v":"Nw. en St. Joosland/Boxtel/Bunschoten-Spakenburg"},null,null,null,null,null,null,null,{"$f":"Instellingen!B39","v":" "},null,null,null,null,null,null,null,{"$f":"Instellingen!B40","v":" "},null,null,null,null,null,null,null,{"$f":"Instellingen!B41","v":" "},null,null,null,null,null,null,null,"Dressuur",null,null,null,null,null,"Pnt. 60% regel",null,null,180]
[null,null,null,null,null,"Datum:",{"$f":"Instellingen!C36","v":"18 & 19 -11-2017"},null,null,null,null,null,null,null,{"$f":"Instellingen!C37","v":"16 & 17 -12 -2017"},null,null,null,null,null,null,null,{"$f":"Instellingen!C38","v":"20 en 21-1-2018"},null,null,null,null,null,null,null,{"$f":"Instellingen!C39","v":" "},null,null,null,null,null,null,null,{"$f":"Instellingen!C40","v":" "},null,null,null,null,null,null,null,{"$f":"Instellingen!C41","v":" "},null,null,null,null,null,null,null,"Tot.","Tot.","afval","afval","afval","afval","Beste","Beste"]
["Pl.","Comb.nr.","Ruiter/amazone","Paard/pony","kl.","vereniging","Ring","pnt.C","pnt.H","pnt.tot","ex 1","ex 2","pl.","pl.p.","Ring","pnt.C","pnt.H","pnt.tot.","ex 1","ex 2","pl.","pl.p.","Ring","pnt.C","pnt. H","pnt.tot.","ex 1","ex 2","pl.","pl.p.","Ring","pnt.C","pnt.H","pnt.tot.","ex 1","ex 2","pl.","pl.p.","Ring","pnt.C","pnt.H","pnt.tot.","ex 1","ex 2","pl.","pl.p.","Ring","pnt.C","pnt.H","pnt.tot.","ex 1","ex 2","pl.","pl.p.","pl.pnt","punten","pl.pnt","pl.pnt","punten","punten","pl.pnt","punten","Afv.","Res.","Afv. Regio","opmerking"]

{"sheet":"L1 - L2","index":5,"n_rows":8,"n_cols":66,"rows_kept":8,"cut":false,"hidden":true,"merged":[[0,0,0,65],[2,2,2,4],[3,2,3,4],[4,2,4,4],[2,65,6,65],[2,0,2,1],[2,5,2,13],[5,14,5,21],[3,54,3,62],[2,54,2,62],[3,5,3,13],[5,46,5,53],[5,6,5,13],[4,14,4,21],[4,5,4,13],[5,38,5,45],[2,14,2,21],[5,54,5,59],[5,22,5,29],[6,22,6,29],[3,0,3,1],[4,0,4,1],[6,6,6,13],[5,0,6,4],[6,14,6,21],[3,14,3,21],[4,54,4,62],[2,22,4,53],[6,46,6,53],[5,30,5,37],[6,30,6,37],[6,38,6,45]]}
["Selectie uitslagen"]
[null,null,1,{"$f":"FLOOR((C2+3)/4,1)","v":1},null,null,192,192,190,{"$f":"H2+I2","v":382},null,null,null,1,193,193,193,{"$f":"P2+Q2","v":386},null,null,null,2,198,198,198,{"$f":"X2+Y2","v":396},null,null,null,3,177,177,177,{"$f":"AF2+AG2","v":354},null,null,null,4,178,178,178,{"$f":"AN2+AO2","v":356},null,null,null,5,179,179,179,{"$f":"AV2+AW2","v":358},null,null,null,6,{"$f":"N2+V2+AD2+AL2+AT2+BB2","v":21},{"$f":"J2+R2+Z2+AH2+AP2+AX2","v":2232},{"$f":"IF($O$4>0,(LARGE(($N2,$V2,$AD2,$AL2,$AT2,$BB2),1)),\"0\")","v":6},{"$f":"IF($O$4>0,(LARGE(($N2,$V2,$AD2,$AL2,$AT2,$BB2),2)),\"0\")","v":5},354,354,{"$f":"BC2-BE2-BF2","v":10},{"$f":"BD2-BG2-BH2","v":1524}]
["Kring:",null,{"$f":"Instellingen!B3","v":"Selectie Subtop"},null,null,null,null,null,null,null,null,null,null,null,null,null,null,null,null,null,null,null,null,null,null,null,null,null,null,null,null,null,null,null,null,null,null,null,null,null,null,null,null,null,null,null,null,null,null,null,null,null,null,null,"Aantal wedstrijden:",null,null,null,null,null,null,null,null,{"$f":"Instellingen!B6","v":3}]
["Klasse:",null,"L1 - L2",null,null,"Aantal afval resultaten:",null,null,null,null,null,null,null,null,{"$f":"Instellingen!B7","v":1}]
["Cat.:",null,null,null,null,"Plaatsingspunten niet gestart:",null,null,null,null,null,null,null,null,{"$f":"Instellingen!B5","v":99}]
[null,null,null,null,null,"Lokatie:",{"$f":"Instellingen!B36","v":"Delft/Werkendam/Harich"},null,null,null,null,null,null,null,{"$f":"Instellingen!B37","v":"uden/Emmeloord/Den Hoorn"},null,null,null,null,null,null,null,{"$f":"Instellingen!B38","v":"Nw. en St. Joosland/Boxtel/Bunschoten-Spakenburg"},null,null,null,null,null,null,null,{"$f":"Instellingen!B39","v":" "},null,null,null,null,null,null,null,{"$f":"Instellingen!B40","v":" "},null,null,null,null,null,null,null,{"$f":"Instellingen!B41","v":" "},null,null,null,null,null,null,null,"Dressuur"]
[null,null,null,null,null,"Datum:",{"$f":"Instellingen!C36","v":"18 & 19 -11-2017"},null,null,null,null,null,null,null,{"$f":"Instellingen!C37","v":"16 & 17 -12 -2017"},null,null,null,null,null,null,null,{"$f":"Instellingen!C38","v":"20 en 21-1-2018"},null,null,null,null,null,null,null,{"$f":"Instellingen!C39","v":" "},null,null,null,null,null,null,null,{"$f":"Instellingen!C40","v":" "},null,null,null,null,null,null,null,{"$f":"Instellingen!C41","v":" "},null,null,null,null,null,null,null,"Tot.","Tot.","afval","afval","afval","afval","Beste","Beste"]
["Pl.","Comb.nr.","Ruiter/amazone","Paard/pony","kl.","vereniging","Ring","pnt.C","pnt.H","pnt.tot","ex 1","ex 2","pl.","pl.p.","Ring","pnt.C","pnt.H","pnt.tot.","ex 1","ex 2","pl.","pl.p.","Ring","pnt.C","pnt. H","pnt.tot.","ex 1","ex 2","pl.","pl.p.","Ring","pnt.C","pnt.H","pnt.tot.","ex 1","ex 2","pl.","pl.p.","Ring","pnt.C","pnt.H","pnt.tot.","ex 1","ex 2","pl.","pl.p.","Ring","pnt.C","pnt.H","pnt.tot.","ex 1","ex 2","pl.","pl.p.","pl.pnt","punten","pl.pnt","pl.pnt","punten","punten","pl.pnt","punten","Afv.","Res.",null,"opmerking"]

{"sheet":"M1","index":6,"n_rows":8,"n_cols":66,"rows_kept":8,"cut":false,"hidden":true,"merged":[[4,14,4,21],[4,54,4,62],[5,0,6,4],[5,6,5,13],[5,14,5,21],[5,22,5,29],[5,30,5,37],[5,46,5,53],[5,54,5,59],[6,6,6,13],[6,14,6,21],[6,22,6,29],[6,30,6,37],[6,38,6,45],[6,46,6,53],[5,38,5,45],[0,0,0,65],[2,0,2,1],[2,2,2,4],[2,5,2,13],[2,14,2,21],[2,22,4,53],[2,54,2,62],[2,64,6,65],[3,0,3,1],[3,2,3,4],[3,5,3,13],[3,14,3,21],[3,54,3,62],[4,0,4,1],[4,2,4,4],[4,5,4,13]]}
["Selectie uitslagen"]
[null,null,1,{"$f":"FLOOR((C2+3)/4,1)","v":1},null,null,null,192,190,{"$f":"H2+I2","v":382},null,null,null,1,null,193,193,{"$f":"P2+Q2","v":386},null,null,null,2,null,198,198,{"$f":"X2+Y2","v":396},null,null,null,3,null,177,177,{"$f":"AF2+AG2","v":354},null,null,null,4,null,178,178,{"$f":"AN2+AO2","v":356},null,null,null,5,null,179,179,{"$f":"AV2+AW2","v":358},null,null,null,6,{"$f":"N2+V2+AD2+AL2+AT2+BB2","v":21},{"$f":"J2+R2+Z2+AH2+AP2+AX2","v":2232},{"$f":"IF($O$4>0,(LARGE(($N2,$V2,$AD2,$AL2,$AT2,$BB2),1)),\"0\")","v":6},{"$f":"IF($O$4>0,(LARGE(($N2,$V2,$AD2,$AL2,$AT2,$BB2),2)),\"0\")","v":5},354,354,{"$f":"BC2-BE2-BF2","v":10},{"$f":"BD2-BG2-BH2","v":1524}]
["Kring:",null,{"$f":"Instellingen!B3","v":"Selectie Subtop"},null,null,"Aantal afvaardiging Regio:",null,null,null,null,null,null,null,null,null,null,null,null,null,null,null,null,null,null,null,null,null,null,null,null,null,null,null,null,null,null,null,null,null,null,null,null,null,null,null,null,null,null,null,null,null,null,null,null,"Aantal wedstrijden:",null,null,null,null,null,null,null,null,{"$f":"Instellingen!B6","v":3}]
["Klasse:",null,"M1",null,null,"Aantal afval resultaten:",null,null,null,null,null,null,null,null,{"$f":"Instellingen!B7","v":1}]
["Cat.:",null,null,null,null,"Plaatsingspunten niet gestart:",null,null,null,null,null,null,null,null,{"$f":"Instellingen!B5","v":99},null,null,null,null,null,null,null,null,null,null,null,null,null,null,null,null,null,null,null,null,null,null,null,null,null,null,null,null,null,null,null,null,null,null,null,null,null,null,null,"Aantal reserves:",null,null,null,null,null,null,null,null,2]
[null,null,null,null,null,"Lokatie:",{"$f":"Instellingen!B36","v":"Delft/Werkendam/Harich"},null,null,null,null,null,null,null,{"$f":"Instellingen!B37","v":"uden/Emmeloord/Den Hoorn"},null,null,null,null,null,null,null,{"$f":"Instellingen!B38","v":"Nw. en St. Joosland/Boxtel/Bunschoten-Spakenburg"},null,null,null,null,null,null,null,{"$f":"Instellingen!B39","v":" "},null,null,null,null,null,null,null,{"$f":"Instellingen!B40","v":" "},null,null,null,null,null,null,null,{"$f":"Instellingen!B41","v":" "},null,null,null,null,null,null,null,"Dressuur",null,null,null,null,null,"Pnt. 60% regel",null,null,180]
[null,null,null,null,null,"Datum:",{"$f":"Instellingen!C36","v":"18 & 19 -11-2017"},null,null,null,null,null,null,null,{"$f":"Instellingen!C37","v":"16 & 17 -12 -2017"},null,null,null,null,null,null,null,{"$f":"Instellingen!C38","v":"20 en 21-1-2018"},null,null,null,null,null,null,null,{"$f":"Instellingen!C39","v":" "},null,null,null,null,null,null,null,{"$f":"Instellingen!C40","v":" "},null,null,null,null,null,null,null,{"$f":"Instellingen!C41","v":" "},null,null,null,null,null,null,null,"Tot.","Tot.","afval","afval","afval","afval","Beste","Beste"]
["Pl.","Comb.nr.","Ruiter/amazone","Paard/pony","kl.","vereniging","Ring","pnt.C","pnt.H","pnt.tot","ex 1","ex 2","pl.","pl.p.","Ring","pnt.C","pnt.H","pnt.tot.","ex 1","ex 2","pl.","pl.p.","Ring","pnt.C","pnt. H","pnt.tot.","ex 1","ex 2","pl.","pl.p.","Ring","pnt.C","pnt.H","pnt.tot.","ex 1","ex 2","pl.","pl.p.","Ring","pnt.C","pnt.H","pnt.tot.","ex 1","ex 2","pl.","pl.p.","Ring","pnt.C","pnt.H","pnt.tot.","ex 1","ex 2","pl.","pl.p.","pl.pnt","punten","pl.pnt","pl.pnt","punten","punten","pl.pnt","punten","Afv.","Res.","Afv. Regio","opmerking"]

{"sheet":"M2","index":7,"n_rows":8,"n_cols":66,"rows_kept":8,"cut":false,"hidden":true,"merged":[[4,14,4,21],[4,54,4,62],[5,0,6,4],[5,6,5,13],[5,14,5,21],[5,22,5,29],[5,30,5,37],[5,46,5,53],[5,54,5,59],[6,6,6,13],[6,14,6,21],[6,22,6,29],[6,30,6,37],[6,38,6,45],[6,46,6,53],[5,38,5,45],[0,0,0,65],[2,0,2,1],[2,2,2,4],[2,5,2,13],[2,14,2,21],[2,22,4,53],[2,54,2,62],[2,64,6,65],[3,0,3,1],[3,2,3,4],[3,5,3,13],[3,14,3,21],[3,54,3,62],[4,0,4,1],[4,2,4,4],[4,5,4,13]]}
["Selectie uitslagen"]
[null,null,1,{"$f":"FLOOR((C2+3)/4,1)","v":1},null,null,null,192,190,{"$f":"H2+I2","v":382},null,null,null,1,null,193,193,{"$f":"P2+Q2","v":386},null,null,null,2,null,198,198,{"$f":"X2+Y2","v":396},null,null,null,3,null,177,177,{"$f":"AF2+AG2","v":354},null,null,null,4,null,178,178,{"$f":"AN2+AO2","v":356},null,null,null,5,null,179,179,{"$f":"AV2+AW2","v":358},null,null,null,6,{"$f":"N2+V2+AD2+AL2+AT2+BB2","v":21},{"$f":"J2+R2+Z2+AH2+AP2+AX2","v":2232},{"$f":"IF($O$4>0,(LARGE(($N2,$V2,$AD2,$AL2,$AT2,$BB2),1)),\"0\")","v":6},{"$f":"IF($O$4>0,(LARGE(($N2,$V2,$AD2,$AL2,$AT2,$BB2),2)),\"0\")","v":5},354,354,{"$f":"BC2-BE2-BF2","v":10},{"$f":"BD2-BG2-BH2","v":1524}]
["Kring:",null,{"$f":"Instellingen!B3","v":"Selectie Subtop"},null,null,"Aantal afvaardiging Regio:",null,null,null,null,null,null,null,null,null,null,null,null,null,null,null,null,null,null,null,null,null,null,null,null,null,null,null,null,null,null,null,null,null,null,null,null,null,null,null,null,null,null,null,null,null,null,null,null,"Aantal wedstrijden:",null,null,null,null,null,null,null,null,{"$f":"Instellingen!B6","v":3}]
["Klasse:",null,"M2",null,null,"Aantal afval resultaten:",null,null,null,null,null,null,null,null,{"$f":"Instellingen!B7","v":1}]
["Cat.:",null,null,null,null,"Plaatsingspunten niet gestart:",null,null,null,null,null,null,null,null,{"$f":"Instellingen!B5","v":99},null,null,null,null,null,null,null,null,null,null,null,null,null,null,null,null,null,null,null,null,null,null,null,null,null,null,null,null,null,null,null,null,null,null,null,null,null,null,null,"Aantal reserves:",null,null,null,null,null,null,null,null,2]
[null,null,null,null,null,"Lokatie:",{"$f":"Instellingen!B36","v":"Delft/Werkendam/Harich"},null,null,null,null,null,null,null,{"$f":"Instellingen!B37","v":"uden/Emmeloord/Den Hoorn"},null,null,null,null,null,null,null,{"$f":"Instellingen!B38","v":"Nw. en St. Joosland/Boxtel/Bunschoten-Spakenburg"},null,null,null,null,null,null,null,{"$f":"Instellingen!B39","v":" "},null,null,null,null,null,null,null,{"$f":"Instellingen!B40","v":" "},null,null,null,null,null,null,null,{"$f":"Instellingen!B41","v":" "},null,null,null,null,null,null,null,"Dressuur",null,null,null,null,null,"Pnt. 60% regel",null,null,180]
[null,null,null,null,null,"Datum:",{"$f":"Instellingen!C36","v":"18 & 19 -11-2017"},null,null,null,null,null,null,null,{"$f":"Instellingen!C37","v":"16 & 17 -12 -2017"},null,null,null,null,null,null,null,{"$f":"Instellingen!C38","v":"20 en 21-1-2018"},null,null,null,null,null,null,null,{"$f":"Instellingen!C39","v":" "},null,null,null,null,null,null,null,{"$f":"Instellingen!C40","v":" "},null,null,null,null,null,null,null,{"$f":"Instellingen!C41","v":" "},null,null,null,null,null,null,null,"Tot.","Tot.","afval","afval","afval","afval","Beste","Beste"]
["Pl.","Comb.nr.","Ruiter/amazone","Paard/pony","kl.","vereniging","Ring","pnt.C","pnt.H","pnt.tot","ex 1","ex 2","pl.","pl.p.","Ring","pnt.C","pnt.H","pnt.tot.","ex 1","ex 2","pl.","pl.p.","Ring","pnt.C","pnt. H","pnt.tot.","ex 1","ex 2","pl.","pl.p.","Ring","pnt.C","pnt.H","pnt.tot.","ex 1","ex 2","pl.","pl.p.","Ring","pnt.C","pnt.H","pnt.tot.","ex 1","ex 2","pl.","pl.p.","Ring","pnt.C","pnt.H","pnt.tot.","ex 1","ex 2","pl.","pl.p.","pl.pnt","punten","pl.pnt","pl.pnt","punten","punten","pl.pnt","punten","Afv.","Res.","Afv. Regio","opmerking"]

{"sheet":"M1 - M2","index":8,"n_rows":8,"n_cols":66,"rows_kept":8,"cut":false,"hidden":true,"merged":[[0,0,0,65],[2,0,2,1],[2,2,2,4],[2,5,2,13],[2,14,2,21],[2,22,4,53],[2,54,2,62],[2,65,6,65],[3,0,3,1],[3,2,3,4],[3,5,3,13],[3,14,3,21],[3,54,3,62],[4,0,4,1],[4,2,4,4],[4,5,4,13],[4,14,4,21],[4,54,4,62],[5,0,6,4],[5,6,5,13],[5,14,5,21],[5,22,5,29],[5,30,5,37],[5,46,5,53],[5,54,5,59],[6,6,6,13],[6,14,6,21],[6,22,6,29],[6,30,6,37],[6,38,6,45],[6,46,6,53],[5,38,5,45]]}
["Selectie uitslagen"]
[null,null,1,{"$f":"FLOOR((C2+3)/4,1)","v":1},null,null,192,192,190,{"$f":"H2+I2","v":382},null,null,null,1,193,193,193,{"$f":"P2+Q2","v":386},null,null,null,2,198,198,198,{"$f":"X2+Y2","v":396},null,null,null,3,177,177,177,{"$f":"AF2+AG2","v":354},null,null,null,4,178,178,178,{"$f":"AN2+AO2","v":356},null,null,null,5,179,179,179,{"$f":"AV2+AW2","v":358},null,null,null,6,{"$f":"N2+V2+AD2+AL2+AT2+BB2","v":21},{"$f":"J2+R2+Z2+AH2+AP2+AX2","v":2232},{"$f":"IF($O$4>0,(LARGE(($N2,$V2,$AD2,$AL2,$AT2,$BB2),1)),\"0\")","v":6},{"$f":"IF($O$4>0,(LARGE(($N2,$V2,$AD2,$AL2,$AT2,$BB2),2)),\"0\")","v":5},354,354,{"$f":"BC2-BE2-BF2","v":10},{"$f":"BD2-BG2-BH2","v":1524}]
["Kring:",null,{"$f":"Instellingen!B3","v":"Selectie Subtop"},null,null,null,null,null,null,null,null,null,null,null,null,null,null,null,null,null,null,null,null,null,null,null,null,null,null,null,null,null,null,null,null,null,null,null,null,null,null,null,null,null,null,null,null,null,null,null,null,null,null,null,"Aantal wedstrijden:",null,null,null,null,null,null,null,null,{"$f":"Instellingen!B6","v":3}]
["Klasse:",null,"M1 - M2",null,null,"Aantal afval resultaten:",null,null,null,null,null,null,null,null,{"$f":"Instellingen!B7","v":1}]
["Cat.:",null,null,null,null,"Plaatsingspunten niet gestart:",null,null,null,null,null,null,null,null,{"$f":"Instellingen!B5","v":99}]
[null,null,null,null,null,"Lokatie:",{"$f":"Instellingen!B36","v":"Delft/Werkendam/Harich"},null,null,null,null,null,null,null,{"$f":"Instellingen!B37","v":"uden/Emmeloord/Den Hoorn"},null,null,null,null,null,null,null,{"$f":"Instellingen!B38","v":"Nw. en St. Joosland/Boxtel/Bunschoten-Spakenburg"},null,null,null,null,null,null,null,{"$f":"Instellingen!B39","v":" "},null,null,null,null,null,null,null,{"$f":"Instellingen!B40","v":" "},null,null,null,null,null,null,null,{"$f":"Instellingen!B41","v":" "},null,null,null,null,null,null,null,"Dressuur"]
[null,null,null,null,null,"Datum:",{"$f":"Instellingen!C36","v":"18 & 19 -11-2017"},null,null,null,null,null,null,null,{"$f":"Instellingen!C37","v":"16 & 17 -12 -2017"},null,null,null,null,null,null,null,{"$f":"Instellingen!C38","v":"20 en 21-1-2018"},null,null,null,null,null,null,null,{"$f":"Instellingen!C39","v":" "},null,null,null,null,null,null,null,{"$f":"Instellingen!C40","v":" "},null,null,null,null,null,null,null,{"$f":"Instellingen!C41","v":" "},null,null,null,null,null,null,null,"Tot.","Tot.","afval","afval","afval","afval","Beste","Beste"]
["Pl.","Comb.nr.","Ruiter/amazone","Paard/pony","kl.","vereniging","Ring","pnt.C","pnt.H","pnt.tot","ex 1","ex 2","pl.","pl.p.","Ring","pnt.C","pnt.H","pnt.tot.","ex 1","ex 2","pl.","pl.p.","Ring","pnt.C","pnt. H","pnt.tot.","ex 1","ex 2","pl.","pl.p.","Ring","pnt.C","pnt.H","pnt.tot.","ex 1","ex 2","pl.","pl.p.","Ring","pnt.C","pnt.H","pnt.tot.","ex 1","ex 2","pl.","pl.p.","Ring","pnt.C","pnt.H","pnt.tot.","ex 1","ex 2","pl.","pl.p.","pl.pnt","punten","pl.pnt","pl.pnt","punten","punten","pl.pnt","punten","Afv.","Res.",null,"opmerking"]

{"sheet":"Z1","index":9,"n_rows":8,"n_cols":66,"rows_kept":8,"cut":false,"hidden":true,"merged":[[4,14,4,21],[4,54,4,62],[5,0,6,4],[5,6,5,13],[5,14,5,21],[5,22,5,29],[5,30,5,37],[5,46,5,53],[5,54,5,59],[6,6,6,13],[6,14,6,21],[6,22,6,29],[6,30,6,37],[6,38,6,45],[6,46,6,53],[5,38,5,45],[0,0,0,65],[2,0,2,1],[2,2,2,4],[2,5,2,13],[2,14,2,21],[2,22,4,53],[2,54,2,62],[2,64,6,65],[3,0,3,1],[3,2,3,4],[3,5,3,13],[3,14,3,21],[3,54,3,62],[4,0,4,1],[4,2,4,4],[4,5,4,13]]}
["Selectie uitslagen"]
[null,null,1,{"$f":"FLOOR((C2+3)/4,1)","v":1},null,null,null,192,190,{"$f":"H2+I2","v":382},null,null,null,1,null,193,193,{"$f":"P2+Q2","v":386},null,null,null,2,null,198,198,{"$f":"X2+Y2","v":396},null,null,null,3,null,177,177,{"$f":"AF2+AG2","v":354},null,null,null,4,null,178,178,{"$f":"AN2+AO2","v":356},null,null,null,5,null,179,179,{"$f":"AV2+AW2","v":358},null,null,null,6,{"$f":"N2+V2+AD2+AL2+AT2+BB2","v":21},{"$f":"J2+R2+Z2+AH2+AP2+AX2","v":2232},{"$f":"IF($O$4>0,(LARGE(($N2,$V2,$AD2,$AL2,$AT2,$BB2),1)),\"0\")","v":6},{"$f":"IF($O$4>0,(LARGE(($N2,$V2,$AD2,$AL2,$AT2,$BB2),2)),\"0\")","v":5},354,354,{"$f":"BC2-BE2-BF2","v":10},{"$f":"BD2-BG2-BH2","v":1524}]
["Kring:",null,{"$f":"Instellingen!B3","v":"Selectie Subtop"},null,null,"Aantal afvaardiging Regio:",null,null,null,null,null,null,null,null,null,null,null,null,null,null,null,null,null,null,null,null,null,null,null,null,null,null,null,null,null,null,null,null,null,null,null,null,null,null,null,null,null,null,null,null,null,null,null,null,"Aantal wedstrijden:",null,null,null,null,null,null,null,null,{"$f":"Instellingen!B6","v":3}]
["Klasse:",null,"Z1",null,null,"Aantal afval resultaten:",null,null,null,null,null,null,null,null,{"$f":"Instellingen!B7","v":1}]
["Cat.:",null,null,null,null,"Plaatsingspunten niet gestart:",null,null,null,null,null,null,null,null,{"$f":"Instellingen!B5","v":99},null,null,null,null,null,null,null,null,null,null,null,null,null,null,null,null,null,null,null,null,null,null,null,null,null,null,null,null,null,null,null,null,null,null,null,null,null,null,null,"Aantal reserves:",null,null,null,null,null,null,null,null,2]
[null,null,null,null,null,"Lokatie:",{"$f":"Instellingen!B36","v":"Delft/Werkendam/Harich"},null,null,null,null,null,null,null,{"$f":"Instellingen!B37","v":"uden/Emmeloord/Den Hoorn"},null,null,null,null,null,null,null,{"$f":"Instellingen!B38","v":"Nw. en St. Joosland/Boxtel/Bunschoten-Spakenburg"},null,null,null,null,null,null,null,{"$f":"Instellingen!B39","v":" "},null,null,null,null,null,null,null,{"$f":"Instellingen!B40","v":" "},null,null,null,null,null,null,null,{"$f":"Instellingen!B41","v":" "},null,null,null,null,null,null,null,"Dressuur",null,null,null,null,null,"Pnt. 60% regel",null,null,204]
[null,null,null,null,null,"Datum:",{"$f":"Instellingen!C36","v":"18 & 19 -11-2017"},null,null,null,null,null,null,null,{"$f":"Instellingen!C37","v":"16 & 17 -12 -2017"},null,null,null,null,null,null,null,{"$f":"Instellingen!C38","v":"20 en 21-1-2018"},null,null,null,null,null,null,null,{"$f":"Instellingen!C39","v":" "},null,null,null,null,null,null,null,{"$f":"Instellingen!C40","v":" "},null,null,null,null,null,null,null,{"$f":"Instellingen!C41","v":" "},null,null,null,null,null,null,null,"Tot.","Tot.","afval","afval","afval","afval","Beste","Beste"]
["Pl.","Comb.nr.","Ruiter/amazone","Paard/pony","kl.","vereniging","Ring","pnt.C","pnt.H","pnt.tot","ex 1","ex 2","pl.","pl.p.","Ring","pnt.C","pnt.H","pnt.tot.","ex 1","ex 2","pl.","pl.p.","Ring","pnt.C","pnt. H","pnt.tot.","ex 1","ex 2","pl.","pl.p.","Ring","pnt.C","pnt.H","pnt.tot.","ex 1","ex 2","pl.","pl.p.","Ring","pnt.C","pnt.H","pnt.tot.","ex 1","ex 2","pl.","pl.p.","Ring","pnt.C","pnt.H","pnt.tot.","ex 1","ex 2","pl.","pl.p.","pl.pnt","punten","pl.pnt","pl.pnt","punten","punten","pl.pnt","punten","Afv.","Res.","Afv. Regio","opmerking"]

{"sheet":"Z2","index":10,"n_rows":8,"n_cols":66,"rows_kept":8,"cut":false,"hidden":true,"merged":[[4,14,4,21],[4,54,4,62],[5,0,6,4],[5,6,5,13],[5,14,5,21],[5,22,5,29],[5,30,5,37],[5,46,5,53],[5,54,5,59],[6,6,6,13],[6,14,6,21],[6,22,6,29],[6,30,6,37],[6,38,6,45],[6,46,6,53],[5,38,5,45],[0,0,0,65],[2,0,2,1],[2,2,2,4],[2,5,2,13],[2,14,2,21],[2,22,4,53],[2,54,2,62],[2,64,6,65],[3,0,3,1],[3,2,3,4],[3,5,3,13],[3,14,3,21],[3,54,3,62],[4,0,4,1],[4,2,4,4],[4,5,4,13]]}
["Selectie uitslagen"]
[null,null,1,{"$f":"FLOOR((C2+3)/4,1)","v":1},null,null,null,192,190,{"$f":"H2+I2","v":382},null,null,null,1,null,193,193,{"$f":"P2+Q2","v":386},null,null,null,2,null,198,198,{"$f":"X2+Y2","v":396},null,null,null,3,null,177,177,{"$f":"AF2+AG2","v":354},null,null,null,4,null,178,178,{"$f":"AN2+AO2","v":356},null,null,null,5,null,179,179,{"$f":"AV2+AW2","v":358},null,null,null,6,{"$f":"N2+V2+AD2+AL2+AT2+BB2","v":21},{"$f":"J2+R2+Z2+AH2+AP2+AX2","v":2232},{"$f":"IF($O$4>0,(LARGE(($N2,$V2,$AD2,$AL2,$AT2,$BB2),1)),\"0\")","v":6},{"$f":"IF($O$4>0,(LARGE(($N2,$V2,$AD2,$AL2,$AT2,$BB2),2)),\"0\")","v":5},354,354,{"$f":"BC2-BE2-BF2","v":10},{"$f":"BD2-BG2-BH2","v":1524}]
["Kring:",null,{"$f":"Instellingen!B3","v":"Selectie Subtop"},null,null,"Aantal afvaardiging Regio:",null,null,null,null,null,null,null,null,null,null,null,null,null,null,null,null,null,null,null,null,null,null,null,null,null,null,null,null,null,null,null,null,null,null,null,null,null,null,null,null,null,null,null,null,null,null,null,null,"Aantal wedstrijden:",null,null,null,null,null,null,null,null,{"$f":"Instellingen!B6","v":3}]
["Klasse:",null,"Z2",null,null,"Aantal afval resultaten:",null,null,null,null,null,null,null,null,{"$f":"Instellingen!B7","v":1}]
["Cat.:",null,null,null,null,"Plaatsingspunten niet gestart:",null,null,null,null,null,null,null,null,{"$f":"Instellingen!B5","v":99},null,null,null,null,null,null,null,null,null,null,null,null,null,null,null,null,null,null,null,null,null,null,null,null,null,null,null,null,null,null,null,null,null,null,null,null,null,null,null,"Aantal reserves:",null,null,null,null,null,null,null,null,2]
[null,null,null,null,null,"Lokatie:",{"$f":"Instellingen!B36","v":"Delft/Werkendam/Harich"},null,null,null,null,null,null,null,{"$f":"Instellingen!B37","v":"uden/Emmeloord/Den Hoorn"},null,null,null,null,null,null,null,{"$f":"Instellingen!B38","v":"Nw. en St. Joosland/Boxtel/Bunschoten-Spakenburg"},null,null,null,null,null,null,null,{"$f":"Instellingen!B39","v":" "},null,null,null,null,null,null,null,{"$f":"Instellingen!B40","v":" "},null,null,null,null,null,null,null,{"$f":"Instellingen!B41","v":" "},null,null,null,null,null,null,null,"Dressuur",null,null,null,null,null,"Pnt. 60% regel",null,null,204]
[null,null,null,null,null,"Datum:",{"$f":"Instellingen!C36","v":"18 & 19 -11-2017"},null,null,null,null,null,null,null,{"$f":"Instellingen!C37","v":"16 & 17 -12 -2017"},null,null,null,null,null,null,null,{"$f":"Instellingen!C38","v":"20 en 21-1-2018"},null,null,null,null,null,null,null,{"$f":"Instellingen!C39","v":" "},null,null,null,null,null,null,null,{"$f":"Instellingen!C40","v":" "},null,null,null,null,null,null,null,{"$f":"Instellingen!C41","v":" "},null,null,null,null,null,null,null,"Tot.","Tot.","afval","afval","afval","afval","Beste","Beste"]
["Pl.","Comb.nr.","Ruiter/amazone","Paard/pony","kl.","vereniging","Ring","pnt.C","pnt.H","pnt.tot","ex 1","ex 2","pl.","pl.p.","Ring","pnt.C","pnt.H","pnt.tot.","ex 1","ex 2","pl.","pl.p.","Ring","pnt.C","pnt. H","pnt.tot.","ex 1","ex 2","pl.","pl.p.","Ring","pnt.C","pnt.H","pnt.tot.","ex 1","ex 2","pl.","pl.p.","Ring","pnt.C","pnt.H","pnt.tot.","ex 1","ex 2","pl.","pl.p.","Ring","pnt.C","pnt.H","pnt.tot.","ex 1","ex 2","pl.","pl.p.","pl.pnt","punten","pl.pnt","pl.pnt","punten","punten","pl.pnt","punten","Afv.","Res.","Afv. Regio","opmerking"]

{"sheet":"ZZL","index":11,"n_rows":8,"n_cols":66,"rows_kept":8,"cut":false,"hidden":true,"merged":[[4,14,4,21],[4,54,4,62],[5,0,6,4],[5,6,5,13],[5,14,5,21],[5,22,5,29],[5,30,5,37],[5,46,5,53],[5,54,5,59],[6,6,6,13],[6,14,6,21],[6,22,6,29],[6,30,6,37],[6,38,6,45],[6,46,6,53],[5,38,5,45],[0,0,0,65],[2,0,2,1],[2,2,2,4],[2,5,2,13],[2,14,2,21],[2,22,4,53],[2,54,2,62],[2,64,6,65],[3,0,3,1],[3,2,3,4],[3,5,3,13],[3,14,3,21],[3,54,3,62],[4,0,4,1],[4,2,4,4],[4,5,4,13]]}
["Selectie uitslagen"]
[null,null,1,{"$f":"FLOOR((C2+3)/4,1)","v":1},null,null,null,192,190,{"$f":"H2+I2","v":382},null,null,null,1,null,193,193,{"$f":"P2+Q2","v":386},null,null,null,2,null,198,198,{"$f":"X2+Y2","v":396},null,null,null,3,null,177,177,{"$f":"AF2+AG2","v":354},null,null,null,4,null,178,178,{"$f":"AN2+AO2","v":356},null,null,null,5,null,179,179,{"$f":"AV2+AW2","v":358},null,null,null,6,{"$f":"N2+V2+AD2+AL2+AT2+BB2","v":21},{"$f":"J2+R2+Z2+AH2+AP2+AX2","v":2232},{"$f":"IF($O$4>0,(LARGE(($N2,$V2,$AD2,$AL2,$AT2,$BB2),1)),\"0\")","v":6},{"$f":"IF($O$4>0,(LARGE(($N2,$V2,$AD2,$AL2,$AT2,$BB2),2)),\"0\")","v":5},354,354,{"$f":"BC2-BE2-BF2","v":10},{"$f":"BD2-BG2-BH2","v":1524}]
["Kring:",null,{"$f":"Instellingen!B3","v":"Selectie Subtop"},null,null,"Aantal afvaardiging Regio:",null,null,null,null,null,null,null,null,null,null,null,null,null,null,null,null,null,null,null,null,null,null,null,null,null,null,null,null,null,null,null,null,null,null,null,null,null,null,null,null,null,null,null,null,null,null,null,null,"Aantal wedstrijden:",null,null,null,null,null,null,null,null,{"$f":"Instellingen!B6","v":3}]
["Klasse:",null,"ZZL",null,null,"Aantal afval resultaten:",null,null,null,null,null,null,null,null,{"$f":"Instellingen!B7","v":1}]
["Cat.:",null,null,null,null,"Plaatsingspunten niet gestart:",null,null,null,null,null,null,null,null,{"$f":"Instellingen!B5","v":99},null,null,null,null,null,null,null,null,null,null,null,null,null,null,null,null,null,null,null,null,null,null,null,null,null,null,null,null,null,null,null,null,null,null,null,null,null,null,null,"Aantal reserves:",null,null,null,null,null,null,null,null,2]
[null,null,null,null,null,"Lokatie:",{"$f":"Instellingen!B36","v":"Delft/Werkendam/Harich"},null,null,null,null,null,null,null,{"$f":"Instellingen!B37","v":"uden/Emmeloord/Den Hoorn"},null,null,null,null,null,null,null,{"$f":"Instellingen!B38","v":"Nw. en St. Joosland/Boxtel/Bunschoten-Spakenburg"},null,null,null,null,null,null,null,{"$f":"Instellingen!B39","v":" "},null,null,null,null,null,null,null,{"$f":"Instellingen!B40","v":" "},null,null,null,null,null,null,null,{"$f":"Instellingen!B41","v":" "},null,null,null,null,null,null,null,"Dressuur",null,null,null,null,null,"Pnt. 60% regel",null,null,210]
[null,null,null,null,null,"Datum:",{"$f":"Instellingen!C36","v":"18 & 19 -11-2017"},null,null,null,null,null,null,null,{"$f":"Instellingen!C37","v":"16 & 17 -12 -2017"},null,null,null,null,null,null,null,{"$f":"Instellingen!C38","v":"20 en 21-1-2018"},null,null,null,null,null,null,null,{"$f":"Instellingen!C39","v":" "},null,null,null,null,null,null,null,{"$f":"Instellingen!C40","v":" "},null,null,null,null,null,null,null,{"$f":"Instellingen!C41","v":" "},null,null,null,null,null,null,null,"Tot.","Tot.","afval","afval","afval","afval","Beste","Beste"]
["Pl.","Comb.nr.","Ruiter/amazone","Paard/pony","kl.","vereniging","Ring","pnt.C","pnt.H","pnt.tot","ex 1","ex 2","pl.","pl.p.","Ring","pnt.C","pnt.H","pnt.tot.","ex 1","ex 2","pl.","pl.p.","Ring","pnt.C","pnt. H","pnt.tot.","ex 1","ex 2","pl.","pl.p.","Ring","pnt.C","pnt.H","pnt.tot.","ex 1","ex 2","pl.","pl.p.","Ring","pnt.C","pnt.H","pnt.tot.","ex 1","ex 2","pl.","pl.p.","Ring","pnt.C","pnt.H","pnt.tot.","ex 1","ex 2","pl.","pl.p.","pl.pnt","punten","pl.pnt","pl.pnt","punten","punten","pl.pnt","punten","Afv.","Res.","Afv. Regio","opmerking"]

{"sheet":"Z1 - Z2","index":12,"n_rows":8,"n_cols":66,"rows_kept":8,"cut":false,"hidden":true,"merged":[[0,0,0,65],[2,0,2,1],[2,2,2,4],[2,5,2,13],[2,14,2,21],[2,22,4,53],[2,54,2,62],[2,65,6,65],[3,0,3,1],[3,2,3,4],[3,5,3,13],[3,14,3,21],[3,54,3,62],[4,0,4,1],[4,2,4,4],[4,5,4,13],[4,14,4,21],[4,54,4,62],[5,0,6,4],[5,6,5,13],[5,14,5,21],[5,22,5,29],[5,30,5,37],[5,46,5,53],[5,54,5,59],[6,6,6,13],[6,14,6,21],[6,22,6,29],[6,30,6,37],[6,38,6,45],[6,46,6,53],[5,38,5,45]]}
["Selectie uitslagen"]
[null,null,1,{"$f":"FLOOR((C2+3)/4,1)","v":1},null,null,192,192,190,{"$f":"H2+I2","v":382},null,null,null,1,193,193,193,{"$f":"P2+Q2","v":386},null,null,null,2,198,198,198,{"$f":"X2+Y2","v":396},null,null,null,3,177,177,177,{"$f":"AF2+AG2","v":354},null,null,null,4,178,178,178,{"$f":"AN2+AO2","v":356},null,null,null,5,179,179,179,{"$f":"AV2+AW2","v":358},null,null,null,6,{"$f":"N2+V2+AD2+AL2+AT2+BB2","v":21},{"$f":"J2+R2+Z2+AH2+AP2+AX2","v":2232},{"$f":"IF($O$4>0,(LARGE(($N2,$V2,$AD2,$AL2,$AT2,$BB2),1)),\"0\")","v":6},{"$f":"IF($O$4>0,(LARGE(($N2,$V2,$AD2,$AL2,$AT2,$BB2),2)),\"0\")","v":5},354,354,{"$f":"BC2-BE2-BF2","v":10},{"$f":"BD2-BG2-BH2","v":1524}]
["Kring:",null,{"$f":"Instellingen!B3","v":"Selectie Subtop"},null,null,null,null,null,null,null,null,null,null,null,null,null,null,null,null,null,null,null,null,null,null,null,null,null,null,null,null,null,null,null,null,null,null,null,null,null,null,null,null,null,null,null,null,null,null,null,null,null,null,null,"Aantal wedstrijden:",null,null,null,null,null,null,null,null,{"$f":"Instellingen!B6","v":3}]
["Klasse:",null,"Z1 - Z2",null,null,"Aantal afval resultaten:",null,null,null,null,null,null,null,null,{"$f":"Instellingen!B7","v":1}]
["Cat.:",null,null,null,null,"Plaatsingspunten niet gestart:",null,null,null,null,null,null,null,null,{"$f":"Instellingen!B5","v":99}]
[null,null,null,null,null,"Lokatie:",{"$f":"Instellingen!B36","v":"Delft/Werkendam/Harich"},null,null,null,null,null,null,null,{"$f":"Instellingen!B37","v":"uden/Emmeloord/Den Hoorn"},null,null,null,null,null,null,null,{"$f":"Instellingen!B38","v":"Nw. en St. Joosland/Boxtel/Bunschoten-Spakenburg"},null,null,null,null,null,null,null,{"$f":"Instellingen!B39","v":" "},null,null,null,null,null,null,null,{"$f":"Instellingen!B40","v":" "},null,null,null,null,null,null,null,{"$f":"Instellingen!B41","v":" "},null,null,null,null,null,null,null,"Dressuur"]
[null,null,null,null,null,"Datum:",{"$f":"Instellingen!C36","v":"18 & 19 -11-2017"},null,null,null,null,null,null,null,{"$f":"Instellingen!C37","v":"16 & 17 -12 -2017"},null,null,null,null,null,null,null,{"$f":"Instellingen!C38","v":"20 en 21-1-2018"},null,null,null,null,null,null,null,{"$f":"Instellingen!C39","v":" "},null,null,null,null,null,null,null,{"$f":"Instellingen!C40","v":" "},null,null,null,null,null,null,null,{"$f":"Instellingen!C41","v":" "},null,null,null,null,null,null,null,"Tot.","Tot.","afval","afval","afval","afval","Beste","Beste"]
["Pl.","Comb.nr.","Ruiter/amazone","Paard/pony","kl.","vereniging","Ring","pnt.C","pnt.H","pnt.tot","ex 1","ex 2","pl.","pl.p.","Ring","pnt.C","pnt.H","pnt.tot.","ex 1","ex 2","pl.","pl.p.","Ring","pnt.C","pnt. H","pnt.tot.","ex 1","ex 2","pl.","pl.p.","Ring","pnt.C","pnt.H","pnt.tot.","ex 1","ex 2","pl.","pl.p.","Ring","pnt.C","pnt.H","pnt.tot.","ex 1","ex 2","pl.","pl.p.","Ring","pnt.C","pnt.H","pnt.tot.","ex 1","ex 2","pl.","pl.p.","pl.pnt","punten","pl.pnt","pl.pnt","punten","punten","pl.pnt","punten","Afv.","Res.",null,"opmerking"]

{"sheet":"Kampioenen","index":13,"n_rows":9,"n_cols":11,"rows_kept":9,"cut":false,"hidden":true,"merged":[[2,1,2,2],[2,4,2,5],[2,7,2,8],[0,0,0,6],[0,7,0,8]]}
["Regio Kampioenen"]
[null,null,null,null,null,null,false,false]
["Kring:",{"$f":"Instellingen!B3","v":"Selectie Subtop"},null,null,"Handicap:",null,null,"Aantal per klasse:",null,20]
["Volgnr.","Comb.nr.","Ruiter/amazone","Paard/pony","Klasse","Cat.","Vereniging","Totaal beste","Totaal perc.","Totaal pl.pnt.","Opmerking"]
[]
[]
[null,null,"Klasse: ZZZ"]
[]
[null,null,"Klasse: LT"]

{"sheet":"Diversen","index":14,"n_rows":8,"n_cols":14,"rows_kept":8,"cut":false,"hidden":true,"merged":[[0,0,0,11],[5,0,6,13],[2,7,2,13],[2,2,2,3],[2,4,2,6]]}
["Selectie wedstrijd"]
[null,null,48,{"$f":"FLOOR((C2+3)/4,1)","v":12},null,null,null,192,190,{"$f":"H2+I2","v":382}]
["Kring:",null,{"$f":"Instellingen!B3","v":"Selectie Subtop"},null,"Wedstrijd nummer:",null,null,4]
[]
[]
["Import gegevens "]
[]
["Pl.","Comb.nr.","Ruiter/amazone","Paard/pony","klasse","cat.","vereniging","pnt.C","pnt.H","pnt.tot","ex 1","ex 2","perc.","opmerking"]

{"sheet":"Instellingen","index":15,"n_rows":41,"n_cols":3,"rows_kept":41,"cut":false,"hidden":true,"merged":[]}
[null,"Waarde","Opmerking"]
["Gegevens:"]
["Naam van de Kring:","Selectie Subtop"]
["Interval plaatsingspunten:",1,"1=(1,2,3,etc) / 2=(1,3,5,etc)"]
["Plaatsingspunten niet gestart:",99]
["Aantal selectie wedstrijden:",3]
["Aantal afval resultaten:",1]
["Aantal jury's:",2]
["Ex-aequo punten per wedstrijd",1,"1=ja / 0=nee"]
["Plaatsingspunten niet gefinisht",90,"Blanko is volgens plaatsing"]
["Minimum aantal starts",null,"Blanko is niet van toepassing "]
["Plaatsingspunten te weinig starts",null,"Blanko of minimum is blanko niet corrigeren"]
["Afvaardiging Regiokampioenschappen",null,"Aanmelden, Afmelden, Blanko is iedereen"]
["Klasse Z1-Z2 cat. CDE samenvoegen","Nee"]
["Klasse L1-L2 cat. AB samenvoegen","Nee"]
[]
["Klasse BB verbergen","Nee"]
["Tabbladen B, L1-L2, M1-M2, Z1-Z2 nodig","Nee"]
[]
[]
[]
[]
["Volgorde ex-aequo regeling:",null,"(De laagste waarde heeft voorrang, niet ingevulde gegevens doen niet mee voor de volgorde van het resultaat)"]
["Totaal beste plaatsingspunten:",1,"(dit is een vaste waarde en heeft de hoogste voorrang)"]
["Plaatsingspunten 6e wedstrijd:",2]
["Plaatsingspunten 5e wedstrijd:",3]
["Plaatsingspunten 4e wedstrijd:",4]
["Plaatsingspunten 3e wedstrijd:",5]
["Plaatsingspunten 2e wedstrijd:",6]
["Plaatsingspunten 1e wedstrijd:",7]
["Totaal alle plaatsingspunten:"]
["Totaal behaalde punten beste wedstrijden:"]
["Totaal behaalde punten alle wedstrijden:"]
[]
["Omschrijving","Lokatie","Datum"]
["1e wedstrijd","Delft/Werkendam/Harich","18 & 19 -11-2017"]
["2e wedstrijd","uden/Emmeloord/Den Hoorn","16 & 17 -12 -2017"]
["3e wedstrijd","Nw. en St. Joosland/Boxtel/Bunschoten-Spakenburg","20 en 21-1-2018"]
["4e wedstrijd"," "," "]
["5e wedstrijd"," "," "]
["6e wedstrijd"," "," "]

{"sheet":"Afvaardiging","index":16,"n_rows":64,"n_cols":8,"rows_kept":64,"cut":false,"hidden":false,"merged":[[2,1,2,3],[0,0,0,7]]}
["Afvaardiging aan de KNHS- Kampioenschappen"]
[]
["Kring:",{"$f":"Instellingen!B3","v":"Selectie Subtop"},null,null,"Dressuur"]
["Volgnr.","Comb.nr.","Ruiter/amazone","Paard/pony","Klasse","Cat.","Vereniging","Opmerking"]
[]
[null,null,"Klasse: ZZZ","Afvaardiging: 16"]
[1,"810857SB","Kirsten Brouwer","Sultan des Paluds","ZZ",null,"Voornruiters, RV. De"]
[2,"800195GN","Jeanine Nieuwenhuis","Genua TC","ZZ",null,"Oud-beijerland, RV."]
[3,"779962CB","Vai Bruntink","Cum Laude","ZZ",null,"Neta, RV."]
[4,"784250GS","Jennifer Sekreve","Gamante d","ZZ",null,"Oost-Veluwse R.J.V., RV."]
[5,"753827GS","Jonna Schelstraete - Van den Ham","Grand-charmeur","ZZ",null,"Jacobus, RV."]
[6,"693466VV","Suzanne Van de Ven","Vdv D'avicci","ZZ",null,"Vereniging Eindhovense Manege, RV."]
[7,"818550TV","Tommie van Puijenbroek - Visser","TOP's Gentle","ZZ",null,"Goirle, RV."]
[8,"826261ED","Mark Van de Donk","Duppie","ZZ",null,"Srjv Groenendaal, RV."]
[9,"742845FE","Petra Van Esch","Fifty Fifty","ZZ",null,"Lambertus, RV."]
[10,"784738HG","Marijke Van Giesen","Hexagon's Furious","ZZ",null,"Hexagon B.V., Stal"]
[11,"787940HZ","Thamar Zweistra","Hexagon's Filamanda","ZZ",null,"Hexagon B.V., Stal"]
[12,"832336HH","Danielle Heijkoop","Damirez","ZZ",null,"Zwethruiters, RV."]
[13,"787586ZW","Merel Van Wallenburg","Zip","ZZ",null,"Sé-ros, RV."]
[14,"665782DS","Romy Van der Schaft","Diva Dvb","ZZ",null,"WWNA, RV."]
[15,"682458FW","Katie Werring","Francois","ZZ",null,"Voornruiters, RV. De"]
[16,"642952DV","Natascha Veen","Damoiselle","ZZ",null,"Drentse Hooglanden, RV."]
["1e Res.","803057BH","Geert Hofland","Blaze","ZZ",null,"Boreftse Ruiters, RV."]
["2e Res.","678585EE","Lotte Van Engelen","Experience","ZZ",null,"s-Gravenhof, RV."]
["3e Res.","717759DP","Joelle Peters","Dacar's Dream","ZZ",null,"Hoefke (HSV), RV."]
["4e Res.","832904FV","Tommie van Puijenbroek - Visser","Fanatique Begijnhoeve","ZZ",null,"Goirle, RV."]
["5e Res.","828718EK","Paulette Kral","El dorado","ZZ",null,"Hoeve Westland Ruiters, RV."]
["6e Res.","728367BJ","Fabienne Jongen","Botticelli","ZZ",null,"Hubertus, RV."]
["7e Res.","786394DL","Corinda Luttjeboer","Da Vinci Sollenburg DC","ZZ",null,"Schaapskooiruiters, RV."]
["8e Res.","683505CH","Patty Hanssen","Cliff","ZZ",null,"Wittenhorst, RV."]
["9e Res.","705515FZ","Zoë Zwiggelaar","Fidarsi Rossi","ZZ",null,"Drentse Hooglanden, RV."]
["10e Res.","765016FW","Wenda Welten","Firefly","ZZ",null,"PPH Horstdravers, RV."]
[]
[null,null,"Klasse: LT","Afvaardiging: 20"]
[1,"725894RL","Robin Van Lierop","Finja","LT",null,"Ewijk, RV."]
[2,"765172FC","Adelinde Cornelissen","Fleau de Baian","LT",null,"Stroomruiters, RV."]
[3,"660566EC","Ilse Van Cranenbroek","Emerald S","LT",null,"Molenhorst, RV. De"]
[4,"808868DH","Danielle Heijkoop","Daula II","LT",null,"Zwethruiters, RV."]
[5,"783238FV","Mara De Vries","Farzana G","LT",null,"Biesboschruiters, RV."]
[6,"743085EK","Jasmien De Koeyer","Esperanza","LT",null,"Oud-beijerland, RV."]
[7,"675384SS","Jennifer Sekreve","San Siro","LT",null,"Oost-Veluwse R.J.V., RV."]
[8,"807344DV","Mara De Vries","Dornenstern","LT",null,"Biesboschruiters, RV."]
[9,"805186DS","Diederik Van Silfhout","Dahlhoff","LT",null,"Valouwe, RV."]
[10,"703415FR","Veronique Roerink","Flanell","LT",null,"Drentse Hooglanden, RV."]
[11,"732828EB","Sandy Van Boxmeer - Westerhuis","Earth Wind and Fire","LT",null,"Hoefslag, RV."]
[12,"829992EZ","Thamar Zweistra","Erina","LT",null,"Hexagon B.V., Stal"]
[13,"812924DH","Kebie Van der Heijden","Don Diego","LT",null,"Equinus Stramproy, RV."]
[14,"825460FM","Lynne Maas","Fantastique","LT",null,"t Einde, RV."]
[15,"732829FB","Sandy Van Boxmeer - Westerhuis","Figaro","LT",null,"Hoefslag, RV."]
[16,"817045EH","Danielle Houtvast","Entertainer","LT",null,"Katsbekruiters, RV."]
[17,"800786SS","Diederik Van Silfhout","Scenario 2","LT",null,"Valouwe, RV."]
[18,"681336DB","Vai Bruntink","Darabel","LT",null,"Neta, RV."]
[19,"789483JV","Linda Verwaal","Jakari 2","LT",null,"Horstlinde, RV."]
[20,"832061PO","Philip Van Ommen","President's Denver","LT",null,"Hoeve Westland Ruiters, RV."]
["1e Res.","754413OZ","Thamar Zweistra","Oldi 67","LT",null,"Hexagon B.V., Stal"]
["2e Res.","666136DE","Eline Van Egmond","Duvall","LT",null,"Zuid-Hollandsche J.V., RV."]
["3e Res.","766811DV","Sanne Voets","Demantur N.O.P.","LT",null,"St. Martinus, RV."]
["4e Res.","799045BD","Mark Van de Donk","Belcanto","LT",null,"Srjv Groenendaal, RV."]
["5e Res.","721458DW","Myrthe Wedda","Diamond Geezer","LT",null,"Voornruiters, RV. De"]
["6e Res.","644523BB","Vincent Bol","Baltimore","LT",null,"Walcheren, RV."]
["7e Res.","640138WS","Jenny Schreven","Wings H","LT",null,"Jasmijnruiters, RV."]
["8e Res.","675747EW","Wilma Wernsen","Estupendo","LT",null,"Srjv Groenendaal, RV."]
["9e Res.","598024BH","Jacinta Hemmen","Burghgraef","LT",null,"Bathmen e.o., RV."]
["10e Res.","639242BR","Gabrielle Röst - de Groot","Bibi Vita","LT",null,"Stroe, RV."]

{"sheet":"Blad1","index":17,"n_rows":50,"n_cols":2,"rows_kept":50,"cut":false,"hidden":true,"merged":[]}
[1,20]
[2,17]
[3,15]
[4,13]
[5,12]
[6,11]
[7,10]
[8,9]
[9,8]
[10,7]
[11,6]
[12,5]
[13,4]
[14,3]
[15,2]
[16,1]
[17,0]
[18,0]
[19,0]
[20,0]
[21,0]
[22,0]
[23,0]
[24,0]
[25,0]
[26,0]
[27,0]
[28,0]
[29,0]
[30,0]
[31,0]
[32,0]
[33,0]
[34,0]
[35,0]
[36,0]
[37,0]
[38,0]
[39,0]
[40,0]
[41,0]
[42,0]
[43,0]
[44,0]
[45,0]
[46,0]
[47,0]
[48,0]
[49,0]
[50,0]